Workbook

Sheet Riskk (hidden)
A1: LSL | B1: UPSW | H1: =COUNT(H3:H26) -> 0 | I1: FALSE
A2: LSL | B2: Userid | H2: Main/sub | I2: Caption | J2: On Action | K2: NewGroup
A3: 3 | B3: UserLevel
A4: 2010-09-09T15:20:33 | B4: LoginTime
B5: LogoutTime
A6: MYR | B6: Global Ccy

Sheet Login
C10: Money Market Fund Interim Reports
K24: Press To Enter

Sheet InFund (hidden)
A1: qFundCode | B1: FundName | C1: FinanceYrEnd | D1: qCPCode | E1: BusinessDate | F1: FinanceYrStart
A2: IVCAP | B2: i-VCAP Manangement Sdn Bhd - Investment | C2: 2014-12-31 | D2: N/A | E2: 2014-06-04 | F2: 2014-01-01
A3: KWAP | B3: KWAP (i-VCAP Syariah) | C3: 2014-12-31 | D3: N/A | E3: 2014-06-04 | F3: 2014-01-01
A4: MMF1 | B4: i-VCAP Shariah Money Market Fund | C4: 2014-04-30 | D4: DTMB | E4: 2014-06-04 | F4: 2011-03-15
A5: MYETFDJ | B5: MyETF Dow Jones Islamic Market Malaysia Titans 25 | C5: 2014-12-31 | D5: DTMB | E5: 2014-06-04 | F5: 2008-01-31
A6: MYETFID | B6: MyETF MSCI Malaysia Islamic Dividend | C6: 2014-12-31 | D6: DTMB | E6: 2014-06-04 | F6: 2014-02-27

Sheet Main (hidden)
B3: =VLOOKUP(FundCode,InFund!A:E,2,0) -> i-VCAP Shariah Money Market Fund
B6: Fund Code | C6: MMF1
B7: Start Date | C7: =DATE(YEAR(VLOOKUP(FundCode,InFund!A:E,5,0))-1,MONTH(VLOOKUP(FundCode,InFund!A:E,3,0)+1),DAY(VLOOKUP(FundCode,InFund!A:E,3,0)+1)) -> 2013-05-01 | D7: =DATE(YEAR(VLOOKUP(FundCode,InFund!A:E,5,0))-1,MONTH(VLOOKUP(FundCode,InFund!A:E,3,0)+1),DAY(VLOOKUP(FundCode,InFund!A:E,3,0)+1)) -> 41395
B8: End Date | C8: 2014-04-30

Sheet InDate (hidden)
A1: ValueDate
A2: 2012-01-31
A3: 2013-01-31
A4: 2014-01-30
A5: 2012-02-29
A6: 2013-02-28
A7: 2014-02-28
A8: 2011-03-31
A9: 2012-03-30
A10: 2013-03-29
A11: 2014-03-31
A12: 2011-04-29
A13: 2012-04-30
A14: 2013-04-30
A15: 2011-05-31
A16: 2012-05-31
A17: 2013-05-31
A18: 2011-06-30
A19: 2012-06-29
A20: 2013-06-28
A21: 2011-07-29
A22: 2012-07-31
A23: 2013-07-31
A24: 2011-08-29
A25: 2012-08-30
A26: 2013-08-30
A27: 2011-09-30
A28: 2012-09-28
A29: 2013-09-30
A30: 2011-10-31
A31: 2012-10-31
A32: 2013-10-31
A33: 2011-11-30
A34: 2012-11-30
A35: 2013-11-29
A36: 2011-12-30
A37: 2012-12-31
A38: 2013-12-31

Sheet Quarter (hidden)
B2: Key Statistics
C3: =TEXT(EndDate,"dd-MMM-yy") -> 30-Apr-14 | D3: =TEXT(StartDate-1,"dd-MMM-yy") -> 30-Apr-13 | E3: Q-o-Q Return | F3: Annualized Returm | H3: =StartDate -> 2013-05-01 | I3: =EOMONTH(I4,-((YEAR(H4)-YEAR(H3))*12+MONTH(H4)-MONTH(H3))-1)+1 -> 2012-05-01
B4: Before Dividend Distribution | H4: =EndDate -> 2014-04-30 | I4: =StartDate-1 -> 2013-04-30
B6: Net Asset Value (NAV) (RM) * | C6: =SUMIF(InFundPerformance!A:A,Quarter!C3,InFundPerformance!B:B) -> 36949762.92 | D6: =SUMIF(InLstFundPerformance!A:A,Quarter!D3,InLstFundPerformance!B:B) -> 40924354.72 | E6: =(SUMIF(InFundPerformance!A:A,Quarter!C3,InFundPerformance!G:G)/SUMIF(InLstFundPerformance!A:A,Quarter!D3,InLstFundPerformance!G:G)-1) -> 0.03003437045 | F6: =(POWER((1+E6),365/(C3-D3))-1) -> 0.03003437045 | G6: Highest Value | H6: =MAX(InFundPerformance!E:E) -> 1.0121 | I6: =MAX(InLstFundPerformance!E:E) -> 1.0156
B7: Units in Circulation (Units) | C7: =SUMIF(InFundPerformance!A:A,Quarter!C3,InFundPerformance!C:C) -> 36789272.52 | D7: =SUMIF(InLstFundPerformance!A:A,Quarter!D3,InLstFundPerformance!C:C) -> 0 | G7: Highest Date | H7: =SUMIF(InFundPerformance!E:E,H6,InFundPerformance!A:A) -> 2013-07-30 | I7: =SUMIF(InLstFundPerformance!E:E,I6,InLstFundPerformance!A:A) -> 2012-11-29
B8: NAV Per Unit (RM) | C8: =IF(C7=0,0,C6/C7) -> 1.004362424 | D8: =IF(D7=0,0,D6/D7) -> 0
G9: Lowest Value | H9: =MIN(InFundPerformance!E:E) -> 1.0031 | I9: =MIN(InLstFundPerformance!E:E) -> 1.008
B10: After Dividend Distribution | G10: Lowest Date | H10: =SUMIF(InFundPerformance!E:E,H9,InFundPerformance!A:A) -> 2014-04-30 | I10: =SUMIF(InLstFundPerformance!E:E,I9,InLstFundPerformance!A:A) -> 2012-05-02
B12: Dividend Distribution (RM) # | C12: =SUMIF(InFundPerformance!A:A,Quarter!C3,InFundPerformance!I:I) -> 165971.29 | D12: =SUMIF(InLstFundPerformance!A:A,Quarter!D3,InLstFundPerformance!I:I) -> 0
B13: Net Asset Value (NAV) (RM) | C13: =C6-C12 -> 36783791.63 | D13: =D6-D12 -> 40924354.72
B14: Units in Circulation (Units) | C14: =SUMIF(InFundPerformance!A:A,Quarter!C3,InFundPerformance!C:C) -> 36789272.52 | D14: =SUMIF(InLstFundPerformance!A:A,Quarter!D3,InLstFundPerformance!C:C) -> 0
B15: NAV Per Unit (RM) | C15: =IF(C14=0,0,C13/C14) -> 0.9998510193 | D15: =IF(D14=0,0,D13/D14) -> 0
B17: After Dividend ReInvestment
B19: Net Asset Value (NAV) (RM) * | C19: =SUMIF(InFundPerformance!A:A,Quarter!C3,InFundPerformance!B:B) -> 36949762.92 | D19: =SUMIF(InLstFundPerformance!A:A,Quarter!D3,InLstFundPerformance!B:B) -> 40924354.72 | E19: =(SUMIF(InFundPerformance!A:A,Quarter!C3,InFundPerformance!G:G)/SUMIF(InLstFundPerformance!A:A,Quarter!D3,InLstFundPerformance!G:G)-1) -> 0.03003437045 | F19: =(POWER((1+E19),365/(C3-D3))-1) -> 0.03003437045
B20: Units in Circulation (Units) | C20: =SUMIF(InFundPerformance!A:A,Quarter!C3,InFundPerformance!D:D) -> 36834061.25 | D20: =SUMIF(InLstFundPerformance!A:A,Quarter!D3,InLstFundPerformance!D:D) -> 40596906.97
B21: NAV Per Unit (RM) | C21: =SUMIF(InFundPerformance!A:A,Quarter!C3,InFundPerformance!E:E) -> 1.0031 | D21: =SUMIF(InLstFundPerformance!A:A,Quarter!D3,InLstFundPerformance!E:E) -> 1.0081
B23: Benchmark^ | C23: =(POWER((1+E23),365/(C3-D3))-1) -> 0.02750246232 | D23: =(POWER((1+E23),365/(C3-D3))-1) -> 0.02750246232 | E23: =(SUMIF(InFundPerformance!A:A,EndDate,InFundPerformance!K:K)/SUMIF(InLstFundPerformance!A:A,StartDate-1,InLstFundPerformance!K:K)-1) -> 0.02750246232 | F23: =(POWER((1+E23),365/(C3-D3))-1) -> 0.02750246232
B24: Benchmark-net of tax | C24: =C23*0.75 -> 0.02062684674 | D24: =D23*0.75 -> 0.02062684674 | F24: =F23*0.75 -> 0.02062684674
B26: NAV Per Unit (RM)
B27: Highest | C27: =H6 & " (" & TEXT(H7,"dd MMM yy") & ")" -> 1.0121 (30 Jul 13) | D27: =I6 & " (" & TEXT(I7,"dd MMM yy") & ")" -> 1.0156 (29 Nov 12)
B28: Lowest | C28: =H9&" ("&TEXT(H10,"dd MMM yy")&")" -> 1.0031 (30 Apr 14) | D28: =I9 & " (" & TEXT(I10,"dd MMM yy") & ")" -> 1.008 (02 May 12)
B31: Dividend Distributions
D32: RM | E32: Units
C33: =TEXT(EndDate,"MMM-YY") -> Apr-14 | D33: =SUMIF(InFundPerformance!A:A,EndDate,InFundPerformance!I:I) -> 165971.29 | E33: =IF(SUMIF(InFundPerformance!A:A,EndDate,InFundPerformance!E:E)=0,0,D33/SUMIF(InFundPerformance!A:A,EndDate,InFundPerformance!E:E)) -> 165458.3691
B34: =TEXT((EndDate),"YY") -> 14 | C34: =TEXT(EOMONTH(EndDate,-1),"MMM-YY") -> Mar-14 | D34: =SUMIF(InFundPerformance!A:A,EOMONTH(EndDate,-1),InFundPerformance!I:I) -> 0 | E34: =IF(SUMIF(InFundPerformance!A:A,EOMONTH(EndDate,-1),InFundPerformance!E:E)=0,0,D34/SUMIF(InFundPerformance!A:A,EOMONTH(EndDate,-1),InFundPerformance!E:E)) -> 0
C35: =TEXT(EOMONTH(EndDate,-2),"MMM-YY") -> Feb-14 | D35: =SUMIF(InFundPerformance!A:A,EOMONTH(EndDate,-2),InFundPerformance!I:I) -> 0 | E35: =IF(SUMIF(InFundPerformance!A:A,EOMONTH(EndDate,-2),InFundPerformance!E:E)=0,0,D35/SUMIF(InFundPerformance!A:A,EOMONTH(EndDate,-2),InFundPerformance!E:E)) -> 0
C36: Subtotal | D36: =SUM(D33:D35) -> 165971.29 | E36: =SUM(E33:E35) -> 165458.3691
C37: =TEXT(EOMONTH(EndDate,-3),"MMM-YY") -> Jan-14 | D37: =SUMIF(InLstFundPerformance!A:A,EOMONTH(EndDate,-3),InLstFundPerformance!I:I) -> 0 | E37: =IF(SUMIF(InLstFundPerformance!A:A,EOMONTH(EndDate,-3),InLstFundPerformance!E:E)=0,0,D37/SUMIF(InLstFundPerformance!A:A,EOMONTH(EndDate,-3),InLstFundPerformance!E:E)) -> 0
B38: =TEXT((EndDate),"YY") -> 14 | C38: =TEXT(EOMONTH(EndDate,-4),"MMM-YY") -> Dec-13 | D38: =SUMIF(InLstFundPerformance!A:A,EOMONTH(EndDate,-4),InLstFundPerformance!I:I) -> 0 | E38: =IF(SUMIF(InLstFundPerformance!A:A,EOMONTH(EndDate,-4),InLstFundPerformance!E:E)=0,0,D38/SUMIF(InLstFundPerformance!A:A,EOMONTH(EndDate,-4),InLstFundPerformance!E:E)) -> 0
C39: =TEXT(EOMONTH(EndDate,-5),"MMM-YY") -> Nov-13 | D39: =SUMIF(InLstFundPerformance!A:A,EOMONTH(EndDate,-5),InLstFundPerformance!I:I) -> 0 | E39: =IF(SUMIF(InLstFundPerformance!A:A,EOMONTH(EndDate,-5),InLstFundPerformance!E:E)=0,0,D39/SUMIF(InLstFundPerformance!A:A,EOMONTH(EndDate,-5),InLstFundPerformance!E:E)) -> 0
C40: Subtotal | D40: =SUM(D37:D39) -> 0 | E40: =SUM(E37:E39) -> 0
B41: TOTAL | D41: =D36+D40 -> 165971.29 | E41: =E36+E40 -> 165458.3691
B47: Placements Profile By Tenor
B48: Tenor to Maturity | C48: ="As at end " & TEXT(EndDate,"dd MMM yy") -> As at end 30 Apr 14 | E48: ="As at end " & TEXT(StartDate-1,"dd MMM yy") -> As at end 30 Apr 13
C49: % of Total Deposits | E49: % of Total Deposits
B50: 1 - 3 months | C50: =SUMIF(InHolding!CK:CK,"<=90",InHolding!AG:AG)/SUM(InHolding!AG:AG) -> 0.2668189373 | E50: =SUMIF(InLstHolding!CK:CK,"<=90",InLstHolding!AG:AG)/SUM(InLstHolding!AG:AG) -> 0.3680147291
B51: 3 - 5 months | C51: =SUMIFS(InHolding!AG:AG,InHolding!CK:CK,">90 ",InHolding!CK:CK,"<=150")/SUM(InHolding!AG:AG) -> 0.2305556753 | E51: =SUMIFS(InLstHolding!AG:AG,InLstHolding!CK:CK,">90 ",InLstHolding!CK:CK,"<=150")/SUM(InLstHolding!AG:AG) -> 0.03487457555
B52: 5 - 6 months | C52: =SUMIFS(InHolding!AG:AG,InHolding!CK:CK,">150 ",InHolding!CK:CK,"<=180")/SUM(InHolding!AG:AG) -> 0.2851350737 | E52: =SUMIFS(InLstHolding!AG:AG,InLstHolding!CK:CK,">150 ",InLstHolding!CK:CK,"<=180")/SUM(InLstHolding!AG:AG) -> 0.1539505218
B53: 6 - 7 months | C53: =SUMIFS(InHolding!AG:AG,InHolding!CK:CK,">180 ",InHolding!CK:CK,"<=210")/SUM(InHolding!AG:AG) -> 0.2174903138 | E53: =SUMIFS(InLstHolding!AG:AG,InLstHolding!CK:CK,">180 ",InLstHolding!CK:CK,"<=210")/SUM(InLstHolding!AG:AG) -> 0.347052192
B54: 7 - 12 months | C54: =SUMIF(InHolding!CK:CK,">210",InHolding!AG:AG)/SUM(InHolding!AG:AG) -> 0 | E54: =SUMIF(InLstHolding!CK:CK,">210",InLstHolding!AG:AG)/SUM(InLstHolding!AG:AG) -> 0.09610798157
B57: ="Placements Profile by Financial Institutions as at end " & TEXT(EndDate,"dd MMM yy") -> Placements Profile by Financial Institutions as at end 30 Apr 14 | M57: Sum of UnitFaceValue | N57: CounterName
N58: Bank Islam Malaysia Berhad | O58: Al Rajhi Bank | P58: Kuwait Finance House | Q58: Bank Muamalat Malaysia Berhad
M59: Total | N59: 0.2301621679 | O59: 0.4208870422 | P59: 0.2582640465 | Q59: 0.09068674334
B79: Inception Date | C79: =VLOOKUP(FundCode,InFund!A:F,6,0) -> 2011-03-15
N80: Data
B81: Performance of the Fund vs Benchmark - Since Inception | M81: ValDt2 | N81: MMF | O81: BenchMark
M82: 2011-09-30 | N82: 0.08011900904 | O82: 0.07426277073
M83: 2011-10-31 | N83: 0.07756506919 | O83: 0.07157531039
M84: 2011-11-30 | N84: 0.07490271363 | O84: 0.06898731409
M85: 2012-01-31 | N85: 0.06937170828 | O85: 0.06362245619
M86: 2012-02-29 | N86: 0.06686399609 | O86: 0.06112712101
M87: 2012-04-30 | N87: 0.06114570104 | O87: 0.05591634098
M88: 2012-05-31 | N88: 0.05846654598 | O88: 0.0532878031
M89: 2012-07-31 | N89: 0.05332006455 | O89: 0.04852752369
M90: 2012-10-31 | N90: 0.04571831555 | O90: 0.04141984334
M91: 2012-11-30 | N91: 0.04320847992 | O91: 0.03909573954
M92: 2012-12-31 | N92: 0.04061906184 | O92: 0.03670503823
M93: 2013-01-31 | N93: 0.0380238189 | O93: 0.03432531249
M94: 2013-02-28 | N94: 0.03559441336 | O94: 0.03218525378
M95: 2013-04-30 | N95: 0.03003437045 | O95: 0.02750246232
M96: 2013-05-31 | N96: 0.02736586497 | O96: 0.02513445997
M97: 2013-07-31 | N97: 0.02215737787 | O97: 0.02050656812
M98: 2013-09-30 | N98: 0.01699569999 | O98: 0.01588860784
M99: 2013-10-31 | N99: 0.01438484325 | O99: 0.01354416483
M100: 2013-12-31 | N100: 0.009264652881 | O100: 0.008962358843
M101: 2011-12-30 | N101: 0.07195485402 | O101: 0.06638324114
M102: 2012-03-30 | N102: 0.06375168452 | O102: 0.058558031
M103: 2012-06-29 | N103: 0.05589195024 | O103: 0.05101934125
M104: 2012-08-30 | N104: 0.05084568872 | O104: 0.0462021518
M105: 2012-09-28 | N105: 0.04831840087 | O105: 0.04396407554
M106: 2013-03-29 | N106: 0.03279794562 | O106: 0.0299583542
M107: 2013-06-28 | N107: 0.0247976996 | O107: 0.02300498107
M108: 2014-02-28 | N108: 0.005068627024 | O108: 0.00455781703
M109: 2014-03-31 | N109: 0.002484723496 | O109: 0.002236369329
M110: 2013-08-30 | N110: 0.01953057757 | O110: 0.01824392193
M111: 2013-11-29 | N111: 0.01186396449 | O111: 0.01136075134
M112: 2014-01-30 | N112: 0.007406717551 | O112: 0.00672417408

Sheet Annual (hidden)
B2: Key Statistics – Yearly Performance | H2: ="Fund’s Investments as at end-FY" & TEXT(EndDate,"yyyy") -> Fund’s Investments as at end-FY2014
C3: ="As at " & TEXT(EndDate,"dd MMM yyyy") -> As at 30 Apr 2014 | D3: ="As at " & TEXT((StartDate)-1,"dd MMM yyyy") -> As at 30 Apr 2013 | H3: DEPOSIT CONCEPT | I3: VALUE (RM) | J3: TENURE | K3: PROFIT SHARING RATE | N3: Sum of UnitFaceValue
H4: =IF(N5="","",N5) -> Fixed Deposit Islamic | I4: =IF(P5="","",P5) -> 18702360.52 | J4: =IF(O5="","",O5) -> 2-3 mths | N4: CshTypeDesc | O4: TenureCat | P4: Total
B5: Fund Performance | H5: =IF(N6="","",N6) ->  | I5: =IF(P6="","",P6) -> 15462753.42 | J5: =IF(O6="","",O6) -> 3-4 mths | N5: Fixed Deposit Islamic | O5: 2-3 mths | P5: 18702360.52
B6: Net Asset Value (NAV) (RM) | C6: =SUMIF(InFundPerformance!A:A,EndDate,InFundPerformance!B:B) -> 36949762.92 | D6: =SUMIF(InLstFundPerformance!A:A,StartDate-1,InLstFundPerformance!B:B) -> 40924354.72 | I6: 4260562.65 | J6: 4-5 mths | O6: 3-4 mths | P6: 15462753.42
B7: Units In Circulation (Units) | C7: =SUMIF(InFundPerformance!A:A,EndDate,InFundPerformance!D:D) -> 36834061.25 | D7: =SUMIF(InLstFundPerformance!A:A,StartDate-1,InLstFundPerformance!D:D) -> 40596906.97 | I7: 26425173.23 | J7: 5-6 mths | O7: 4-5 mths | P7: 4260562.65
B8: Dividend Distribution (RM) # | C8: =SUMIF(InFundPerformance!A:A,EndDate,InFundPerformance!F:F) -> 0 | D8: =SUMIF(InLstFundPerformance!A:A,StartDate-1,InLstFundPerformance!F:F) -> 0 | I8: 20156128.61 | J8: 6-7 mths | O8: 5-6 mths | P8: 26425173.23
H9: SIA | I9: 3525689.54 | J9: 2-3 mths | O9: 6-7 mths | P9: 20156128.61
B10: NAV Per Unit (RM) | C10: =SUMIF(InFundPerformance!A:A,EndDate,InFundPerformance!E:E) -> 1.0031 | D10: =SUMIF(InLstFundPerformance!A:A,StartDate-1,InLstFundPerformance!E:E) -> 1.0081 | H10: COMMODITY MURABAHAH | I10: 2499657.22 | J10: 2-3 mths | N10: SIA | O10: 2-3 mths | P10: 3525689.54
B11: =" - Highest" -> - Highest | C11: =MAX(InFundPerformance!E:E)&" ("&TEXT(MAX(IF(InFundPerformance!E:E,InFundPerformance!A:A)),"dd MMM yy") &")" -> 1.0121 (30 Apr 14) | D11: =MAX(InLstFundPerformance!E:E)&" ("&TEXT(MAX(IF(InLstFundPerformance!E:E,InLstFundPerformance!A:A)),"dd MMM yy") &")" -> 1.0156 (30 Apr 13) | I11: 1643657.76 | J11: 3-4 mths | N11: COMMODITY MURABAHAH | O11: 2-3 mths | P11: 2499657.22
B12: =" - Lowest" -> - Lowest | C12: =MIN(InFundPerformance!E:E)&" ("&TEXT(MIN(IF(InFundPerformance!E:E,InFundPerformance!A:A)),"dd MMM yy") &")" -> 1.0031 (02 May 13) | D12: =MIN(InLstFundPerformance!E:E)&" ("&TEXT(MIN(IF(InLstFundPerformance!E:E,InLstFundPerformance!A:A)),"dd MMM yy") &")" -> 1.008 (02 May 12) | H12: Grand Total | I12: 92675982.95 | O12: 3-4 mths | P12: 1643657.76
B13: (During the period) | N13: Grand Total | P13: 92675982.95
B14: Annualizd Return* | C14: =POWER(1+(SUMIF(InFundPerformance!A:A,EndDate,InFundPerformance!G:G)/SUMIF(InLstFundPerformance!A:A,StartDate-1,InLstFundPerformance!G:G))-1,365/(EndDate-(StartDate-1)))-1 -> 0.03003437045 | D14: =POWER(1+(SUMIF(InLstFundPerformance!A:A,StartDate-1,InLstFundPerformance!G:G)/InLstFundPerformance!L2)-1,365/((StartDate-1)-(EOMONTH(EndDate,-24))))-1 -> 0.03020416743
B16: Benchmark+ | C16: =POWER(1+(SUMIF(InFundPerformance!A:A,EndDate,InFundPerformance!K:K)/SUMIF(InLstFundPerformance!A:A,StartDate-1,InLstFundPerformance!K:K))-1,365/(EndDate-(StartDate-1)))-1 -> 0.02750246232 | D16: =POWER(1+(SUMIF(InLstFundPerformance!A:A,StartDate-1,InLstFundPerformance!K:K)/InLstFundPerformance!M2)-1,365/(EndDate-(StartDate-1)))-1 -> 0.02765334362
B17: Benchmark++ | C17: =C16*0.75 -> 0.02062684674 | D17: =D16*0.75 -> 0.02074000772
B20: Dividend Distributions
B21: ="FYE "&TEXT(EndDate,"YYYY") -> FYE 2014
D22: RM | E22: Units
C23: =TEXT(EndDate,"MMM-YY") -> Apr-14 | D23: =SUMIF(InFundPerformance!A:A,EndDate,InFundPerformance!I:I) -> 165971.29 | E23: =IF(SUMIF(InFundPerformance!A:A,EndDate,InFundPerformance!E:E)=0,0,D23/SUMIF(InFundPerformance!A:A,EndDate,InFundPerformance!E:E)) -> 165458.3691
B24: ="4Q" & TEXT(EndDate,"YY") -> 4Q14 | C24: =TEXT(EOMONTH(EndDate,-1),"MMM-YY") -> Mar-14 | D24: =SUMIF(InFundPerformance!A:A,EOMONTH(EndDate,-1),InFundPerformance!I:I) -> 0 | E24: =IF(SUMIF(InFundPerformance!A:A,EOMONTH(EndDate,-1),InFundPerformance!E:E)=0,0,D24/SUMIF(InFundPerformance!A:A,EOMONTH(EndDate,-1),InFundPerformance!E:E)) -> 0
C25: =TEXT(EOMONTH(EndDate,-2),"MMM-YY") -> Feb-14 | D25: =SUMIF(InFundPerformance!A:A,EOMONTH(EndDate,-2),InFundPerformance!I:I) -> 0 | E25: =IF(SUMIF(InFundPerformance!A:A,EOMONTH(EndDate,-2),InFundPerformance!E:E)=0,0,D25/SUMIF(InFundPerformance!A:A,EOMONTH(EndDate,-2),InFundPerformance!E:E)) -> 0
C26: Subtotal | D26: =SUM(D23:D25) -> 165971.29 | E26: =SUM(E23:E25) -> 165458.3691
C27: =TEXT(EOMONTH(EndDate,-3),"MMM-YY") -> Jan-14 | D27: =SUMIF(InFundPerformance!A:A,EOMONTH(EndDate,-3),InFundPerformance!I:I) -> 0 | E27: =IF(SUMIF(InFundPerformance!A:A,EOMONTH(EndDate,-3),InFundPerformance!E:E)=0,0,D27/SUMIF(InFundPerformance!A:A,EOMONTH(EndDate,-3),InFundPerformance!E:E)) -> 0
B28: ="3Q" & TEXT(EndDate,"YY") -> 3Q14 | C28: =TEXT(EOMONTH(EndDate,-4),"MMM-YY") -> Dec-13 | D28: =SUMIF(InFundPerformance!A:A,EOMONTH(EndDate,-4),InFundPerformance!I:I) -> 0 | E28: =IF(SUMIF(InFundPerformance!A:A,EOMONTH(EndDate,-4),InFundPerformance!E:E)=0,0,D28/SUMIF(InFundPerformance!A:A,EOMONTH(EndDate,-4),InFundPerformance!E:E)) -> 0
C29: =TEXT(EOMONTH(EndDate,-5),"MMM-YY") -> Nov-13 | D29: =SUMIF(InFundPerformance!A:A,EOMONTH(EndDate,-5),InFundPerformance!I:I) -> 0 | E29: =IF(SUMIF(InFundPerformance!A:A,EOMONTH(EndDate,-5),InFundPerformance!E:E)=0,0,D29/SUMIF(InFundPerformance!A:A,EOMONTH(EndDate,-5),InFundPerformance!E:E)) -> 0
C30: Subtotal | D30: =SUM(D27:D29) -> 0 | E30: =SUM(E27:E29) -> 0
C31: =TEXT(EOMONTH(EndDate,-6),"MMM-YY") -> Oct-13 | D31: =SUMIF(InFundPerformance!A:A,EOMONTH(EndDate,-6),InFundPerformance!I:I) -> 0 | E31: =IF(SUMIF(InFundPerformance!A:A,EOMONTH(EndDate,-6),InFundPerformance!E:E)=0,0,D31/SUMIF(InFundPerformance!A:A,EOMONTH(EndDate,-6),InFundPerformance!E:E)) -> 0
B32: ="2Q" & TEXT(EndDate,"YY") -> 2Q14 | C32: =TEXT(EOMONTH(EndDate,-7),"MMM-YY") -> Sep-13 | D32: =SUMIF(InFundPerformance!A:A,EOMONTH(EndDate,-7),InFundPerformance!I:I) -> 0 | E32: =IF(SUMIF(InFundPerformance!A:A,EOMONTH(EndDate,-7),InFundPerformance!E:E)=0,0,D32/SUMIF(InFundPerformance!A:A,EOMONTH(EndDate,-7),InFundPerformance!E:E)) -> 0
C33: =TEXT(EOMONTH(EndDate,-8),"MMM-YY") -> Aug-13 | D33: =SUMIF(InFundPerformance!A:A,EOMONTH(EndDate,-8),InFundPerformance!I:I) -> 0 | E33: =IF(SUMIF(InFundPerformance!A:A,EOMONTH(EndDate,-8),InFundPerformance!E:E)=0,0,D33/SUMIF(InFundPerformance!A:A,EOMONTH(EndDate,-8),InFundPerformance!E:E)) -> 0
C34: Subtotal | D34: =SUM(D31:D33) -> 0 | E34: =SUM(E31:E33) -> 0
C35: =TEXT(EOMONTH(EndDate,-9),"MMM-YY") -> Jul-13 | D35: =SUMIF(InFundPerformance!A:A,EOMONTH(EndDate,-9),InFundPerformance!I:I) -> 0 | E35: =IF(SUMIF(InFundPerformance!A:A,EOMONTH(EndDate,-9),InFundPerformance!E:E)=0,0,D35/SUMIF(InFundPerformance!A:A,EOMONTH(EndDate,-9),InFundPerformance!E:E)) -> 0
B36: ="1Q" & TEXT(EndDate,"YY") -> 1Q14 | C36: =TEXT(EOMONTH(EndDate,-10),"MMM-YY") -> Jun-13 | D36: =SUMIF(InFundPerformance!A:A,EOMONTH(EndDate,-10),InFundPerformance!I:I) -> 0 | E36: =IF(SUMIF(InFundPerformance!A:A,EOMONTH(EndDate,-10),InFundPerformance!E:E)=0,0,D36/SUMIF(InFundPerformance!A:A,EOMONTH(EndDate,-10),InFundPerformance!E:E)) -> 0
C37: =TEXT(EOMONTH(EndDate,-11),"MMM-YY") -> May-13 | D37: =SUMIF(InFundPerformance!A:A,EOMONTH(EndDate,-11),InFundPerformance!I:I) -> 0 | E37: =IF(SUMIF(InFundPerformance!A:A,EOMONTH(EndDate,-11),InFundPerformance!E:E)=0,0,D37/SUMIF(InFundPerformance!A:A,EOMONTH(EndDate,-11),InFundPerformance!E:E)) -> 0
C38: Subtotal | D38: =SUM(D35:D37) -> 0 | E38: =SUM(E35:E37) -> 0
B39: TOTAL | D39: =D26+D30+D34+D38 -> 165971.29 | E39: =E26+E30+E34+E38 -> 165458.3691
B43: ="Fund's Deposit Placement Tenure as at " & TEXT(EndDate,"dd MMM yy") -> Fund's Deposit Placement Tenure as at 30 Apr 14
N46: Month | O46: 2 - 3 mth | P46: 3 - 4 mth | Q46: 4 - 5 mth | R46: 5 - 6 mth | S46: 6 - 7 mth | T46: 7 - 12 mth
M47: Count of Trans | O47: =SUM(COUNTIF(InHolding!CK:CK,"<=90"))/SUM(COUNTIF(InHolding!CK:CK,"<=365")) -> 0.1833333333 | P47: =SUM(COUNTIFS(InHolding!CK:CK,">90",InHolding!CK:CK,"<=120"))/SUM(COUNTIF(InHolding!CK:CK,"<=365")) -> 0.1666666667 | Q47: =SUM(COUNTIFS(InHolding!CK:CK,">120",InHolding!CK:CK,"<=150"))/SUM(COUNTIF(InHolding!CK:CK,"<=365")) -> 0.06666666667 | R47: =SUM(COUNTIFS(InHolding!CK:CK,">150",InHolding!CK:CK,"<=180"))/SUM(COUNTIF(InHolding!CK:CK,"<=365")) -> 0.35 | S47: =SUM(COUNTIFS(InHolding!CK:CK,">180",InHolding!CK:CK,"<=210"))/SUM(COUNTIF(InHolding!CK:CK,"<=365")) -> 0.2333333333 | T47: =SUM(COUNTIF(InHolding!CK:CK,">210"))/SUM(COUNTIF(InHolding!CK:CK,"<=365")) -> 0
B63: ="Investment Exposure to Financial Institutions as at " & TEXT(EndDate,"dd MMM yy") -> Investment Exposure to Financial Institutions as at 30 Apr 14
M64: Count of qEventTrxID
M65: CounterName | N65: Total
M66: Bank Islam Malaysia Berhad | N66: 0.15
M67: Al Rajhi Bank | N67: 0.4666666667
M68: Kuwait Finance House | N68: 0.2666666667
M69: Bank Muamalat Malaysia Berhad | N69: 0.1166666667
B84: Performance of the Fund vs Benchmark - Since Inception

Sheet InFundVSBench (hidden)
A1: AnnualBenchmark | B1: ValDt2 | C1: AnnualFundRtrn | D1: tenor | E1: BenchMark | F1: TwrrRtrn
A2: 2.811505745 | B2: 2011-09-30 | C2: 3.028080112 | D2: 943 | E2: 0.07426277073 | F2: 0.08011900904
A3: 2.805337556 | B3: 2011-10-31 | C3: 3.03493861 | D3: 912 | E3: 0.07157531039 | F3: 0.07756506919
A4: 2.799209406 | B4: 2011-11-30 | C4: 3.034239093 | D4: 882 | E4: 0.06898731409 | F4: 0.07490271363
A5: 2.791728112 | B5: 2011-12-30 | C5: 3.021465587 | D5: 852 | E5: 0.06638324114 | F5: 0.07195485402
A6: 2.783571262 | B6: 2012-01-31 | C6: 3.030502828 | D6: 820 | E6: 0.06362245619 | F6: 0.06937170828
A7: 2.775629876 | B7: 2012-02-29 | C7: 3.03165556 | D7: 791 | E7: 0.06112712101 | F7: 0.06686399609
A8: 2.767063924 | B8: 2012-03-30 | C8: 3.008591699 | D8: 761 | E8: 0.058558031 | F8: 0.06375168452
A9: 2.75779002 | B9: 2012-04-30 | C9: 3.011926544 | D9: 730 | E9: 0.05591634098 | F9: 0.06114570104
A10: 2.748028626 | B10: 2012-05-31 | C10: 3.011514454 | D10: 699 | E10: 0.0532878031 | F10: 0.05846654598
A11: 2.747910258 | B11: 2012-06-29 | C11: 3.007139757 | D11: 670 | E11: 0.05101934125 | F11: 0.05589195024
A12: 2.748083533 | B12: 2012-07-31 | C12: 3.016499236 | D12: 638 | E12: 0.04852752369 | F12: 0.05332006455
A13: 2.748577466 | B13: 2012-08-30 | C13: 3.022113042 | D13: 608 | E13: 0.0462021518 | F13: 0.05084568872
A14: 2.749406434 | B14: 2012-09-28 | C14: 3.019363498 | D14: 579 | E14: 0.04396407554 | F14: 0.04831840087
A15: 2.75024059 | B15: 2012-10-31 | C15: 3.033558917 | D15: 546 | E15: 0.04141984334 | F15: 0.04571831555
A16: 2.749934136 | B16: 2012-11-30 | C16: 3.03744171 | D16: 516 | E16: 0.03909573954 | F16: 0.04320847992
A17: 2.749982206 | B17: 2012-12-31 | C17: 3.04179111 | D17: 485 | E17: 0.03670503823 | F17: 0.04061906184
A18: 2.750474121 | B18: 2013-01-31 | C18: 3.045756849 | D18: 454 | E18: 0.03432531249 | F18: 0.0380238189
A19: 2.751378753 | B19: 2013-02-28 | C19: 3.042087448 | D19: 426 | E19: 0.03218525378 | F19: 0.03559441336
A20: 2.751067257 | B20: 2013-03-29 | C20: 3.011488663 | D20: 397 | E20: 0.0299583542 | F20: 0.03279794562
A21: 2.750246232 | B21: 2013-04-30 | C21: 3.003437045 | D21: 365 | E21: 0.02750246232 | F21: 0.03003437045
A22: 2.749909683 | B22: 2013-05-31 | C22: 2.994347983 | D22: 334 | E22: 0.02513445997 | F22: 0.02736586497
A23: 2.75010669 | B23: 2013-06-28 | C23: 2.964920109 | D23: 306 | E23: 0.02300498107 | F23: 0.0247976996
A24: 2.751151594 | B24: 2013-07-31 | C24: 2.973439816 | D24: 273 | E24: 0.02050656812 | F24: 0.02215737787
A25: 2.752854518 | B25: 2013-08-30 | C25: 2.947941682 | D25: 243 | E25: 0.01824392193 | F25: 0.01953057757
A26: 2.751199521 | B26: 2013-09-30 | C26: 2.94406403 | D26: 212 | E26: 0.01588860784 | F26: 0.01699569999
A27: 2.750086298 | B27: 2013-10-31 | C27: 2.922022276 | D27: 181 | E27: 0.01354416483 | F27: 0.01438484325
A28: 2.749823582 | B28: 2013-11-29 | C28: 2.872631857 | D28: 152 | E28: 0.01136075134 | F28: 0.01186396449
A29: 2.751069279 | B29: 2013-12-31 | C29: 2.844736019 | D29: 120 | E29: 0.008962358843 | F29: 0.009264652881
A30: 2.755170316 | B30: 2014-01-30 | C30: 3.037999148 | D30: 90 | E30: 0.00672417408 | F30: 0.007406717551
A31: 2.758380002 | B31: 2014-02-28 | C31: 3.071430954 | D31: 61 | E31: 0.00455781703 | F31: 0.005068627024
A32: 2.75514926 | B32: 2014-03-31 | C32: 3.065374732 | D32: 30 | E32: 0.002236369329 | F32: 0.002484723496

Sheet InFundPerformance (hidden)
A1: qValDate | B1: NAV | C1: TotalUnitsBF | D1: TotalUnits | E1: BuyPrice | F1: Distribution | G1: TWRRPrice | H1: AccDate | I1: Amount | J1: qIndexBenchmark | K1: Indices | L1: EndDate
A2: 2013-05-02 | B2: 40931204.81 | C2: 0 | D2: 40596906.97 | E2: 1.0082 | F2: 0 | G2: 1.050270082 | J2: MBBGIA | K2: 10469.35 | L2: 52013
A3: 2013-05-03 | B3: 40941479.72 | C3: 0 | D3: 40596906.97 | E3: 1.0085 | F3: 0 | G3: 1.05053373 | J3: MBBGIA | K3: 10470.13 | L3: 52013
A4: 2013-05-06 | B4: 40944904.69 | C4: 0 | D4: 40596906.97 | E4: 1.0086 | F4: 0 | G4: 1.050621613 | J4: MBBGIA | K4: 10472.47 | L4: 52013
A5: 2013-05-07 | B5: 40948325.64 | C5: 0 | D5: 40596906.97 | E5: 1.0087 | F5: 0 | G5: 1.050709393 | J5: MBBGIA | K5: 10473.25 | L5: 52013
A6: 2013-05-08 | B6: 40951755.18 | C6: 0 | D6: 40596906.97 | E6: 1.0087 | F6: 0 | G6: 1.050797392 | J6: MBBGIA | K6: 10474.03 | L6: 52013
A7: 2013-05-09 | B7: 40955184.71 | C7: 0 | D7: 40596906.97 | E7: 1.0088 | F7: 0 | G7: 1.050885392 | J7: MBBGIA | K7: 10474.81 | L7: 52013
A8: 2013-05-10 | B8: 40965473.11 | C8: 0 | D8: 40596906.97 | E8: 1.0091 | F8: 0 | G8: 1.051149386 | J8: MBBGIA | K8: 10475.59 | L8: 52013
A9: 2013-05-13 | B9: 40968902.55 | C9: 0 | D9: 40596906.97 | E9: 1.0092 | F9: 0 | G9: 1.051237384 | J9: MBBGIA | K9: 10477.93 | L9: 52013
A10: 2013-05-14 | B10: 40972331.95 | C10: 0 | D10: 40596906.97 | E10: 1.0092 | F10: 0 | G10: 1.05132538 | J10: MBBGIA | K10: 10478.71 | L10: 52013
A11: 2013-05-15 | B11: 40975762.59 | C11: 0 | D11: 40596906.97 | E11: 1.0093 | F11: 0 | G11: 1.051413408 | J11: MBBGIA | K11: 10479.49 | L11: 52013
A12: 2013-05-16 | B12: 40979193.19 | C12: 0 | D12: 40596906.97 | E12: 1.0094 | F12: 0 | G12: 1.051501435 | J12: MBBGIA | K12: 10480.27 | L12: 52013
A13: 2013-05-17 | B13: 40989484.71 | C13: 0 | D13: 40596906.97 | E13: 1.0097 | F13: 0 | G13: 1.05176551 | J13: MBBGIA | K13: 10481.05 | L13: 52013
A14: 2013-05-20 | B14: 40992915.26 | C14: 0 | D14: 40596906.97 | E14: 1.0098 | F14: 0 | G14: 1.051853535 | J14: MBBGIA | K14: 10483.39 | L14: 52013
A15: 2013-05-21 | B15: 40996345.68 | C15: 0 | D15: 40596906.97 | E15: 1.0098 | F15: 0 | G15: 1.051941558 | J15: MBBGIA | K15: 10484.17 | L15: 52013
A16: 2013-05-22 | B16: 40999776.12 | C16: 0 | D16: 40596906.97 | E16: 1.0099 | F16: 0 | G16: 1.052029581 | J16: MBBGIA | K16: 10484.95 | L16: 52013
A17: 2013-05-23 | B17: 41013501.41 | C17: 0 | D17: 40596906.97 | E17: 1.0103 | F17: 0 | G17: 1.052381764 | J17: MBBGIA | K17: 10485.73 | L17: 52013
A18: 2013-05-27 | B18: 41016931.68 | C18: 0 | D18: 40596906.97 | E18: 1.0103 | F18: 0 | G18: 1.052469782 | J18: MBBGIA | K18: 10488.85 | L18: 52013
A19: 2013-05-28 | B19: 41020362 | C19: 0 | D19: 40596906.97 | E19: 1.0104 | F19: 0 | G19: 1.052557802 | J19: MBBGIA | K19: 10489.63 | L19: 52013
A20: 2013-05-29 | B20: 41023792.25 | C20: 0 | D20: 40596906.97 | E20: 1.0105 | F20: 0 | G20: 1.05264582 | J20: MBBGIA | K20: 10490.41 | L20: 52013
A21: 2013-05-30 | B21: 41027222.49 | C21: 0 | D21: 40596906.97 | E21: 1.0106 | F21: 0 | G21: 1.052733838 | J21: MBBGIA | K21: 10491.19 | L21: 52013
A22: 2013-05-31 | B22: 41030652.65 | C22: 0 | D22: 40655775.27 | E22: 1.0092 | F22: 0 | G22: 1.052821854 | J22: MBBGIA | K22: 10491.97 | L22: 52013
A23: 2013-06-03 | B23: 41040942.99 | C23: 0 | D23: 40655775.27 | E23: 1.0095 | F23: 0 | G23: 1.053085898 | J23: MBBGIA | K23: 10494.31 | L23: 62013
A24: 2013-06-04 | B24: 41044373.06 | C24: 0 | D24: 40655775.27 | E24: 1.0096 | F24: 0 | G24: 1.053173912 | J24: MBBGIA | K24: 10495.09 | L24: 62013
A25: 2013-06-05 | B25: 41047804.54 | C25: 0 | D25: 40655775.27 | E25: 1.0096 | F25: 0 | G25: 1.053261961 | J25: MBBGIA | K25: 10495.87 | L25: 62013
A26: 2013-06-06 | B26: 41051233.54 | C26: 0 | D26: 40655775.27 | E26: 1.0097 | F26: 0 | G26: 1.053349947 | J26: MBBGIA | K26: 10496.65 | L26: 62013
A27: 2013-06-07 | B27: 41061520.4 | C27: 0 | D27: 40655775.27 | E27: 1.01 | F27: 0 | G27: 1.053613902 | J27: MBBGIA | K27: 10497.43 | L27: 62013
A28: 2013-06-10 | B28: 41064949.33 | C28: 0 | D28: 40655775.27 | E28: 1.0101 | F28: 0 | G28: 1.053701886 | J28: MBBGIA | K28: 10499.77 | L28: 62013
A29: 2013-06-11 | B29: 41068378.24 | C29: 0 | D29: 40655775.27 | E29: 1.0101 | F29: 0 | G29: 1.05378987 | J29: MBBGIA | K29: 10500.55 | L29: 62013
A30: 2013-06-12 | B30: 41071808.95 | C30: 0 | D30: 40655775.27 | E30: 1.0102 | F30: 0 | G30: 1.0538779 | J30: MBBGIA | K30: 10501.33 | L30: 62013
A31: 2013-06-13 | B31: 41075235.77 | C31: 0 | D31: 40655775.27 | E31: 1.0103 | F31: 0 | G31: 1.05396583 | J31: MBBGIA | K31: 10502.11 | L31: 62013
A32: 2013-06-14 | B32: 41085515.95 | C32: 0 | D32: 40655775.27 | E32: 1.0106 | F32: 0 | G32: 1.054229613 | J32: MBBGIA | K32: 10502.89 | L32: 62013
A33: 2013-06-17 | B33: 41088942.66 | C33: 0 | D33: 40655775.27 | E33: 1.0107 | F33: 0 | G33: 1.054317541 | J33: MBBGIA | K33: 10505.23 | L33: 62013
A34: 2013-06-18 | B34: 41092369.32 | C34: 0 | D34: 40655775.27 | E34: 1.0107 | F34: 0 | G34: 1.054405467 | J34: MBBGIA | K34: 10506.01 | L34: 62013
A35: 2013-06-19 | B35: 41095795.96 | C35: 0 | D35: 40655775.27 | E35: 1.0108 | F35: 0 | G35: 1.054493392 | J35: MBBGIA | K35: 10506.79 | L35: 62013
A36: 2013-06-20 | B36: 41099221.68 | C36: 0 | D36: 40655775.27 | E36: 1.0109 | F36: 0 | G36: 1.054581294 | J36: MBBGIA | K36: 10507.57 | L36: 62013
A37: 2013-06-21 | B37: 41109498.59 | C37: 0 | D37: 40655775.27 | E37: 1.0112 | F37: 0 | G37: 1.054844993 | J37: MBBGIA | K37: 10508.35 | L37: 62013
A38: 2013-06-24 | B38: 41112924.19 | C38: 0 | D38: 40655775.27 | E38: 1.0112 | F38: 0 | G38: 1.054932892 | J38: MBBGIA | K38: 10510.69 | L38: 62013
A39: 2013-06-25 | B39: 41116349.79 | C39: 0 | D39: 40655775.27 | E39: 1.0113 | F39: 0 | G39: 1.055020791 | J39: MBBGIA | K39: 10511.47 | L39: 62013
A40: 2013-06-26 | B40: 41119775.18 | C40: 0 | D40: 40655775.27 | E40: 1.0114 | F40: 0 | G40: 1.055108685 | J40: MBBGIA | K40: 10512.25 | L40: 62013
A41: 2013-06-27 | B41: 41123200.53 | C41: 0 | D41: 40655775.27 | E41: 1.0115 | F41: 0 | G41: 1.055196577 | J41: MBBGIA | K41: 10513.03 | L41: 62013
A42: 2013-06-28 | B42: 41133476.36 | C42: 0 | D42: 40742671.15 | E42: 1.0096 | F42: 0 | G42: 1.055460249 | J42: MBBGIA | K42: 10513.81 | L42: 62013
A43: 2013-07-01 | B43: 41136901.56 | C43: 0 | D43: 40742671.15 | E43: 1.0097 | F43: 0 | G43: 1.055548137 | J43: MBBGIA | K43: 10516.15 | L43: 72013
A44: 2013-07-02 | B44: 41140326.77 | C44: 0 | D44: 40742671.15 | E44: 1.0098 | F44: 0 | G44: 1.055636026 | J44: MBBGIA | K44: 10516.93 | L44: 72013
A45: 2013-07-03 | B45: 41143752 | C45: 0 | D45: 40742671.15 | E45: 1.0098 | F45: 0 | G45: 1.055723915 | J45: MBBGIA | K45: 10517.71 | L45: 72013
A46: 2013-07-04 | B46: 41147178.21 | C46: 0 | D46: 40742671.15 | E46: 1.0099 | F46: 0 | G46: 1.05581183 | J46: MBBGIA | K46: 10518.49 | L46: 72013
A47: 2013-07-05 | B47: 41157456.55 | C47: 0 | D47: 40742671.15 | E47: 1.0102 | F47: 0 | G47: 1.056075566 | J47: MBBGIA | K47: 10519.27 | L47: 72013
A48: 2013-07-08 | B48: 41160882.65 | C48: 0 | D48: 40742671.15 | E48: 1.0103 | F48: 0 | G48: 1.056163477 | J48: MBBGIA | K48: 10521.61 | L48: 72013
A49: 2013-07-09 | B49: 41164308.7 | C49: 0 | D49: 40742671.15 | E49: 1.0103 | F49: 0 | G49: 1.056251388 | J49: MBBGIA | K49: 10522.39 | L49: 72013
A50: 2013-07-10 | B50: 41167734.74 | C50: 0 | D50: 40742671.15 | E50: 1.0104 | F50: 0 | G50: 1.056339298 | J50: MBBGIA | K50: 10523.17 | L50: 72013
A51: 2013-07-11 | B51: 41171163.02 | C51: 0 | D51: 40742671.15 | E51: 1.0105 | F51: 0 | G51: 1.056427266 | J51: MBBGIA | K51: 10523.95 | L51: 72013
A52: 2013-07-12 | B52: 41181447.41 | C52: 0 | D52: 40742671.15 | E52: 1.0108 | F52: 0 | G52: 1.056691157 | J52: MBBGIA | K52: 10524.73 | L52: 72013
A53: 2013-07-15 | B53: 41184875.55 | C53: 0 | D53: 40742671.15 | E53: 1.0109 | F53: 0 | G53: 1.056779121 | J53: MBBGIA | K53: 10527.07 | L53: 72013
A54: 2013-07-16 | B54: 41188303.65 | C54: 0 | D54: 40742671.15 | E54: 1.0109 | F54: 0 | G54: 1.056867084 | J54: MBBGIA | K54: 10527.85 | L54: 72013
A55: 2013-07-17 | B55: 41191731.69 | C55: 0 | D55: 40742671.15 | E55: 1.011 | F55: 0 | G55: 1.056955045 | J55: MBBGIA | K55: 10528.63 | L55: 72013
A56: 2013-07-18 | B56: 41195160.49 | C56: 0 | D56: 40742671.15 | E56: 1.0111 | F56: 0 | G56: 1.057043026 | J56: MBBGIA | K56: 10529.41 | L56: 72013
A57: 2013-07-19 | B57: 41205446.69 | C57: 0 | D57: 40742671.15 | E57: 1.0114 | F57: 0 | G57: 1.057306964 | J57: MBBGIA | K57: 10530.19 | L57: 72013
A58: 2013-07-22 | B58: 41208875.39 | C58: 0 | D58: 40742671.15 | E58: 1.0114 | F58: 0 | G58: 1.057394942 | J58: MBBGIA | K58: 10532.53 | L58: 72013
A59: 2013-07-23 | B59: 41212304.08 | C59: 0 | D59: 40742671.15 | E59: 1.0115 | F59: 0 | G59: 1.05748292 | J59: MBBGIA | K59: 10533.31 | L59: 72013
A60: 2013-07-24 | B60: 41215732.72 | C60: 0 | D60: 40742671.15 | E60: 1.0116 | F60: 0 | G60: 1.057570897 | J60: MBBGIA | K60: 10534.09 | L60: 72013
A61: 2013-07-25 | B61: 41219160.67 | C61: 0 | D61: 40742671.15 | E61: 1.0117 | F61: 0 | G61: 1.057658856 | J61: MBBGIA | K61: 10534.87 | L61: 72013
A62: 2013-07-26 | B62: 41229444.25 | C62: 0 | D62: 40742671.15 | E62: 1.0119 | F62: 0 | G62: 1.057922727 | J62: MBBGIA | K62: 10535.65 | L62: 72013
A63: 2013-07-29 | B63: 41232872.1 | C63: 0 | D63: 40742671.15 | E63: 1.012 | F63: 0 | G63: 1.058010683 | J63: MBBGIA | K63: 10537.99 | L63: 72013
A64: 2013-07-30 | B64: 41236299.92 | C64: 0 | D64: 40742671.15 | E64: 1.0121 | F64: 0 | G64: 1.058098639 | J64: MBBGIA | K64: 10538.77 | L64: 72013
A65: 2013-07-31 | B65: 41239727.72 | C65: 0 | D65: 40889947.25 | E65: 1.0086 | F65: 0 | G65: 1.058186595 | J65: MBBGIA | K65: 10539.55 | L65: 72013
A66: 2013-08-01 | B66: 41243155.46 | C66: 0 | D66: 40889947.25 | E66: 1.0086 | F66: 0 | G66: 1.058274548 | J66: MBBGIA | K66: 10540.33 | L66: 82013
A67: 2013-08-02 | B67: 41253438.47 | C67: 0 | D67: 40889947.25 | E67: 1.0089 | F67: 0 | G67: 1.058538404 | J67: MBBGIA | K67: 10541.11 | L67: 82013
A68: 2013-08-05 | B68: 41256866.14 | C68: 0 | D68: 40889947.25 | E68: 1.009 | F68: 0 | G68: 1.058626356 | J68: MBBGIA | K68: 10543.45 | L68: 82013
A69: 2013-08-06 | B69: 41260293.76 | C69: 0 | D69: 40889947.25 | E69: 1.0091 | F69: 0 | G69: 1.058714307 | J69: MBBGIA | K69: 10544.23 | L69: 82013
A70: 2013-08-07 | B70: 41277425.13 | C70: 0 | D70: 40889947.25 | E70: 1.0095 | F70: 0 | G70: 1.059153887 | J70: MBBGIA | K70: 10545.01 | L70: 82013
A71: 2013-08-12 | B71: 41280851.39 | C71: 0 | D71: 40889947.25 | E71: 1.0096 | F71: 0 | G71: 1.059241803 | J71: MBBGIA | K71: 10548.91 | L71: 82013
A72: 2013-08-13 | B72: 41284277.6 | C72: 0 | D72: 40889947.25 | E72: 1.0096 | F72: 0 | G72: 1.059329718 | J72: MBBGIA | K72: 10549.69 | L72: 82013
A73: 2013-08-14 | B73: 41287703.85 | C73: 0 | D73: 40889947.25 | E73: 1.0097 | F73: 0 | G73: 1.059417633 | J73: MBBGIA | K73: 10550.47 | L73: 82013
A74: 2013-08-15 | B74: 41291130.01 | C74: 0 | D74: 40889947.25 | E74: 1.0098 | F74: 0 | G74: 1.059505546 | J74: MBBGIA | K74: 10551.25 | L74: 82013
A75: 2013-08-16 | B75: 41301409.22 | C75: 0 | D75: 40889947.25 | E75: 1.0101 | F75: 0 | G75: 1.059769305 | J75: MBBGIA | K75: 10552.03 | L75: 82013
A76: 2013-08-19 | B76: 41304835.74 | C76: 0 | D76: 40889947.25 | E76: 1.0101 | F76: 0 | G76: 1.059857227 | J76: MBBGIA | K76: 10554.37 | L76: 82013
A77: 2013-08-20 | B77: 41308262.19 | C77: 0 | D77: 40889947.25 | E77: 1.0102 | F77: 0 | G77: 1.059945148 | J77: MBBGIA | K77: 10555.15 | L77: 82013
A78: 2013-08-21 | B78: 41311688.66 | C78: 0 | D78: 40889947.25 | E78: 1.0103 | F78: 0 | G78: 1.060033069 | J78: MBBGIA | K78: 10555.93 | L78: 82013
A79: 2013-08-22 | B79: 41315117.29 | C79: 0 | D79: 40889947.25 | E79: 1.0104 | F79: 0 | G79: 1.060121046 | J79: MBBGIA | K79: 10556.71 | L79: 82013
A80: 2013-08-23 | B80: 41325402.98 | C80: 0 | D80: 40889947.25 | E80: 1.0106 | F80: 0 | G80: 1.06038497 | J80: MBBGIA | K80: 10557.49 | L80: 82013
A81: 2013-08-26 | B81: 41328831.51 | C81: 0 | D81: 40889947.25 | E81: 1.0107 | F81: 0 | G81: 1.060472944 | J81: MBBGIA | K81: 10559.83 | L81: 82013
A82: 2013-08-27 | B82: 41332260.06 | C82: 0 | D82: 40889947.25 | E82: 1.0108 | F82: 0 | G82: 1.060560919 | J82: MBBGIA | K82: 10560.61 | L82: 82013
A83: 2013-08-28 | B83: 41335688.52 | C83: 0 | D83: 40889947.25 | E83: 1.0109 | F83: 0 | G83: 1.060648891 | J83: MBBGIA | K83: 10561.39 | L83: 82013
A84: 2013-08-29 | B84: 41339119.45 | C84: 0 | D84: 40889947.25 | E84: 1.011 | F84: 0 | G84: 1.060736927 | J84: MBBGIA | K84: 10562.18 | L84: 82013
A85: 2013-08-30 | B85: 41345981.06 | C85: 0 | D85: 41059958.05 | E85: 1.007 | F85: 0 | G85: 1.060912991 | J85: MBBGIA | K85: 10562.97 | L85: 82013
A86: 2013-09-02 | B86: 41352842.65 | C86: 0 | D86: 41059958.05 | E86: 1.0071 | F86: 0 | G86: 1.061089056 | J86: MBBGIA | K86: 10565.34 | L86: 92013
A87: 2013-09-03 | B87: 41356273.43 | C87: 0 | D87: 41059958.05 | E87: 1.0072 | F87: 0 | G87: 1.061177087 | J87: MBBGIA | K87: 10566.13 | L87: 92013
A88: 2013-09-04 | B88: 41359704.15 | C88: 0 | D88: 41059958.05 | E88: 1.0073 | F88: 0 | G88: 1.061265118 | J88: MBBGIA | K88: 10566.92 | L88: 92013
A89: 2013-09-05 | B89: 41363140.36 | C89: 0 | D89: 41059958.05 | E89: 1.0074 | F89: 0 | G89: 1.061353289 | J89: MBBGIA | K89: 10567.71 | L89: 92013
A90: 2013-09-06 | B90: 41373448.81 | C90: 0 | D90: 41059958.05 | E90: 1.0076 | F90: 0 | G90: 1.061617797 | J90: MBBGIA | K90: 10568.5 | L90: 92013
A91: 2013-09-09 | B91: 41376884.93 | C91: 0 | D91: 41059958.05 | E91: 1.0077 | F91: 0 | G91: 1.061705966 | J91: MBBGIA | K91: 10570.87 | L91: 92013
A92: 2013-09-10 | B92: 41380321.03 | C92: 0 | D92: 41059958.05 | E92: 1.0078 | F92: 0 | G92: 1.061794134 | J92: MBBGIA | K92: 10571.66 | L92: 92013
A93: 2013-09-11 | B93: 41383757.13 | C93: 0 | D93: 41059958.05 | E93: 1.0079 | F93: 0 | G93: 1.061882303 | J93: MBBGIA | K93: 10572.45 | L93: 92013
A94: 2013-09-12 | B94: 41387191.47 | C94: 0 | D94: 41059958.05 | E94: 1.008 | F94: 0 | G94: 1.061970426 | J94: MBBGIA | K94: 10573.24 | L94: 92013
A95: 2013-09-13 | B95: 41400928.32 | C95: 0 | D95: 41059958.05 | E95: 1.0083 | F95: 0 | G95: 1.062322905 | J95: MBBGIA | K95: 10574.03 | L95: 92013
A96: 2013-09-17 | B96: 41404362.51 | C96: 0 | D96: 41059958.05 | E96: 1.0084 | F96: 0 | G96: 1.062411024 | J96: MBBGIA | K96: 10577.19 | L96: 92013
A97: 2013-09-18 | B97: 41407796.7 | C97: 0 | D97: 41059958.05 | E97: 1.0085 | F97: 0 | G97: 1.062499143 | J97: MBBGIA | K97: 10577.98 | L97: 92013
A98: 2013-09-19 | B98: 41411230.87 | C98: 0 | D98: 41059958.05 | E98: 1.0086 | F98: 0 | G98: 1.062587262 | J98: MBBGIA | K98: 10578.77 | L98: 92013
A99: 2013-09-20 | B99: 41421539.37 | C99: 0 | D99: 41059958.05 | E99: 1.0088 | F99: 0 | G99: 1.062851772 | J99: MBBGIA | K99: 10579.56 | L99: 92013
A100: 2013-09-23 | B100: 41424975.49 | C100: 0 | D100: 41059958.05 | E100: 1.0089 | F100: 0 | G100: 1.062939941 | J100: MBBGIA | K100: 10581.93 | L100: 92013
A101: 2013-09-24 | B101: 41428411.62 | C101: 0 | D101: 41059958.05 | E101: 1.009 | F101: 0 | G101: 1.06302811 | J101: MBBGIA | K101: 10582.72 | L101: 92013
A102: 2013-09-25 | B102: 41431847.69 | C102: 0 | D102: 41059958.05 | E102: 1.0091 | F102: 0 | G102: 1.063116277 | J102: MBBGIA | K102: 10583.51 | L102: 92013
A103: 2013-09-26 | B103: 41435285.55 | C103: 0 | D103: 41059958.05 | E103: 1.0091 | F103: 0 | G103: 1.063204491 | J103: MBBGIA | K103: 10584.3 | L103: 92013
A104: 2013-09-27 | B104: 41445598.81 | C104: 0 | D104: 41059958.05 | E104: 1.0094 | F104: 0 | G104: 1.063469123 | J104: MBBGIA | K104: 10585.09 | L104: 92013
A105: 2013-09-30 | B105: 41449036.56 | C105: 0 | D105: 41172476.55 | E105: 1.0067 | F105: 0 | G105: 1.063557333 | J105: MBBGIA | K105: 10587.46 | L105: 92013
A106: 2013-10-01 | B106: 41452474.24 | C106: 0 | D106: 41172476.55 | E106: 1.0068 | F106: 0 | G106: 1.063645542 | J106: MBBGIA | K106: 10588.25 | L106: 102013
A107: 2013-10-02 | B107: 41455911.94 | C107: 0 | D107: 41172476.55 | E107: 1.0069 | F107: 0 | G107: 1.063733752 | J107: MBBGIA | K107: 10589.04 | L107: 102013
A108: 2013-10-03 | B108: 41459349.61 | C108: 0 | D108: 41172476.55 | E108: 1.007 | F108: 0 | G108: 1.06382196 | J108: MBBGIA | K108: 10589.83 | L108: 102013
A109: 2013-10-04 | B109: 41469666.07 | C109: 0 | D109: 41172476.55 | E109: 1.0072 | F109: 0 | G109: 1.064086674 | J109: MBBGIA | K109: 10590.62 | L109: 102013
A110: 2013-10-07 | B110: 41473104.86 | C110: 0 | D110: 41172476.55 | E110: 1.0073 | F110: 0 | G110: 1.064174912 | J110: MBBGIA | K110: 10592.99 | L110: 102013
A111: 2013-10-08 | B111: 41476543.66 | C111: 0 | D111: 41172476.55 | E111: 1.0074 | F111: 0 | G111: 1.064263149 | J111: MBBGIA | K111: 10593.78 | L111: 102013
A112: 2013-10-09 | B112: 41479982.39 | C112: 0 | D112: 41172476.55 | E112: 1.0075 | F112: 0 | G112: 1.064351385 | J112: MBBGIA | K112: 10594.57 | L112: 102013
A113: 2013-10-10 | B113: 41483422.48 | C113: 0 | D113: 41172476.55 | E113: 1.0076 | F113: 0 | G113: 1.064439655 | J113: MBBGIA | K113: 10595.36 | L113: 102013
A114: 2013-10-11 | B114: 41493742.4 | C114: 0 | D114: 41172476.55 | E114: 1.0078 | F114: 0 | G114: 1.064704458 | J114: MBBGIA | K114: 10596.15 | L114: 102013
A115: 2013-10-14 | B115: 41500622.26 | C115: 0 | D115: 41172476.55 | E115: 1.008 | F115: 0 | G115: 1.064880991 | J115: MBBGIA | K115: 10598.52 | L115: 102013
A116: 2013-10-16 | B116: 41504062.13 | C116: 0 | D116: 41172476.55 | E116: 1.0081 | F116: 0 | G116: 1.064969256 | J116: MBBGIA | K116: 10600.1 | L116: 102013
A117: 2013-10-17 | B117: 41507502.01 | C117: 0 | D117: 41172476.55 | E117: 1.0081 | F117: 0 | G117: 1.065057522 | J117: MBBGIA | K117: 10600.89 | L117: 102013
A118: 2013-10-18 | B118: 41517829.85 | C118: 0 | D118: 41172476.55 | E118: 1.0084 | F118: 0 | G118: 1.065322528 | J118: MBBGIA | K118: 10601.68 | L118: 102013
A119: 2013-10-21 | B119: 41521272.46 | C119: 0 | D119: 41172476.55 | E119: 1.0085 | F119: 0 | G119: 1.065410863 | J119: MBBGIA | K119: 10604.05 | L119: 102013
A120: 2013-10-22 | B120: 41524715.04 | C120: 0 | D120: 41172476.55 | E120: 1.0086 | F120: 0 | G120: 1.065499198 | J120: MBBGIA | K120: 10604.84 | L120: 102013
A121: 2013-10-23 | B121: 41528159.91 | C121: 0 | D121: 41172476.55 | E121: 1.0086 | F121: 0 | G121: 1.065587591 | J121: MBBGIA | K121: 10605.63 | L121: 102013
A122: 2013-10-24 | B122: 41531604.77 | C122: 0 | D122: 41172476.55 | E122: 1.0087 | F122: 0 | G122: 1.065675984 | J122: MBBGIA | K122: 10606.42 | L122: 102013
A123: 2013-10-25 | B123: 41541939.09 | C123: 0 | D123: 41172476.55 | E123: 1.009 | F123: 0 | G123: 1.065941156 | J123: MBBGIA | K123: 10607.21 | L123: 102013
A124: 2013-10-28 | B124: 41545383.84 | C124: 0 | D124: 41172476.55 | E124: 1.0091 | F124: 0 | G124: 1.066029547 | J124: MBBGIA | K124: 10609.58 | L124: 102013
A125: 2013-10-29 | B125: 41548828.56 | C125: 0 | D125: 41172476.55 | E125: 1.0091 | F125: 0 | G125: 1.066117936 | J125: MBBGIA | K125: 10610.37 | L125: 102013
A126: 2013-10-30 | B126: 41552273.26 | C126: 0 | D126: 41172476.55 | E126: 1.0092 | F126: 0 | G126: 1.066206325 | J126: MBBGIA | K126: 10611.16 | L126: 102013
A127: 2013-10-31 | B127: 41555719.44 | C127: 0 | D127: 41256852.02 | E127: 1.0072 | F127: 0 | G127: 1.066294752 | J127: MBBGIA | K127: 10611.95 | L127: 102013
A128: 2013-11-01 | B128: 41566057.69 | C128: 0 | D128: 41256852.02 | E128: 1.0075 | F128: 0 | G128: 1.066560025 | J128: MBBGIA | K128: 10612.74 | L128: 112013
A129: 2013-11-04 | B129: 41572949.83 | C129: 0 | D129: 41256852.02 | E129: 1.0077 | F129: 0 | G129: 1.066736873 | J129: MBBGIA | K129: 10615.11 | L129: 112013
A130: 2013-11-06 | B130: 41576395.84 | C130: 0 | D130: 41256852.02 | E130: 1.0077 | F130: 0 | G130: 1.066825296 | J130: MBBGIA | K130: 10616.69 | L130: 112013
A131: 2013-11-07 | B131: 41579844.88 | C131: 0 | D131: 41256852.02 | E131: 1.0078 | F131: 0 | G131: 1.066913796 | J131: MBBGIA | K131: 10617.48 | L131: 112013
A132: 2013-11-08 | B132: 41590188.36 | C132: 0 | D132: 41256852.02 | E132: 1.0081 | F132: 0 | G132: 1.067179204 | J132: MBBGIA | K132: 10618.27 | L132: 112013
A133: 2013-11-11 | B133: 41593636.16 | C133: 0 | D133: 41256852.02 | E133: 1.0082 | F133: 0 | G133: 1.067267672 | J133: MBBGIA | K133: 10620.64 | L133: 112013
A134: 2013-11-12 | B134: 41597083.92 | C134: 0 | D134: 41256852.02 | E134: 1.0082 | F134: 0 | G134: 1.06735614 | J134: MBBGIA | K134: 10621.43 | L134: 112013
A135: 2013-11-13 | B135: 41600535.62 | C135: 0 | D135: 41256852.02 | E135: 1.0083 | F135: 0 | G135: 1.067444708 | J135: MBBGIA | K135: 10622.22 | L135: 112013
A136: 2013-11-14 | B136: 41603987.28 | C136: 0 | D136: 41256852.02 | E136: 1.0084 | F136: 0 | G136: 1.067533276 | J136: MBBGIA | K136: 10623.01 | L136: 112013
A137: 2013-11-15 | B137: 41614342.04 | C137: 0 | D137: 41256852.02 | E137: 1.0087 | F137: 0 | G137: 1.067798973 | J137: MBBGIA | K137: 10623.8 | L137: 112013
A138: 2013-11-18 | B138: 41617793.61 | C138: 0 | D138: 41256852.02 | E138: 1.0087 | F138: 0 | G138: 1.067887538 | J138: MBBGIA | K138: 10626.17 | L138: 112013
A139: 2013-11-19 | B139: 41621245.14 | C139: 0 | D139: 41256852.02 | E139: 1.0088 | F139: 0 | G139: 1.067976102 | J139: MBBGIA | K139: 10626.96 | L139: 112013
A140: 2013-11-20 | B140: 41624696.64 | C140: 0 | D140: 41256852.02 | E140: 1.0089 | F140: 0 | G140: 1.068064665 | J140: MBBGIA | K140: 10627.75 | L140: 112013
A141: 2013-11-21 | B141: 41628151.03 | C141: 0 | D141: 41256852.02 | E141: 1.009 | F141: 0 | G141: 1.068153303 | J141: MBBGIA | K141: 10628.54 | L141: 112013
A142: 2013-11-22 | B142: 41638513.99 | C142: 0 | D142: 41256852.02 | E142: 1.0093 | F142: 0 | G142: 1.06841921 | J142: MBBGIA | K142: 10629.33 | L142: 112013
A143: 2013-11-25 | B143: 41641968.22 | C143: 0 | D143: 41256852.02 | E143: 1.0093 | F143: 0 | G143: 1.068507844 | J143: MBBGIA | K143: 10631.7 | L143: 112013
A144: 2013-11-26 | B144: 41645422.52 | C144: 0 | D144: 41256852.02 | E144: 1.0094 | F144: 0 | G144: 1.068596479 | J144: MBBGIA | K144: 10632.49 | L144: 112013
A145: 2013-11-27 | B145: 41648876.76 | C145: 0 | D145: 41256852.02 | E145: 1.0095 | F145: 0 | G145: 1.068685113 | J145: MBBGIA | K145: 10633.28 | L145: 112013
A146: 2013-11-28 | B146: 41652333.88 | C146: 0 | D146: 41256852.02 | E146: 1.0096 | F146: 0 | G146: 1.06877382 | J146: MBBGIA | K146: 10634.07 | L146: 112013
A147: 2013-11-29 | B147: 41659248.11 | C147: 0 | D147: 41324460.42 | E147: 1.0081 | F147: 0 | G147: 1.068951235 | J147: MBBGIA | K147: 10634.86 | L147: 112013
A148: 2013-12-02 | B148: 41666162.22 | C148: 0 | D148: 41324460.42 | E148: 1.0083 | F148: 0 | G148: 1.069128647 | J148: MBBGIA | K148: 10637.23 | L148: 122013
A149: 2013-12-03 | B149: 41669619.25 | C149: 0 | D149: 41324460.42 | E149: 1.0084 | F149: 0 | G149: 1.069217352 | J149: MBBGIA | K149: 10638.02 | L149: 122013
A150: 2013-12-04 | B150: 41673076.24 | C150: 0 | D150: 41324460.42 | E150: 1.0084 | F150: 0 | G150: 1.069306057 | J150: MBBGIA | K150: 10638.81 | L150: 122013
A151: 2013-12-05 | B151: 41676535.94 | C151: 0 | D151: 41324460.42 | E151: 1.0085 | F151: 0 | G151: 1.069394831 | J151: MBBGIA | K151: 10639.6 | L151: 122013
A152: 2013-12-06 | B152: 41686914.92 | C152: 0 | D152: 41324460.42 | E152: 1.0088 | F152: 0 | G152: 1.069661149 | J152: MBBGIA | K152: 10640.39 | L152: 122013
A153: 2013-12-09 | B153: 41690374.54 | C153: 0 | D153: 41324460.42 | E153: 1.0089 | F153: 0 | G153: 1.069749921 | J153: MBBGIA | K153: 10642.76 | L153: 122013
A154: 2013-12-10 | B154: 41693834.14 | C154: 0 | D154: 41324460.42 | E154: 1.0089 | F154: 0 | G154: 1.069838692 | J154: MBBGIA | K154: 10643.55 | L154: 122013
A155: 2013-12-11 | B155: 41697293.72 | C155: 0 | D155: 41324460.42 | E155: 1.009 | F155: 0 | G155: 1.069927463 | J155: MBBGIA | K155: 10644.34 | L155: 122013
A156: 2013-12-12 | B156: 41700754.63 | C156: 0 | D156: 41324460.42 | E156: 1.0091 | F156: 0 | G156: 1.070016268 | J156: MBBGIA | K156: 10645.13 | L156: 122013
A157: 2013-12-13 | B157: 41711137.03 | C157: 0 | D157: 41324460.42 | E157: 1.0094 | F157: 0 | G157: 1.070282674 | J157: MBBGIA | K157: 10645.92 | L157: 122013
A158: 2013-12-16 | B158: 41714597.83 | C158: 0 | D158: 41324460.42 | E158: 1.0094 | F158: 0 | G158: 1.070371476 | J158: MBBGIA | K158: 10648.29 | L158: 122013
A159: 2013-12-17 | B159: 41718058.57 | C159: 0 | D159: 41324460.42 | E159: 1.0095 | F159: 0 | G159: 1.070460276 | J159: MBBGIA | K159: 10649.08 | L159: 122013
A160: 2013-12-18 | B160: 41721519.32 | C160: 0 | D160: 41324460.42 | E160: 1.0096 | F160: 0 | G160: 1.070549077 | J160: MBBGIA | K160: 10649.87 | L160: 122013
A161: 2013-12-19 | B161: 41724981.5 | C161: 0 | D161: 41324460.42 | E161: 1.0097 | F161: 0 | G161: 1.070637914 | J161: MBBGIA | K161: 10650.66 | L161: 122013
A162: 2013-12-20 | B162: 41735367.69 | C162: 0 | D162: 41324460.42 | E162: 1.0099 | F162: 0 | G162: 1.070904418 | J162: MBBGIA | K162: 10651.45 | L162: 122013
A163: 2013-12-23 | B163: 41738829.71 | C163: 0 | D163: 41324460.42 | E163: 1.01 | F163: 0 | G163: 1.070993251 | J163: MBBGIA | K163: 10653.82 | L163: 122013
A164: 2013-12-24 | B164: 41745757.32 | C164: 0 | D164: 41324460.42 | E164: 1.0102 | F164: 0 | G164: 1.07117101 | J164: MBBGIA | K164: 10654.61 | L164: 122013
A165: 2013-12-26 | B165: 41749221.1 | C165: 0 | D165: 41324460.42 | E165: 1.0103 | F165: 0 | G165: 1.071259888 | J165: MBBGIA | K165: 10656.19 | L165: 122013
A166: 2013-12-27 | B166: 41759612.18 | C166: 0 | D166: 41324460.42 | E166: 1.0105 | F166: 0 | G166: 1.071526517 | J166: MBBGIA | K166: 10656.98 | L166: 122013
A167: 2013-12-30 | B167: 41763075.83 | C167: 0 | D167: 41324460.42 | E167: 1.0106 | F167: 0 | G167: 1.071615392 | J167: MBBGIA | K167: 10659.35 | L167: 122013
A168: 2013-12-31 | B168: 41766539.46 | C168: 0 | D168: 41324460.42 | E168: 1.0107 | F168: 0 | G168: 1.071704267 | J168: MBBGIA | K168: 10660.14 | L168: 122013
A169: 2014-01-02 | B169: 41773466.64 | C169: 0 | D169: 41379792.25 | E169: 1.0095 | F169: 0 | G169: 1.071882014 | J169: MBBGIA | K169: 10661.72 | L169: 12014
A170: 2014-01-03 | B170: 41783857.14 | C170: 0 | D170: 41379792.25 | E170: 1.0098 | F170: 0 | G170: 1.072148628 | J170: MBBGIA | K170: 10662.51 | L170: 12014
A171: 2014-01-06 | B171: 41755699.57 | C171: 0 | D171: 41379792.25 | E171: 1.0091 | F171: 0 | G171: 1.071426122 | J171: MBBGIA | K171: 10664.88 | L171: 12014
A172: 2014-01-07 | B172: 31759128.06 | C172: 0 | D172: 31469971.62 | E172: 1.0092 | F172: 0 | G172: 1.071541798 | J172: MBBGIA | K172: 10665.67 | L172: 12014
A173: 2014-01-08 | B173: 31761769.85 | C173: 0 | D173: 31469971.62 | E173: 1.0093 | F173: 0 | G173: 1.071630931 | J173: MBBGIA | K173: 10666.46 | L173: 12014
A174: 2014-01-09 | B174: 31764411.62 | C174: 0 | D174: 31469971.62 | E174: 1.0094 | F174: 0 | G174: 1.071720063 | J174: MBBGIA | K174: 10667.25 | L174: 12014
A175: 2014-01-10 | B175: 31772336.73 | C175: 0 | D175: 31469971.62 | E175: 1.0096 | F175: 0 | G175: 1.071987454 | J175: MBBGIA | K175: 10668.04 | L175: 12014
A176: 2014-01-13 | B176: 31777620.07 | C176: 0 | D176: 31469971.62 | E176: 1.0098 | F176: 0 | G176: 1.072165712 | J176: MBBGIA | K176: 10670.41 | L176: 12014
A177: 2014-01-15 | B177: 31780261.69 | C177: 0 | D177: 31469971.62 | E177: 1.0099 | F177: 0 | G177: 1.072254839 | J177: MBBGIA | K177: 10671.99 | L177: 12014
A178: 2014-01-16 | B178: 31790827.92 | C178: 0 | D178: 31469971.62 | E178: 1.0102 | F178: 0 | G178: 1.07261134 | J178: MBBGIA | K178: 10672.78 | L178: 12014
A179: 2014-01-20 | B179: 31793469.48 | C179: 0 | D179: 31469971.62 | E179: 1.0103 | F179: 0 | G179: 1.072700465 | J179: MBBGIA | K179: 10675.94 | L179: 12014
A180: 2014-01-21 | B180: 31796110.99 | C180: 0 | D180: 31469971.62 | E180: 1.0104 | F180: 0 | G180: 1.072789589 | J180: MBBGIA | K180: 10676.73 | L180: 12014
A181: 2014-01-22 | B181: 31798752.46 | C181: 0 | D181: 31469971.62 | E181: 1.0104 | F181: 0 | G181: 1.072878711 | J181: MBBGIA | K181: 10677.52 | L181: 12014
A182: 2014-01-23 | B182: 31801393.94 | C182: 0 | D182: 31469971.62 | E182: 1.0105 | F182: 0 | G182: 1.072967834 | J182: MBBGIA | K182: 10678.31 | L182: 12014
A183: 2014-01-24 | B183: 31809318.17 | C183: 0 | D183: 31469971.62 | E183: 1.0108 | F183: 0 | G183: 1.073235194 | J183: MBBGIA | K183: 10679.1 | L183: 12014
A184: 2014-01-27 | B184: 31811959.6 | C184: 0 | D184: 31469971.62 | E184: 1.0109 | F184: 0 | G184: 1.073324315 | J184: MBBGIA | K184: 10681.47 | L184: 12014
A185: 2014-01-28 | B185: 31814600.95 | C185: 0 | D185: 31469971.62 | E185: 1.011 | F185: 0 | G185: 1.073413434 | J185: MBBGIA | K185: 10682.26 | L185: 12014
A186: 2014-01-29 | B186: 31817242.28 | C186: 0 | D186: 31469971.62 | E186: 1.011 | F186: 0 | G186: 1.073502551 | J186: MBBGIA | K186: 10683.05 | L186: 12014
A187: 2014-01-30 | B187: 31822524.89 | C187: 0 | D187: 31566816.59 | E187: 1.0081 | F187: 0 | G187: 1.073680784 | J187: MBBGIA | K187: 10683.84 | L187: 12014
A188: 2014-02-04 | B188: 31833089.78 | C188: 0 | D188: 31566816.59 | E188: 1.0084 | F188: 0 | G188: 1.07403724 | J188: MBBGIA | K188: 10687.79 | L188: 22014
A189: 2014-02-05 | B189: 31835730.99 | C189: 0 | D189: 31566816.59 | E189: 1.0085 | F189: 0 | G189: 1.074126354 | J189: MBBGIA | K189: 10688.58 | L189: 22014
A190: 2014-02-06 | B190: 31838372.2 | C190: 0 | D190: 31566816.59 | E190: 1.0086 | F190: 0 | G190: 1.074215467 | J190: MBBGIA | K190: 10689.37 | L190: 22014
A191: 2014-02-07 | B191: 31846299.53 | C191: 0 | D191: 31566816.59 | E191: 1.0089 | F191: 0 | G191: 1.074482932 | J191: MBBGIA | K191: 10690.16 | L191: 22014
A192: 2014-02-10 | B192: 31848941.91 | C192: 0 | D192: 31566816.59 | E192: 1.0089 | F192: 0 | G192: 1.074572085 | J192: MBBGIA | K192: 10692.53 | L192: 22014
A193: 2014-02-11 | B193: 31851584.32 | C193: 0 | D193: 31566816.59 | E193: 1.009 | F193: 0 | G193: 1.074661239 | J193: MBBGIA | K193: 10693.32 | L193: 22014
A194: 2014-02-12 | B194: 31854226.69 | C194: 0 | D194: 31566816.59 | E194: 1.0091 | F194: 0 | G194: 1.074750392 | J194: MBBGIA | K194: 10694.11 | L194: 22014
A195: 2014-02-13 | B195: 31856869.02 | C195: 0 | D195: 31566816.59 | E195: 1.0092 | F195: 0 | G195: 1.074839543 | J195: MBBGIA | K195: 10694.9 | L195: 22014
A196: 2014-02-14 | B196: 31864795.73 | C196: 0 | D196: 31566816.59 | E196: 1.0094 | F196: 0 | G196: 1.075106988 | J196: MBBGIA | K196: 10695.69 | L196: 22014
A197: 2014-02-17 | B197: 31867437.99 | C197: 0 | D197: 31566816.59 | E197: 1.0095 | F197: 0 | G197: 1.075196137 | J197: MBBGIA | K197: 10698.08 | L197: 22014
A198: 2014-02-18 | B198: 31870080.17 | C198: 0 | D198: 31566816.59 | E198: 1.0096 | F198: 0 | G198: 1.075285283 | J198: MBBGIA | K198: 10698.88 | L198: 22014
A199: 2014-02-19 | B199: 31872722.34 | C199: 0 | D199: 31566816.59 | E199: 1.0097 | F199: 0 | G199: 1.075374429 | J199: MBBGIA | K199: 10699.68 | L199: 22014
A200: 2014-02-20 | B200: 31875370.04 | C200: 0 | D200: 31566816.59 | E200: 1.0098 | F200: 0 | G200: 1.075463761 | J200: MBBGIA | K200: 10700.48 | L200: 22014
... 49 more rows

Sheet InLstFundPerformance (hidden)
A1: qValDate | B1: NAV | C1: TotalUnitsBF | D1: TotalUnits | E1: BuyPrice | F1: Distribution | G1: TWRRPrice | H1: AccDate | I1: Amount | J1: qIndexBenchmark | K1: Indices | L1: LstYrTwrrPrice | M1: LstYrIndex | N1: EndDate
A2: 2012-05-02 | B2: 40595433.87 | C2: 0 | D2: 40273339.35 | E2: 1.008 | F2: 0 | G2: 1.019473894 | J2: MBBGIA | K2: 10187.75 | L2: 1.019306994 | M2: 10186.11 | N2: 52012
A3: 2012-05-03 | B3: 40598756.86 | C3: 0 | D3: 40273339.35 | E3: 1.0081 | F3: 0 | G3: 1.019557344 | J3: MBBGIA | K3: 10188.57 | L3: 1.019306994 | M3: 10186.11 | N3: 52012
A4: 2012-05-04 | B4: 40608725.4 | C4: 0 | D4: 40273339.35 | E4: 1.0083 | F4: 0 | G4: 1.019807685 | J4: MBBGIA | K4: 10189.39 | L4: 1.019306994 | M4: 10186.11 | N4: 52012
A5: 2012-05-07 | B5: 40612048.19 | C5: 0 | D5: 40273339.35 | E5: 1.0084 | F5: 0 | G5: 1.01989113 | J5: MBBGIA | K5: 10191.85 | L5: 1.019306994 | M5: 10186.11 | N5: 52012
A6: 2012-05-08 | B6: 40615370.97 | C6: 0 | D6: 40273339.35 | E6: 1.0085 | F6: 0 | G6: 1.019974575 | J6: MBBGIA | K6: 10192.67 | L6: 1.019306994 | M6: 10186.11 | N6: 52012
A7: 2012-05-09 | B7: 40618693.72 | C7: 0 | D7: 40273339.35 | E7: 1.0086 | F7: 0 | G7: 1.020058019 | J7: MBBGIA | K7: 10193.49 | L7: 1.019306994 | M7: 10186.11 | N7: 52012
A8: 2012-05-10 | B8: 40622016.42 | C8: 0 | D8: 40273339.35 | E8: 1.0087 | F8: 0 | G8: 1.020141462 | J8: MBBGIA | K8: 10194.31 | L8: 1.019306994 | M8: 10186.11 | N8: 52012
A9: 2012-05-11 | B9: 40631955.64 | C9: 0 | D9: 40273339.35 | E9: 1.0089 | F9: 0 | G9: 1.020391066 | J9: MBBGIA | K9: 10195.13 | L9: 1.019306994 | M9: 10186.11 | N9: 52012
A10: 2012-05-14 | B10: 40635265.98 | C10: 0 | D10: 40273339.35 | E10: 1.009 | F10: 0 | G10: 1.020474199 | J10: MBBGIA | K10: 10197.59 | L10: 1.019306994 | M10: 10186.11 | N10: 52012
A11: 2012-05-15 | B11: 40638575.64 | C11: 0 | D11: 40273339.35 | E11: 1.0091 | F11: 0 | G11: 1.020557314 | J11: MBBGIA | K11: 10198.41 | L11: 1.019306994 | M11: 10186.11 | N11: 52012
A12: 2012-05-16 | B12: 40641885.27 | C12: 0 | D12: 40273339.35 | E12: 1.0092 | F12: 0 | G12: 1.020640429 | J12: MBBGIA | K12: 10199.23 | L12: 1.019306994 | M12: 10186.11 | N12: 52012
A13: 2012-05-17 | B13: 40645194.86 | C13: 0 | D13: 40273339.35 | E13: 1.0092 | F13: 0 | G13: 1.020723543 | J13: MBBGIA | K13: 10200.05 | L13: 1.019306994 | M13: 10186.11 | N13: 52012
A14: 2012-05-18 | B14: 40655123.24 | C14: 0 | D14: 40273339.35 | E14: 1.0095 | F14: 0 | G14: 1.020972874 | J14: MBBGIA | K14: 10200.87 | L14: 1.019306994 | M14: 10186.11 | N14: 52012
A15: 2012-05-21 | B15: 40658432.68 | C15: 0 | D15: 40273339.35 | E15: 1.0096 | F15: 0 | G15: 1.021055984 | J15: MBBGIA | K15: 10203.33 | L15: 1.019306994 | M15: 10186.11 | N15: 52012
A16: 2012-05-22 | B16: 40661742.08 | C16: 0 | D16: 40273339.35 | E16: 1.0096 | F16: 0 | G16: 1.021139093 | J16: MBBGIA | K16: 10204.15 | L16: 1.019306994 | M16: 10186.11 | N16: 52012
A17: 2012-05-23 | B17: 40665051.43 | C17: 0 | D17: 40273339.35 | E17: 1.0097 | F17: 0 | G17: 1.021222201 | J17: MBBGIA | K17: 10204.97 | L17: 1.019306994 | M17: 10186.11 | N17: 52012
A18: 2012-05-24 | B18: 40668360.76 | C18: 0 | D18: 40273339.35 | E18: 1.0098 | F18: 0 | G18: 1.021305309 | J18: MBBGIA | K18: 10205.79 | L18: 1.019306994 | M18: 10186.11 | N18: 52012
A19: 2012-05-25 | B19: 40678288.37 | C19: 0 | D19: 40273339.35 | E19: 1.0101 | F19: 0 | G19: 1.021554621 | J19: MBBGIA | K19: 10206.61 | L19: 1.019306994 | M19: 10186.11 | N19: 52012
A20: 2012-05-28 | B20: 40681597.54 | C20: 0 | D20: 40273339.35 | E20: 1.0101 | F20: 0 | G20: 1.021637724 | J20: MBBGIA | K20: 10209.07 | L20: 1.019306994 | M20: 10186.11 | N20: 52012
A21: 2012-05-29 | B21: 40684906.72 | C21: 0 | D21: 40273339.35 | E21: 1.0102 | F21: 0 | G21: 1.021720828 | J21: MBBGIA | K21: 10209.89 | L21: 1.019306994 | M21: 10186.11 | N21: 52012
A22: 2012-05-30 | B22: 40688215.81 | C22: 0 | D22: 40273339.35 | E22: 1.0103 | F22: 0 | G22: 1.021803929 | J22: MBBGIA | K22: 10210.71 | L22: 1.019306994 | M22: 10186.11 | N22: 52012
A23: 2012-05-31 | B23: 40691524.89 | C23: 0 | D23: 40333544.05 | E23: 1.0089 | F23: 0 | G23: 1.02188703 | J23: MBBGIA | K23: 10211.53 | L23: 1.019306994 | M23: 10186.11 | N23: 52012
A24: 2012-06-01 | B24: 40701451.77 | C24: 0 | D24: 40333544.05 | E24: 1.0091 | F24: 0 | G24: 1.022136324 | J24: MBBGIA | K24: 10212.29 | L24: 1.019306994 | M24: 10186.11 | N24: 62012
A25: 2012-06-04 | B25: 40704760.7 | C25: 0 | D25: 40333544.05 | E25: 1.0092 | F25: 0 | G25: 1.022219421 | J25: MBBGIA | K25: 10214.57 | L25: 1.019306994 | M25: 10186.11 | N25: 62012
A26: 2012-06-05 | B26: 40708069.61 | C26: 0 | D26: 40333544.05 | E26: 1.0093 | F26: 0 | G26: 1.022302518 | J26: MBBGIA | K26: 10215.33 | L26: 1.019306994 | M26: 10186.11 | N26: 62012
A27: 2012-06-06 | B27: 40711378.45 | C27: 0 | D27: 40333544.05 | E27: 1.0094 | F27: 0 | G27: 1.022385613 | J27: MBBGIA | K27: 10216.09 | L27: 1.019306994 | M27: 10186.11 | N27: 62012
A28: 2012-06-07 | B28: 40714687.27 | C28: 0 | D28: 40333544.05 | E28: 1.0094 | F28: 0 | G28: 1.022468707 | J28: MBBGIA | K28: 10216.85 | L28: 1.019306994 | M28: 10186.11 | N28: 62012
A29: 2012-06-08 | B29: 40724613.39 | C29: 0 | D29: 40333544.05 | E29: 1.0097 | F29: 0 | G29: 1.022717982 | J29: MBBGIA | K29: 10217.61 | L29: 1.019306994 | M29: 10186.11 | N29: 62012
A30: 2012-06-11 | B30: 40727922.06 | C30: 0 | D30: 40333544.05 | E30: 1.0098 | F30: 0 | G30: 1.022801073 | J30: MBBGIA | K30: 10219.89 | L30: 1.019306994 | M30: 10186.11 | N30: 62012
A31: 2012-06-12 | B31: 40731230.71 | C31: 0 | D31: 40333544.05 | E31: 1.0099 | F31: 0 | G31: 1.022884163 | J31: MBBGIA | K31: 10220.65 | L31: 1.019306994 | M31: 10186.11 | N31: 62012
A32: 2012-06-13 | B32: 40734539.29 | C32: 0 | D32: 40333544.05 | E32: 1.0099 | F32: 0 | G32: 1.022967251 | J32: MBBGIA | K32: 10221.41 | L32: 1.019306994 | M32: 10186.11 | N32: 62012
A33: 2012-06-14 | B33: 40737847.82 | C33: 0 | D33: 40333544.05 | E33: 1.01 | F33: 0 | G33: 1.023050338 | J33: MBBGIA | K33: 10222.17 | L33: 1.019306994 | M33: 10186.11 | N33: 62012
A34: 2012-06-15 | B34: 40747773.23 | C34: 0 | D34: 40333544.05 | E34: 1.0103 | F34: 0 | G34: 1.023299595 | J34: MBBGIA | K34: 10222.93 | L34: 1.019306994 | M34: 10186.11 | N34: 62012
A35: 2012-06-18 | B35: 40751081.63 | C35: 0 | D35: 40333544.05 | E35: 1.0104 | F35: 0 | G35: 1.023382679 | J35: MBBGIA | K35: 10225.21 | L35: 1.019306994 | M35: 10186.11 | N35: 62012
A36: 2012-06-19 | B36: 40754390.03 | C36: 0 | D36: 40333544.05 | E36: 1.0104 | F36: 0 | G36: 1.023465763 | J36: MBBGIA | K36: 10225.97 | L36: 1.019306994 | M36: 10186.11 | N36: 62012
A37: 2012-06-20 | B37: 40757698.37 | C37: 0 | D37: 40333544.05 | E37: 1.0105 | F37: 0 | G37: 1.023548846 | J37: MBBGIA | K37: 10226.73 | L37: 1.019306994 | M37: 10186.11 | N37: 62012
A38: 2012-06-21 | B38: 40761006.66 | C38: 0 | D38: 40333544.05 | E38: 1.0106 | F38: 0 | G38: 1.023631927 | J38: MBBGIA | K38: 10227.49 | L38: 1.019306994 | M38: 10186.11 | N38: 62012
A39: 2012-06-22 | B39: 40770931.28 | C39: 0 | D39: 40333544.05 | E39: 1.0108 | F39: 0 | G39: 1.023881164 | J39: MBBGIA | K39: 10228.25 | L39: 1.019306994 | M39: 10186.11 | N39: 62012
A40: 2012-06-25 | B40: 40774239.43 | C40: 0 | D40: 40333544.05 | E40: 1.0109 | F40: 0 | G40: 1.023964242 | J40: MBBGIA | K40: 10230.53 | L40: 1.019306994 | M40: 10186.11 | N40: 62012
A41: 2012-06-26 | B41: 40777547.58 | C41: 0 | D41: 40333544.05 | E41: 1.011 | F41: 0 | G41: 1.024047319 | J41: MBBGIA | K41: 10231.29 | L41: 1.019306994 | M41: 10186.11 | N41: 62012
A42: 2012-06-27 | B42: 40780855.66 | C42: 0 | D42: 40333544.05 | E42: 1.0111 | F42: 0 | G42: 1.024130395 | J42: MBBGIA | K42: 10232.05 | L42: 1.019306994 | M42: 10186.11 | N42: 62012
A43: 2012-06-28 | B43: 40784151.67 | C43: 0 | D43: 40333544.05 | E43: 1.0112 | F43: 0 | G43: 1.024213168 | J43: MBBGIA | K43: 10232.81 | L43: 1.019306994 | M43: 10186.11 | N43: 62012
A44: 2012-06-29 | B44: 40790743.59 | C44: 0 | D44: 40391095.55 | E44: 1.0099 | F44: 0 | G44: 1.024378711 | J44: MBBGIA | K44: 10233.57 | L44: 1.019306994 | M44: 10186.11 | N44: 62012
A45: 2012-07-02 | B45: 40797335.34 | C45: 0 | D45: 40391095.55 | E45: 1.0101 | F45: 0 | G45: 1.02454425 | J45: MBBGIA | K45: 10235.85 | L45: 1.019306994 | M45: 10186.11 | N45: 72012
A46: 2012-07-03 | B46: 40800631.19 | C46: 0 | D46: 40391095.55 | E46: 1.0101 | F46: 0 | G46: 1.024627018 | J46: MBBGIA | K46: 10236.61 | L46: 1.019306994 | M46: 10186.11 | N46: 72012
A47: 2012-07-04 | B47: 49803828.65 | C47: 0 | D47: 49301104.46 | E47: 1.0102 | F47: 0 | G47: 1.024692805 | J47: MBBGIA | K47: 10237.37 | L47: 1.019306994 | M47: 10186.11 | N47: 72012
A48: 2012-07-05 | B48: 69807638.42 | C48: 0 | D48: 69099164.25 | E48: 1.0103 | F48: 0 | G48: 1.024748731 | J48: MBBGIA | K48: 10238.13 | L48: 1.019306994 | M48: 10186.11 | N48: 72012
A49: 2012-07-06 | B49: 69824409.68 | C49: 0 | D49: 69099164.25 | E49: 1.0105 | F49: 0 | G49: 1.024994926 | J49: MBBGIA | K49: 10238.89 | L49: 1.019306994 | M49: 10186.11 | N49: 72012
A50: 2012-07-09 | B50: 69830000.01 | C50: 0 | D50: 69099164.25 | E50: 1.0106 | F50: 0 | G50: 1.02507699 | J50: MBBGIA | K50: 10241.17 | L50: 1.019306994 | M50: 10186.11 | N50: 72012
A51: 2012-07-10 | B51: 69835578.88 | C51: 0 | D51: 69099164.25 | E51: 1.0107 | F51: 0 | G51: 1.025158886 | J51: MBBGIA | K51: 10241.93 | L51: 1.019306994 | M51: 10186.11 | N51: 72012
A52: 2012-07-11 | B52: 69841157.6 | C52: 0 | D52: 69099164.25 | E52: 1.0107 | F52: 0 | G52: 1.025240779 | J52: MBBGIA | K52: 10242.69 | L52: 1.019306994 | M52: 10186.11 | N52: 72012
A53: 2012-07-12 | B53: 69846736.27 | C53: 0 | D53: 69099164.25 | E53: 1.0108 | F53: 0 | G53: 1.025322672 | J53: MBBGIA | K53: 10243.45 | L53: 1.019306994 | M53: 10186.11 | N53: 72012
A54: 2012-07-13 | B54: 69863484.08 | C54: 0 | D54: 69099164.25 | E54: 1.0111 | F54: 0 | G54: 1.025568523 | J54: MBBGIA | K54: 10244.21 | L54: 1.019306994 | M54: 10186.11 | N54: 72012
A55: 2012-07-16 | B55: 69869068.04 | C55: 0 | D55: 69099164.25 | E55: 1.0111 | F55: 0 | G55: 1.025650493 | J55: MBBGIA | K55: 10246.49 | L55: 1.019306994 | M55: 10186.11 | N55: 72012
A56: 2012-07-17 | B56: 69874651.93 | C56: 0 | D56: 69099164.25 | E56: 1.0112 | F56: 0 | G56: 1.025732463 | J56: MBBGIA | K56: 10247.25 | L56: 1.019306994 | M56: 10186.11 | N56: 72012
A57: 2012-07-18 | B57: 69880235.75 | C57: 0 | D57: 69099164.25 | E57: 1.0113 | F57: 0 | G57: 1.025814431 | J57: MBBGIA | K57: 10248.01 | L57: 1.019306994 | M57: 10186.11 | N57: 72012
A58: 2012-07-19 | B58: 69885819.5 | C58: 0 | D58: 69099164.25 | E58: 1.0114 | F58: 0 | G58: 1.025896398 | J58: MBBGIA | K58: 10248.77 | L58: 1.019306994 | M58: 10186.11 | N58: 72012
A59: 2012-07-20 | B59: 69902570.2 | C59: 0 | D59: 69099164.25 | E59: 1.0116 | F59: 0 | G59: 1.026142292 | J59: MBBGIA | K59: 10249.53 | L59: 1.019306994 | M59: 10186.11 | N59: 72012
A60: 2012-07-23 | B60: 69908153.72 | C60: 0 | D60: 69099164.25 | E60: 1.0117 | F60: 0 | G60: 1.026224256 | J60: MBBGIA | K60: 10251.81 | L60: 1.019306994 | M60: 10186.11 | N60: 72012
A61: 2012-07-24 | B61: 69913737.18 | C61: 0 | D61: 69099164.25 | E61: 1.0118 | F61: 0 | G61: 1.026306219 | J61: MBBGIA | K61: 10252.57 | L61: 1.019306994 | M61: 10186.11 | N61: 72012
A62: 2012-07-25 | B62: 69919320.57 | C62: 0 | D62: 69099164.25 | E62: 1.0119 | F62: 0 | G62: 1.026388181 | J62: MBBGIA | K62: 10253.33 | L62: 1.019306994 | M62: 10186.11 | N62: 72012
A63: 2012-07-26 | B63: 69924903.9 | C63: 0 | D63: 69099164.25 | E63: 1.012 | F63: 0 | G63: 1.026470142 | J63: MBBGIA | K63: 10254.09 | L63: 1.019306994 | M63: 10186.11 | N63: 72012
A64: 2012-07-27 | B64: 69941653.32 | C64: 0 | D64: 69099164.25 | E64: 1.0122 | F64: 0 | G64: 1.026716017 | J64: MBBGIA | K64: 10254.85 | L64: 1.019306994 | M64: 10186.11 | N64: 72012
A65: 2012-07-30 | B65: 69947236.38 | C65: 0 | D65: 69099164.25 | E65: 1.0123 | F65: 0 | G65: 1.026797974 | J65: MBBGIA | K65: 10257.13 | L65: 1.019306994 | M65: 10186.11 | N65: 72012
A66: 2012-07-31 | B66: 69952819.41 | C66: 0 | D66: 69126986.71 | E66: 1.0119 | F66: 0 | G66: 1.026879931 | J66: MBBGIA | K66: 10257.89 | L66: 1.019306994 | M66: 10186.11 | N66: 72012
A67: 2012-08-01 | B67: 69958402.41 | C67: 0 | D67: 69126986.71 | E67: 1.012 | F67: 0 | G67: 1.026961887 | J67: MBBGIA | K67: 10258.65 | L67: 1.019306994 | M67: 10186.11 | N67: 82012
A68: 2012-08-02 | B68: 69963985.32 | C68: 0 | D68: 69126986.71 | E68: 1.0121 | F68: 0 | G68: 1.027043842 | J68: MBBGIA | K68: 10259.41 | L68: 1.019306994 | M68: 10186.11 | N68: 82012
A69: 2012-08-03 | B69: 69980733.44 | C69: 0 | D69: 69126986.71 | E69: 1.0124 | F69: 0 | G69: 1.027289698 | J69: MBBGIA | K69: 10260.17 | L69: 1.019306994 | M69: 10186.11 | N69: 82012
A70: 2012-08-06 | B70: 69986316.09 | C70: 0 | D70: 69126986.71 | E70: 1.0124 | F70: 0 | G70: 1.027371649 | J70: MBBGIA | K70: 10262.45 | L70: 1.019306994 | M70: 10186.11 | N70: 82012
A71: 2012-08-07 | B71: 69991891.09 | C71: 0 | D71: 69126986.71 | E71: 1.0125 | F71: 0 | G71: 1.027453488 | J71: MBBGIA | K71: 10263.21 | L71: 1.019306994 | M71: 10186.11 | N71: 82012
A72: 2012-08-08 | B72: 69997466 | C72: 0 | D72: 69126986.71 | E72: 1.0126 | F72: 0 | G72: 1.027535325 | J72: MBBGIA | K72: 10263.97 | L72: 1.019306994 | M72: 10186.11 | N72: 82012
A73: 2012-08-09 | B73: 70003040.87 | C73: 0 | D73: 69126986.71 | E73: 1.0127 | F73: 0 | G73: 1.027617162 | J73: MBBGIA | K73: 10264.73 | L73: 1.019306994 | M73: 10186.11 | N73: 82012
A74: 2012-08-10 | B74: 70019764.86 | C74: 0 | D74: 69126986.71 | E74: 1.0129 | F74: 0 | G74: 1.027862664 | J74: MBBGIA | K74: 10265.49 | L74: 1.019306994 | M74: 10186.11 | N74: 82012
A75: 2012-08-13 | B75: 70025339.46 | C75: 0 | D75: 69126986.71 | E75: 1.013 | F75: 0 | G75: 1.027944496 | J75: MBBGIA | K75: 10267.77 | L75: 1.019306994 | M75: 10186.11 | N75: 82012
A76: 2012-08-14 | B76: 70030913.97 | C76: 0 | D76: 69126986.71 | E76: 1.0131 | F76: 0 | G76: 1.028026328 | J76: MBBGIA | K76: 10268.53 | L76: 1.019306994 | M76: 10186.11 | N76: 82012
A77: 2012-08-15 | B77: 70036488.49 | C77: 0 | D77: 69126986.71 | E77: 1.0132 | F77: 0 | G77: 1.02810816 | J77: MBBGIA | K77: 10269.29 | L77: 1.019306994 | M77: 10186.11 | N77: 82012
A78: 2012-08-16 | B78: 70042062.92 | C78: 0 | D78: 69126986.71 | E78: 1.0132 | F78: 0 | G78: 1.02818999 | J78: MBBGIA | K78: 10270.05 | L78: 1.019306994 | M78: 10186.11 | N78: 82012
A79: 2012-08-17 | B79: 70069933.43 | C79: 0 | D79: 69126986.71 | E79: 1.0136 | F79: 0 | G79: 1.028599118 | J79: MBBGIA | K79: 10270.81 | L79: 1.019306994 | M79: 10186.11 | N79: 82012
A80: 2012-08-22 | B80: 70075507.5 | C80: 0 | D80: 69126986.71 | E80: 1.0137 | F80: 0 | G80: 1.028680944 | J80: MBBGIA | K80: 10274.61 | L80: 1.019306994 | M80: 10186.11 | N80: 82012
A81: 2012-08-23 | B81: 70081081.49 | C81: 0 | D81: 69126986.71 | E81: 1.0138 | F81: 0 | G81: 1.028762768 | J81: MBBGIA | K81: 10275.37 | L81: 1.019306994 | M81: 10186.11 | N81: 82012
A82: 2012-08-24 | B82: 70097802.88 | C82: 0 | D82: 69126986.71 | E82: 1.014 | F82: 0 | G82: 1.029008231 | J82: MBBGIA | K82: 10276.13 | L82: 1.019306994 | M82: 10186.11 | N82: 82012
A83: 2012-08-27 | B83: 70103376.69 | C83: 0 | D83: 69126986.71 | E83: 1.0141 | F83: 0 | G83: 1.029090052 | J83: MBBGIA | K83: 10278.41 | L83: 1.019306994 | M83: 10186.11 | N83: 82012
A84: 2012-08-28 | B84: 70108950.38 | C84: 0 | D84: 69126986.71 | E84: 1.0142 | F84: 0 | G84: 1.029171872 | J84: MBBGIA | K84: 10279.17 | L84: 1.019306994 | M84: 10186.11 | N84: 82012
A85: 2012-08-29 | B85: 40107376.77 | C85: 0 | D85: 39546985.51 | E85: 1.0142 | F85: 0 | G85: 1.029132418 | J85: MBBGIA | K85: 10279.93 | L85: 1.019306994 | M85: 10186.11 | N85: 82012
A86: 2012-08-30 | B86: 40113824.99 | C86: 0 | D86: 39776140.79 | E86: 1.0085 | F86: 0 | G86: 1.029297875 | J86: MBBGIA | K86: 10280.69 | L86: 1.019306994 | M86: 10186.11 | N86: 82012
A87: 2012-09-03 | B87: 40123497.04 | C87: 0 | D87: 39776140.79 | E87: 1.0087 | F87: 0 | G87: 1.029546055 | J87: MBBGIA | K87: 10283.73 | L87: 1.019306994 | M87: 10186.11 | N87: 92012
A88: 2012-09-04 | B88: 40126721 | C88: 0 | D88: 39776140.79 | E88: 1.0088 | F88: 0 | G88: 1.02962878 | J88: MBBGIA | K88: 10284.49 | L88: 1.019306994 | M88: 10186.11 | N88: 92012
A89: 2012-09-05 | B89: 40129944.95 | C89: 0 | D89: 39776140.79 | E89: 1.0089 | F89: 0 | G89: 1.029711504 | J89: MBBGIA | K89: 10285.25 | L89: 1.019306994 | M89: 10186.11 | N89: 92012
A90: 2012-09-06 | B90: 40133168.88 | C90: 0 | D90: 39776140.79 | E90: 1.009 | F90: 0 | G90: 1.029794229 | J90: MBBGIA | K90: 10286.01 | L90: 1.019306994 | M90: 10186.11 | N90: 92012
A91: 2012-09-07 | B91: 40142840.28 | C91: 0 | D91: 39776140.79 | E91: 1.0092 | F91: 0 | G91: 1.030042391 | J91: MBBGIA | K91: 10286.77 | L91: 1.019306994 | M91: 10186.11 | N91: 92012
A92: 2012-09-10 | B92: 40146064.07 | C92: 0 | D92: 39776140.79 | E92: 1.0093 | F92: 0 | G92: 1.030125112 | J92: MBBGIA | K92: 10289.05 | L92: 1.019306994 | M92: 10186.11 | N92: 92012
A93: 2012-09-11 | B93: 40149287.78 | C93: 0 | D93: 39776140.79 | E93: 1.0094 | F93: 0 | G93: 1.03020783 | J93: MBBGIA | K93: 10289.81 | L93: 1.019306994 | M93: 10186.11 | N93: 92012
A94: 2012-09-12 | B94: 40152511.48 | C94: 0 | D94: 39776140.79 | E94: 1.0095 | F94: 0 | G94: 1.030290549 | J94: MBBGIA | K94: 10290.57 | L94: 1.019306994 | M94: 10186.11 | N94: 92012
A95: 2012-09-13 | B95: 40155735.13 | C95: 0 | D95: 39776140.79 | E95: 1.0095 | F95: 0 | G95: 1.030373266 | J95: MBBGIA | K95: 10291.33 | L95: 1.019306994 | M95: 10186.11 | N95: 92012
A96: 2012-09-14 | B96: 40168629.19 | C96: 0 | D96: 39776140.79 | E96: 1.0099 | F96: 0 | G96: 1.03070412 | J96: MBBGIA | K96: 10292.09 | L96: 1.019306994 | M96: 10186.11 | N96: 92012
A97: 2012-09-18 | B97: 40171852.68 | C97: 0 | D97: 39776140.79 | E97: 1.0099 | F97: 0 | G97: 1.030786833 | J97: MBBGIA | K97: 10295.13 | L97: 1.019306994 | M97: 10186.11 | N97: 92012
A98: 2012-09-19 | B98: 40175076.11 | C98: 0 | D98: 39776140.79 | E98: 1.01 | F98: 0 | G98: 1.030869544 | J98: MBBGIA | K98: 10295.89 | L98: 1.019306994 | M98: 10186.11 | N98: 92012
A99: 2012-09-20 | B99: 40178299.54 | C99: 0 | D99: 39776140.79 | E99: 1.0101 | F99: 0 | G99: 1.030952256 | J99: MBBGIA | K99: 10296.65 | L99: 1.019306994 | M99: 10186.11 | N99: 92012
A100: 2012-09-21 | B100: 40187969.42 | C100: 0 | D100: 39776140.79 | E100: 1.0104 | F100: 0 | G100: 1.031200379 | J100: MBBGIA | K100: 10297.41 | L100: 1.019306994 | M100: 10186.11 | N100: 92012
A101: 2012-09-24 | B101: 40191192.72 | C101: 0 | D101: 39776140.79 | E101: 1.0104 | F101: 0 | G101: 1.031283087 | J101: MBBGIA | K101: 10299.69 | L101: 1.019306994 | M101: 10186.11 | N101: 92012
A102: 2012-09-25 | B102: 40194415.95 | C102: 0 | D102: 39776140.79 | E102: 1.0105 | F102: 0 | G102: 1.031365793 | J102: MBBGIA | K102: 10300.45 | L102: 1.019306994 | M102: 10186.11 | N102: 92012
A103: 2012-09-26 | B103: 40197639.18 | C103: 0 | D103: 39776140.79 | E103: 1.0106 | F103: 0 | G103: 1.0314485 | J103: MBBGIA | K103: 10301.21 | L103: 1.019306994 | M103: 10186.11 | N103: 92012
A104: 2012-09-27 | B104: 40200862.34 | C104: 0 | D104: 39776140.79 | E104: 1.0107 | F104: 0 | G104: 1.031531204 | J104: MBBGIA | K104: 10301.97 | L104: 1.019306994 | M104: 10186.11 | N104: 92012
A105: 2012-09-28 | B105: 40210531.47 | C105: 0 | D105: 39776140.79 | E105: 1.0109 | F105: 0 | G105: 1.031779309 | J105: MBBGIA | K105: 10302.73 | L105: 1.019306994 | M105: 10186.11 | N105: 92012
A106: 2012-10-01 | B106: 40213754.51 | C106: 0 | D106: 39776140.79 | E106: 1.011 | F106: 0 | G106: 1.03186201 | J106: MBBGIA | K106: 10305.01 | L106: 1.019306994 | M106: 10186.11 | N106: 102012
A107: 2012-10-02 | B107: 40216977.51 | C107: 0 | D107: 39776140.79 | E107: 1.0111 | F107: 0 | G107: 1.03194471 | J107: MBBGIA | K107: 10305.77 | L107: 1.019306994 | M107: 10186.11 | N107: 102012
A108: 2012-10-03 | B108: 40220200.47 | C108: 0 | D108: 39776140.79 | E108: 1.0112 | F108: 0 | G108: 1.03202741 | J108: MBBGIA | K108: 10306.53 | L108: 1.019306994 | M108: 10186.11 | N108: 102012
A109: 2012-10-04 | B109: 40223423.41 | C109: 0 | D109: 39776140.79 | E109: 1.0112 | F109: 0 | G109: 1.032110108 | J109: MBBGIA | K109: 10307.29 | L109: 1.019306994 | M109: 10186.11 | N109: 102012
A110: 2012-10-05 | B110: 40233091.83 | C110: 0 | D110: 39776140.79 | E110: 1.0115 | F110: 0 | G110: 1.032358194 | J110: MBBGIA | K110: 10308.05 | L110: 1.019306994 | M110: 10186.11 | N110: 102012
A111: 2012-10-08 | B111: 40236314.63 | C111: 0 | D111: 39776140.79 | E111: 1.0116 | F111: 0 | G111: 1.03244089 | J111: MBBGIA | K111: 10310.33 | L111: 1.019306994 | M111: 10186.11 | N111: 102012
A112: 2012-10-09 | B112: 40239537.39 | C112: 0 | D112: 39776140.79 | E112: 1.0117 | F112: 0 | G112: 1.032523584 | J112: MBBGIA | K112: 10311.09 | L112: 1.019306994 | M112: 10186.11 | N112: 102012
A113: 2012-10-10 | B113: 40242760.09 | C113: 0 | D113: 39776140.79 | E113: 1.0117 | F113: 0 | G113: 1.032606277 | J113: MBBGIA | K113: 10311.85 | L113: 1.019306994 | M113: 10186.11 | N113: 102012
A114: 2012-10-11 | B114: 40245982.75 | C114: 0 | D114: 39776140.79 | E114: 1.0118 | F114: 0 | G114: 1.032688968 | J114: MBBGIA | K114: 10312.61 | L114: 1.019306994 | M114: 10186.11 | N114: 102012
A115: 2012-10-12 | B115: 40255650.43 | C115: 0 | D115: 39776140.79 | E115: 1.0121 | F115: 0 | G115: 1.032937035 | J115: MBBGIA | K115: 10313.37 | L115: 1.019306994 | M115: 10186.11 | N115: 102012
A116: 2012-10-15 | B116: 40258872.98 | C116: 0 | D116: 39776140.79 | E116: 1.0121 | F116: 0 | G116: 1.033019724 | J116: MBBGIA | K116: 10315.65 | L116: 1.019306994 | M116: 10186.11 | N116: 102012
A117: 2012-10-16 | B117: 40262095.46 | C117: 0 | D117: 39776140.79 | E117: 1.0122 | F117: 0 | G117: 1.033102411 | J117: MBBGIA | K117: 10316.41 | L117: 1.019306994 | M117: 10186.11 | N117: 102012
A118: 2012-10-17 | B118: 40265317.93 | C118: 0 | D118: 39776140.79 | E118: 1.0123 | F118: 0 | G118: 1.033185098 | J118: MBBGIA | K118: 10317.17 | L118: 1.019306994 | M118: 10186.11 | N118: 102012
A119: 2012-10-18 | B119: 40268540.36 | C119: 0 | D119: 39776140.79 | E119: 1.0124 | F119: 0 | G119: 1.033267784 | J119: MBBGIA | K119: 10317.93 | L119: 1.019306994 | M119: 10186.11 | N119: 102012
A120: 2012-10-19 | B120: 40278221.14 | C120: 0 | D120: 39776140.79 | E120: 1.0126 | F120: 0 | G120: 1.033516187 | J120: MBBGIA | K120: 10318.69 | L120: 1.019306994 | M120: 10186.11 | N120: 102012
A121: 2012-10-22 | B121: 40281450.37 | C121: 0 | D121: 39776140.79 | E121: 1.0127 | F121: 0 | G121: 1.033599047 | J121: MBBGIA | K121: 10320.97 | L121: 1.019306994 | M121: 10186.11 | N121: 102012
A122: 2012-10-23 | B122: 40284679.53 | C122: 0 | D122: 39776140.79 | E122: 1.0128 | F122: 0 | G122: 1.033681905 | J122: MBBGIA | K122: 10321.74 | L122: 1.019306994 | M122: 10186.11 | N122: 102012
A123: 2012-10-24 | B123: 40287908.67 | C123: 0 | D123: 39776140.79 | E123: 1.0129 | F123: 0 | G123: 1.033764763 | J123: MBBGIA | K123: 10322.51 | L123: 1.019306994 | M123: 10186.11 | N123: 102012
A124: 2012-10-25 | B124: 40300824.58 | C124: 0 | D124: 39776140.79 | E124: 1.0132 | F124: 0 | G124: 1.034096178 | J124: MBBGIA | K124: 10323.28 | L124: 1.019306994 | M124: 10186.11 | N124: 102012
A125: 2012-10-29 | B125: 40304053.57 | C125: 0 | D125: 39776140.79 | E125: 1.0133 | F125: 0 | G125: 1.034179032 | J125: MBBGIA | K125: 10326.36 | L125: 1.019306994 | M125: 10186.11 | N125: 102012
A126: 2012-10-30 | B126: 40307282.48 | C126: 0 | D126: 39776140.79 | E126: 1.0134 | F126: 0 | G126: 1.034261884 | J126: MBBGIA | K126: 10327.13 | L126: 1.019306994 | M126: 10186.11 | N126: 102012
A127: 2012-10-31 | B127: 40310511.37 | C127: 0 | D127: 39783241.43 | E127: 1.0133 | F127: 0 | G127: 1.034344736 | J127: MBBGIA | K127: 10327.9 | L127: 1.019306994 | M127: 10186.11 | N127: 102012
A128: 2012-11-01 | B128: 40313740.26 | C128: 0 | D128: 39783241.43 | E128: 1.0133 | F128: 0 | G128: 1.034427587 | J128: MBBGIA | K128: 10328.67 | L128: 1.019306994 | M128: 10186.11 | N128: 112012
A129: 2012-11-02 | B129: 40323426.51 | C129: 0 | D129: 39783241.43 | E129: 1.0136 | F129: 0 | G129: 1.034676131 | J129: MBBGIA | K129: 10329.44 | L129: 1.019306994 | M129: 10186.11 | N129: 112012
A130: 2012-11-05 | B130: 40326655.22 | C130: 0 | D130: 39783241.43 | E130: 1.0137 | F130: 0 | G130: 1.034758978 | J130: MBBGIA | K130: 10331.75 | L130: 1.019306994 | M130: 10186.11 | N130: 112012
A131: 2012-11-06 | B131: 40329883.89 | C131: 0 | D131: 39783241.43 | E131: 1.0137 | F131: 0 | G131: 1.034841824 | J131: MBBGIA | K131: 10332.52 | L131: 1.019306994 | M131: 10186.11 | N131: 112012
A132: 2012-11-07 | B132: 40333112.53 | C132: 0 | D132: 39783241.43 | E132: 1.0138 | F132: 0 | G132: 1.034924669 | J132: MBBGIA | K132: 10333.29 | L132: 1.019306994 | M132: 10186.11 | N132: 112012
A133: 2012-11-08 | B133: 40336343.94 | C133: 0 | D133: 39783241.43 | E133: 1.0139 | F133: 0 | G133: 1.035007585 | J133: MBBGIA | K133: 10334.06 | L133: 1.019306994 | M133: 10186.11 | N133: 112012
A134: 2012-11-09 | B134: 40346037.72 | C134: 0 | D134: 39783241.43 | E134: 1.0141 | F134: 0 | G134: 1.035256322 | J134: MBBGIA | K134: 10334.83 | L134: 1.019306994 | M134: 10186.11 | N134: 112012
A135: 2012-11-12 | B135: 40352500.15 | C135: 0 | D135: 39783241.43 | E135: 1.0143 | F135: 0 | G135: 1.035422144 | J135: MBBGIA | K135: 10337.14 | L135: 1.019306994 | M135: 10186.11 | N135: 112012
A136: 2012-11-14 | B136: 40358962.39 | C136: 0 | D136: 39783241.43 | E136: 1.0145 | F136: 0 | G136: 1.035587961 | J136: MBBGIA | K136: 10338.68 | L136: 1.019306994 | M136: 10186.11 | N136: 112012
A137: 2012-11-16 | B137: 40368655.47 | C137: 0 | D137: 39783241.43 | E137: 1.0147 | F137: 0 | G137: 1.03583668 | J137: MBBGIA | K137: 10340.22 | L137: 1.019306994 | M137: 10186.11 | N137: 112012
A138: 2012-11-19 | B138: 40371886.47 | C138: 0 | D138: 39783241.43 | E138: 1.0148 | F138: 0 | G138: 1.035919586 | J138: MBBGIA | K138: 10342.53 | L138: 1.019306994 | M138: 10186.11 | N138: 112012
A139: 2012-11-20 | B139: 40375123.66 | C139: 0 | D139: 39783241.43 | E139: 1.0149 | F139: 0 | G139: 1.03600265 | J139: MBBGIA | K139: 10343.3 | L139: 1.019306994 | M139: 10186.11 | N139: 112012
A140: 2012-11-21 | B140: 40378360.81 | C140: 0 | D140: 39783241.43 | E140: 1.015 | F140: 0 | G140: 1.036085714 | J140: MBBGIA | K140: 10344.07 | L140: 1.019306994 | M140: 10186.11 | N140: 112012
A141: 2012-11-22 | B141: 40381597.96 | C141: 0 | D141: 39783241.43 | E141: 1.015 | F141: 0 | G141: 1.036168777 | J141: MBBGIA | K141: 10344.84 | L141: 1.019306994 | M141: 10186.11 | N141: 112012
A142: 2012-11-23 | B142: 40391309.04 | C142: 0 | D142: 39783241.43 | E142: 1.0153 | F142: 0 | G142: 1.036417958 | J142: MBBGIA | K142: 10345.61 | L142: 1.019306994 | M142: 10186.11 | N142: 112012
A143: 2012-11-26 | B143: 40394546.01 | C143: 0 | D143: 39783241.43 | E143: 1.0154 | F143: 0 | G143: 1.036501017 | J143: MBBGIA | K143: 10347.92 | L143: 1.019306994 | M143: 10186.11 | N143: 112012
A144: 2012-11-27 | B144: 40397782.98 | C144: 0 | D144: 39783241.43 | E144: 1.0154 | F144: 0 | G144: 1.036584075 | J144: MBBGIA | K144: 10348.69 | L144: 1.019306994 | M144: 10186.11 | N144: 112012
A145: 2012-11-28 | B145: 40401019.91 | C145: 0 | D145: 39783241.43 | E145: 1.0155 | F145: 0 | G145: 1.036667133 | J145: MBBGIA | K145: 10349.46 | L145: 1.019306994 | M145: 10186.11 | N145: 112012
A146: 2012-11-29 | B146: 40404256.81 | C146: 0 | D146: 39783241.43 | E146: 1.0156 | F146: 0 | G146: 1.03675019 | J146: MBBGIA | K146: 10350.23 | L146: 1.019306994 | M146: 10186.11 | N146: 112012
A147: 2012-11-30 | B147: 40407493.67 | C147: 0 | D147: 39914214.66 | E147: 1.0124 | F147: 0 | G147: 1.036833246 | J147: MBBGIA | K147: 10351 | L147: 1.019306994 | M147: 10186.11 | N147: 112012
A148: 2012-12-03 | B148: 40417203.89 | C148: 0 | D148: 39914214.66 | E148: 1.0126 | F148: 0 | G148: 1.037082405 | J148: MBBGIA | K148: 10353.31 | L148: 1.019306994 | M148: 10186.11 | N148: 122012
A149: 2012-12-04 | B149: 40420440.59 | C149: 0 | D149: 39914214.66 | E149: 1.0127 | F149: 0 | G149: 1.037165457 | J149: MBBGIA | K149: 10354.08 | L149: 1.019306994 | M149: 10186.11 | N149: 122012
A150: 2012-12-05 | B150: 40423677.27 | C150: 0 | D150: 39914214.66 | E150: 1.0128 | F150: 0 | G150: 1.037248508 | J150: MBBGIA | K150: 10354.85 | L150: 1.019306994 | M150: 10186.11 | N150: 122012
A151: 2012-12-06 | B151: 40426913.94 | C151: 0 | D151: 39914214.66 | E151: 1.0128 | F151: 0 | G151: 1.037331559 | J151: MBBGIA | K151: 10355.62 | L151: 1.019306994 | M151: 10186.11 | N151: 122012
A152: 2012-12-07 | B152: 40436636.79 | C152: 0 | D152: 39914214.66 | E152: 1.0131 | F152: 0 | G152: 1.037581042 | J152: MBBGIA | K152: 10356.39 | L152: 1.019306994 | M152: 10186.11 | N152: 122012
A153: 2012-12-10 | B153: 40439879.9 | C153: 0 | D153: 39914214.66 | E153: 1.0132 | F153: 0 | G153: 1.037664258 | J153: MBBGIA | K153: 10358.7 | L153: 1.019306994 | M153: 10186.11 | N153: 122012
A154: 2012-12-11 | B154: 40443123 | C154: 0 | D154: 39914214.66 | E154: 1.0133 | F154: 0 | G154: 1.037747475 | J154: MBBGIA | K154: 10359.47 | L154: 1.019306994 | M154: 10186.11 | N154: 122012
A155: 2012-12-12 | B155: 40446366.04 | C155: 0 | D155: 39914214.66 | E155: 1.0133 | F155: 0 | G155: 1.037830689 | J155: MBBGIA | K155: 10360.24 | L155: 1.019306994 | M155: 10186.11 | N155: 122012
A156: 2012-12-13 | B156: 40449609.05 | C156: 0 | D156: 39914214.66 | E156: 1.0134 | F156: 0 | G156: 1.037913903 | J156: MBBGIA | K156: 10361.01 | L156: 1.019306994 | M156: 10186.11 | N156: 122012
A157: 2012-12-14 | B157: 40459337.78 | C157: 0 | D157: 39914214.66 | E157: 1.0137 | F157: 0 | G157: 1.038163537 | J157: MBBGIA | K157: 10361.78 | L157: 1.019306994 | M157: 10186.11 | N157: 122012
A158: 2012-12-17 | B158: 40462580.63 | C158: 0 | D158: 39914214.66 | E158: 1.0137 | F158: 0 | G158: 1.038246746 | J158: MBBGIA | K158: 10364.09 | L158: 1.019306994 | M158: 10186.11 | N158: 122012
A159: 2012-12-18 | B159: 40465823.47 | C159: 0 | D159: 39914214.66 | E159: 1.0138 | F159: 0 | G159: 1.038329956 | J159: MBBGIA | K159: 10364.86 | L159: 1.019306994 | M159: 10186.11 | N159: 122012
A160: 2012-12-19 | B160: 40469066.28 | C160: 0 | D160: 39914214.66 | E160: 1.0139 | F160: 0 | G160: 1.038413164 | J160: MBBGIA | K160: 10365.63 | L160: 1.019306994 | M160: 10186.11 | N160: 122012
A161: 2012-12-20 | B161: 40472309.06 | C161: 0 | D161: 39914214.66 | E161: 1.014 | F161: 0 | G161: 1.038496372 | J161: MBBGIA | K161: 10366.4 | L161: 1.019306994 | M161: 10186.11 | N161: 122012
A162: 2012-12-21 | B162: 40482047.59 | C162: 0 | D162: 39914214.66 | E162: 1.0142 | F162: 0 | G162: 1.038746257 | J162: MBBGIA | K162: 10367.17 | L162: 1.019306994 | M162: 10186.11 | N162: 122012
A163: 2012-12-24 | B163: 40488543.39 | C163: 0 | D163: 39914214.66 | E163: 1.0144 | F163: 0 | G163: 1.038912936 | J163: MBBGIA | K163: 10369.48 | L163: 1.019306994 | M163: 10186.11 | N163: 122012
A164: 2012-12-26 | B164: 40491791.22 | C164: 0 | D164: 39914214.66 | E164: 1.0145 | F164: 0 | G164: 1.038996273 | J164: MBBGIA | K164: 10371.02 | L164: 1.019306994 | M164: 10186.11 | N164: 122012
A165: 2012-12-27 | B165: 40495039.05 | C165: 0 | D165: 39914214.66 | E165: 1.0146 | F165: 0 | G165: 1.039079611 | J165: MBBGIA | K165: 10371.79 | L165: 1.019306994 | M165: 10186.11 | N165: 122012
A166: 2012-12-28 | B166: 40504789.88 | C166: 0 | D166: 39914214.66 | E166: 1.0148 | F166: 0 | G166: 1.039329812 | J166: MBBGIA | K166: 10372.56 | L166: 1.019306994 | M166: 10186.11 | N166: 122012
A167: 2012-12-31 | B167: 40508041.41 | C167: 0 | D167: 40045456.76 | E167: 1.0116 | F167: 0 | G167: 1.039413244 | J167: MBBGIA | K167: 10374.87 | L167: 1.019306994 | M167: 10186.11 | N167: 122012
A168: 2013-01-02 | B168: 40514541.92 | C168: 0 | D168: 40045456.76 | E168: 1.0117 | F168: 0 | G168: 1.039580043 | J168: MBBGIA | K168: 10376.41 | L168: 1.019306994 | M168: 10186.11 | N168: 12013
A169: 2013-01-03 | B169: 40517792.16 | C169: 0 | D169: 40045456.76 | E169: 1.0118 | F169: 0 | G169: 1.039663443 | J169: MBBGIA | K169: 10377.18 | L169: 1.019306994 | M169: 10186.11 | N169: 12013
A170: 2013-01-04 | B170: 40527575.86 | C170: 0 | D170: 40045456.76 | E170: 1.012 | F170: 0 | G170: 1.039914487 | J170: MBBGIA | K170: 10377.95 | L170: 1.019306994 | M170: 10186.11 | N170: 12013
A171: 2013-01-07 | B171: 40530842.65 | C171: 0 | D171: 40045456.76 | E171: 1.0121 | F171: 0 | G171: 1.039998311 | J171: MBBGIA | K171: 10380.26 | L171: 1.019306994 | M171: 10186.11 | N171: 12013
A172: 2013-01-08 | B172: 40534109.41 | C172: 0 | D172: 40045456.76 | E172: 1.0122 | F172: 0 | G172: 1.040082134 | J172: MBBGIA | K172: 10381.03 | L172: 1.019306994 | M172: 10186.11 | N172: 12013
A173: 2013-01-09 | B173: 40537376.08 | C173: 0 | D173: 40045456.76 | E173: 1.0123 | F173: 0 | G173: 1.040165955 | J173: MBBGIA | K173: 10381.8 | L173: 1.019306994 | M173: 10186.11 | N173: 12013
A174: 2013-01-10 | B174: 40540642.77 | C174: 0 | D174: 40045456.76 | E174: 1.0124 | F174: 0 | G174: 1.040249776 | J174: MBBGIA | K174: 10382.57 | L174: 1.019306994 | M174: 10186.11 | N174: 12013
A175: 2013-01-11 | B175: 40550442.47 | C175: 0 | D175: 40045456.76 | E175: 1.0126 | F175: 0 | G175: 1.040501231 | J175: MBBGIA | K175: 10383.34 | L175: 1.019306994 | M175: 10186.11 | N175: 12013
A176: 2013-01-14 | B176: 40553708.98 | C176: 0 | D176: 40045456.76 | E176: 1.0127 | F176: 0 | G176: 1.040585048 | J176: MBBGIA | K176: 10385.65 | L176: 1.019306994 | M176: 10186.11 | N176: 12013
A177: 2013-01-15 | B177: 40556975.49 | C177: 0 | D177: 40045456.76 | E177: 1.0128 | F177: 0 | G177: 1.040668865 | J177: MBBGIA | K177: 10386.42 | L177: 1.019306994 | M177: 10186.11 | N177: 12013
A178: 2013-01-16 | B178: 40560246.74 | C178: 0 | D178: 40045456.76 | E178: 1.0129 | F178: 0 | G178: 1.040752803 | J178: MBBGIA | K178: 10387.19 | L178: 1.019306994 | M178: 10186.11 | N178: 12013
A179: 2013-01-17 | B179: 40563517.89 | C179: 0 | D179: 40045456.76 | E179: 1.0129 | F179: 0 | G179: 1.040836739 | J179: MBBGIA | K179: 10387.96 | L179: 1.019306994 | M179: 10186.11 | N179: 12013
A180: 2013-01-18 | B180: 40573331.14 | C180: 0 | D180: 40045456.76 | E180: 1.0132 | F180: 0 | G180: 1.041088541 | J180: MBBGIA | K180: 10388.73 | L180: 1.019306994 | M180: 10186.11 | N180: 12013
A181: 2013-01-21 | B181: 40576602.18 | C181: 0 | D181: 40045456.76 | E181: 1.0133 | F181: 0 | G181: 1.041172474 | J181: MBBGIA | K181: 10391.04 | L181: 1.019306994 | M181: 10186.11 | N181: 12013
A182: 2013-01-22 | B182: 40579874.29 | C182: 0 | D182: 40045456.76 | E182: 1.0133 | F182: 0 | G182: 1.041256435 | J182: MBBGIA | K182: 10391.81 | L182: 1.019306994 | M182: 10186.11 | N182: 12013
A183: 2013-01-23 | B183: 40586428.85 | C183: 0 | D183: 40045456.76 | E183: 1.0135 | F183: 0 | G183: 1.041424621 | J183: MBBGIA | K183: 10392.58 | L183: 1.019306994 | M183: 10186.11 | N183: 12013
A184: 2013-01-25 | B184: 40599537.43 | C184: 0 | D184: 40045456.76 | E184: 1.0138 | F184: 0 | G184: 1.04176098 | J184: MBBGIA | K184: 10394.12 | L184: 1.019306994 | M184: 10186.11 | N184: 12013
A185: 2013-01-29 | B185: 40602814.53 | C185: 0 | D185: 40045456.76 | E185: 1.0139 | F185: 0 | G185: 1.041845068 | J185: MBBGIA | K185: 10397.2 | L185: 1.019306994 | M185: 10186.11 | N185: 12013
A186: 2013-01-30 | B186: 40606091.63 | C186: 0 | D186: 40045456.76 | E186: 1.014 | F186: 0 | G186: 1.041929157 | J186: MBBGIA | K186: 10397.97 | L186: 1.019306994 | M186: 10186.11 | N186: 12013
A187: 2013-01-31 | B187: 40609368.67 | C187: 0 | D187: 40240325.91 | E187: 1.0092 | F187: 0 | G187: 1.042011961 | J187: MBBGIA | K187: 10398.74 | L187: 1.019306994 | M187: 10186.11 | N187: 12013
A188: 2013-02-04 | B188: 40622965.93 | C188: 0 | D188: 40240325.91 | E188: 1.0095 | F188: 0 | G188: 1.042360858 | J188: MBBGIA | K188: 10401.82 | L188: 1.019306994 | M188: 10186.11 | N188: 22013
A189: 2013-02-05 | B189: 40626365.23 | C189: 0 | D189: 40240325.91 | E189: 1.0096 | F189: 0 | G189: 1.042448082 | J189: MBBGIA | K189: 10402.59 | L189: 1.019306994 | M189: 10186.11 | N189: 22013
A190: 2013-02-06 | B190: 40629764.5 | C190: 0 | D190: 40240325.91 | E190: 1.0097 | F190: 0 | G190: 1.042535305 | J190: MBBGIA | K190: 10403.36 | L190: 1.019306994 | M190: 10186.11 | N190: 22013
A191: 2013-02-07 | B191: 40633167.7 | C191: 0 | D191: 40240325.91 | E191: 1.0098 | F191: 0 | G191: 1.042622629 | J191: MBBGIA | K191: 10404.13 | L191: 1.019306994 | M191: 10186.11 | N191: 22013
A192: 2013-02-08 | B192: 40650183.14 | C192: 0 | D192: 40240325.91 | E192: 1.0102 | F192: 0 | G192: 1.043059235 | J192: MBBGIA | K192: 10404.9 | L192: 1.019306994 | M192: 10186.11 | N192: 22013
A193: 2013-02-13 | B193: 40653586.2 | C193: 0 | D193: 40240325.91 | E193: 1.0103 | F193: 0 | G193: 1.043146556 | J193: MBBGIA | K193: 10408.75 | L193: 1.019306994 | M193: 10186.11 | N193: 22013
A194: 2013-02-14 | B194: 40656989.24 | C194: 0 | D194: 40240325.91 | E194: 1.0104 | F194: 0 | G194: 1.043233876 | J194: MBBGIA | K194: 10409.52 | L194: 1.019306994 | M194: 10186.11 | N194: 22013
A195: 2013-02-15 | B195: 40667198.09 | C195: 0 | D195: 40240325.91 | E195: 1.0106 | F195: 0 | G195: 1.043495829 | J195: MBBGIA | K195: 10410.29 | L195: 1.019306994 | M195: 10186.11 | N195: 22013
A196: 2013-02-18 | B196: 40670601.01 | C196: 0 | D196: 40240325.91 | E196: 1.0107 | F196: 0 | G196: 1.043583146 | J196: MBBGIA | K196: 10412.6 | L196: 1.019306994 | M196: 10186.11 | N196: 22013
A197: 2013-02-19 | B197: 40674003.95 | C197: 0 | D197: 40240325.91 | E197: 1.0108 | F197: 0 | G197: 1.043670463 | J197: MBBGIA | K197: 10413.37 | L197: 1.019306994 | M197: 10186.11 | N197: 22013
A198: 2013-02-20 | B198: 40677406.85 | C198: 0 | D198: 40240325.91 | E198: 1.0109 | F198: 0 | G198: 1.043757779 | J198: MBBGIA | K198: 10414.14 | L198: 1.019306994 | M198: 10186.11 | N198: 22013
A199: 2013-02-21 | B199: 40680809.67 | C199: 0 | D199: 40240325.91 | E199: 1.0109 | F199: 0 | G199: 1.043845094 | J199: MBBGIA | K199: 10414.91 | L199: 1.019306994 | M199: 10186.11 | N199: 22013
A200: 2013-02-22 | B200: 40691017.97 | C200: 0 | D200: 40240325.91 | E200: 1.0112 | F200: 0 | G200: 1.044107033 | J200: MBBGIA | K200: 10415.68 | L200: 1.019306994 | M200: 10186.11 | N200: 22013
... 47 more rows

Sheet InHolding (hidden)
A1: qEventTrxID | B1: qTrnCode | C1: qProductType | D1: Remarks | E1: SettleID | F1: SettleGroup | G1: qVoucherID | H1: MasterBuyID | I1: qTranMethod | J1: qFundCode | K1: qCDSAcc | L1: TradeDate | M1: ValueDate | N1: PayDate | O1: MaturityDate | P1: AccDate | Q1: RevDate | R1: qAccType | S1: qCPCode | T1: TranPrice | U1: fTranRefPrice | V1: WSPrice | W1: WSYTM | X1: WSProfit | Y1: WSSettledValue | Z1: SettCurrency | AA1: qBankAccNo | AB1: PaymentEntity | AC1: qStockCode | AD1: ContractNote | AE1: ExchgRateSF | AF1: TranYTM | AG1: UnitFaceValue | AH1: CummFV | AI1: CostSC | AJ1: CostFC | AK1: CummCost | AL1: SCGrossProceed | AM1: TranSCControl | AN1: AccSCControl | AO1: SCNetProceed | AP1: AccSCNetProceed | AQ1: TranProceed | AR1: AccProceed | AS1: TranBuyCapital | AT1: AccCapital | AU1: TranIncome | AV1: AccTI | AW1: TranGains | AX1: AccGain | AY1: TranAmortAccre | AZ1: AccAmortAccre | BA1: TranPreAcq | BB1: AccPreAcq | BC1: TranExpenses | BD1: AccExpenses | BE1: TranFXGnL | BF1: AccFXGnL | BG1: MarriedDeal | BH1: BrokerageFee | BI1: ClearingFee | BJ1: StampDuty | BK1: VAT | BL1: CustodianFeeCC | BM1: CustodianFeeFC | BN1: CustodianCode | BO1: CustDebitGL | BP1: CustCreditGL | BQ1: CustSettleID | BR1: CustCurrency | BS1: SettFlag | BT1: ReversalFlag | BU1: TrialBalanceRef | BV1: qMasterID | BW1: qEvtDeclareID | BX1: PurchaseDate | BY1: CapProcDate | BZ1: ProcessDate | CA1: CrossTrade | CB1: LCD | CC1: NCD | CD1: ParcelID | CE1: CshRollOverFlag | CF1: ShortSellStatus | CG1: DealerKeyInDate | CH1: DealerKeyInBy | CI1: KeyInDate | CJ1: KeyInBy | CK1: Tenure | CL1: CounterName | CM1: CshTypeDesc | CN1: TenureCat
A2: CSH*140300076M | B2: RP | C2: CSH | D2: Convertion from CAMRA,F19091301 | I2: 1 | J2: MMF1 | K2: N/A | L2: 2013-05-07 | M2: 2013-05-07 | N2: 2013-05-07 | O2: 2013-10-03 | P2: 2013-05-07 | Q2: 3000-01-01 | R2: CSMM | S2: F_RAJHI | T2: 1 | U2: 1 | V2: 0 | W2: 0 | X2: 0 | Y2: 0 | Z2: MYR | AA2: DF | AB2: IVCAP | AC2: FDI*MYR*RAJHI | AE2: 1 | AF2: 0.0335 | AG2: 1012000 | AH2: 0 | AI2: 1012000 | AJ2: 1012000 | AK2: 0 | AL2: -1012000 | AM2: 0 | AO2: -1012000 | AP2: 0-IVCAP-MYR-300100 | AQ2: 0 | AS2: 1012000 | AT2: 0-IVCAP-MYR-100210 | AU2: 0 | AW2: 0 | AY2: 0 | BA2: 0 | BC2: 0 | BE2: 0 | BG2: NO | BH2: 0 | BI2: 0 | BJ2: 0 | BK2: 0 | BL2: 0 | BM2: 0 | BN2: N/A | BR2: MYR | BS2: -1 | BT2: 0 | BV2: CSH*140300076M | BX2: 3000-01-01 | BY2: 2013-05-07 | BZ2: 2013-05-07 | CA2: 0 | CB2: 3000-01-01 | CC2: 3000-01-01 | CE2: 0 | CF2: 0 | CG2: 2014-06-03 | CH2: admin | CI2: 2014-06-03 | CJ2: admin | CK2: 149 | CL2: Al Rajhi Bank | CM2: Fixed Deposit Islamic | CN2: 4-5 mths
A3: CSH*140300077M | B3: RP | C3: CSH | D3: Convertion from CAMRA,F19091301 | I3: 1 | J3: MMF1 | K3: N/A | L3: 2013-05-07 | M3: 2013-05-07 | N3: 2013-05-07 | O3: 2013-10-09 | P3: 2013-05-07 | Q3: 3000-01-01 | R3: CSMM | S3: F_RAJHI | T3: 1 | U3: 1 | V3: 0 | W3: 0 | X3: 0 | Y3: 0 | Z3: MYR | AA3: DF | AB3: IVCAP | AC3: FDI*MYR*RAJHI | AE3: 1 | AF3: 0.0335 | AG3: 1020923.12 | AH3: 0 | AI3: 1020923.12 | AJ3: 1020923.12 | AK3: 0 | AL3: -1020923.12 | AM3: 0 | AO3: -1020923.12 | AP3: 0-IVCAP-MYR-300100 | AQ3: 0 | AS3: 1020923.12 | AT3: 0-IVCAP-MYR-100210 | AU3: 0 | AW3: 0 | AY3: 0 | BA3: 0 | BC3: 0 | BE3: 0 | BG3: NO | BH3: 0 | BI3: 0 | BJ3: 0 | BK3: 0 | BL3: 0 | BM3: 0 | BN3: N/A | BR3: MYR | BS3: -1 | BT3: 0 | BV3: CSH*140300077M | BX3: 3000-01-01 | BY3: 2013-05-07 | BZ3: 2013-05-07 | CA3: 0 | CB3: 3000-01-01 | CC3: 3000-01-01 | CE3: 0 | CF3: 0 | CG3: 2014-06-03 | CH3: admin | CI3: 2014-06-03 | CJ3: admin | CK3: 155 | CL3: Al Rajhi Bank | CM3: Fixed Deposit Islamic | CN3: 5-6 mths
A4: CSH*140300078M | B4: RP | C4: CSH | D4: Convertion from CAMRA,F19091301 | I4: 1 | J4: MMF1 | K4: N/A | L4: 2013-05-14 | M4: 2013-05-14 | N4: 2013-05-14 | O4: 2013-10-17 | P4: 2013-05-14 | Q4: 3000-01-01 | R4: CSMM | S4: F_BMMB | T4: 1 | U4: 1 | V4: 0 | W4: 0 | X4: 0 | Y4: 0 | Z4: MYR | AA4: DF | AB4: IVCAP | AC4: FDI*MYR*BMMB | AE4: 1 | AF4: 0.033 | AG4: 1065778.2 | AH4: 0 | AI4: 1065778.2 | AJ4: 1065778.2 | AK4: 0 | AL4: -1065778.2 | AM4: 0 | AO4: -1065778.2 | AP4: 0-IVCAP-MYR-300100 | AQ4: 0 | AS4: 1065778.2 | AT4: 0-IVCAP-MYR-100210 | AU4: 0 | AW4: 0 | AY4: 0 | BA4: 0 | BC4: 0 | BE4: 0 | BG4: NO | BH4: 0 | BI4: 0 | BJ4: 0 | BK4: 0 | BL4: 0 | BM4: 0 | BN4: N/A | BR4: MYR | BS4: -1 | BT4: 0 | BV4: CSH*140300078M | BX4: 3000-01-01 | BY4: 2013-05-14 | BZ4: 2013-05-14 | CA4: 0 | CB4: 3000-01-01 | CC4: 3000-01-01 | CE4: 0 | CF4: 0 | CG4: 2014-06-03 | CH4: admin | CI4: 2014-06-03 | CJ4: admin | CK4: 156 | CL4: Bank Muamalat Malaysia Berhad | CM4: Fixed Deposit Islamic | CN4: 5-6 mths
A5: CSH*140300079M | B5: RP | C5: CSH | D5: Convertion from CAMRA,F19091301 | I5: 1 | J5: MMF1 | K5: N/A | L5: 2013-05-14 | M5: 2013-05-14 | N5: 2013-05-14 | O5: 2013-10-30 | P5: 2013-05-14 | Q5: 3000-01-01 | R5: CSMM | S5: F_BMMB | T5: 1 | U5: 1 | V5: 0 | W5: 0 | X5: 0 | Y5: 0 | Z5: MYR | AA5: DF | AB5: IVCAP | AC5: FDI*MYR*BMMB | AE5: 1 | AF5: 0.033 | AG5: 1100000 | AH5: 0 | AI5: 1100000 | AJ5: 1100000 | AK5: 0 | AL5: -1100000 | AM5: 0 | AO5: -1100000 | AP5: 0-IVCAP-MYR-300100 | AQ5: 0 | AS5: 1100000 | AT5: 0-IVCAP-MYR-100210 | AU5: 0 | AW5: 0 | AY5: 0 | BA5: 0 | BC5: 0 | BE5: 0 | BG5: NO | BH5: 0 | BI5: 0 | BJ5: 0 | BK5: 0 | BL5: 0 | BM5: 0 | BN5: N/A | BR5: MYR | BS5: -1 | BT5: 0 | BV5: CSH*140300079M | BX5: 3000-01-01 | BY5: 2013-05-14 | BZ5: 2013-05-14 | CA5: 0 | CB5: 3000-01-01 | CC5: 3000-01-01 | CE5: 0 | CF5: 0 | CG5: 2014-06-03 | CH5: admin | CI5: 2014-06-03 | CJ5: admin | CK5: 169 | CL5: Bank Muamalat Malaysia Berhad | CM5: Fixed Deposit Islamic | CN5: 5-6 mths
A6: CSH*140300080M | B6: RP | C6: CSH | D6: Convertion from CAMRA,F19091301 | I6: 1 | J6: MMF1 | K6: N/A | L6: 2013-06-05 | M6: 2013-06-05 | N6: 2013-06-05 | O6: 2013-11-07 | P6: 2013-06-05 | Q6: 3000-01-01 | R6: CSMM | S6: F_BIMB | T6: 1 | U6: 1 | V6: 0 | W6: 0 | X6: 0 | Y6: 0 | Z6: MYR | AA6: DF | AB6: IVCAP | AC6: FDI*MYR*BIMB | AE6: 1 | AF6: 0.033 | AG6: 1511695.46 | AH6: 0 | AI6: 1511695.46 | AJ6: 1511695.46 | AK6: 0 | AL6: -1511695.46 | AM6: 0 | AO6: -1511695.46 | AP6: 0-IVCAP-MYR-300100 | AQ6: 0 | AS6: 1511695.46 | AT6: 0-IVCAP-MYR-100210 | AU6: 0 | AW6: 0 | AY6: 0 | BA6: 0 | BC6: 0 | BE6: 0 | BG6: NO | BH6: 0 | BI6: 0 | BJ6: 0 | BK6: 0 | BL6: 0 | BM6: 0 | BN6: N/A | BR6: MYR | BS6: -1 | BT6: 0 | BV6: CSH*140300080M | BX6: 3000-01-01 | BY6: 2013-06-05 | BZ6: 2013-06-05 | CA6: 0 | CB6: 3000-01-01 | CC6: 3000-01-01 | CE6: 0 | CF6: 0 | CG6: 2014-06-03 | CH6: admin | CI6: 2014-06-03 | CJ6: admin | CK6: 155 | CL6: Bank Islam Malaysia Berhad | CM6: Fixed Deposit Islamic | CN6: 5-6 mths
A7: CSH*140300081M | B7: RP | C7: CSH | D7: Convertion from CAMRA,F19091301 | I7: 1 | J7: MMF1 | K7: N/A | L7: 2013-06-12 | M7: 2013-06-12 | N7: 2013-06-12 | O7: 2013-11-12 | P7: 2013-06-12 | Q7: 3000-01-01 | R7: CSMM | S7: F_RAJHI | T7: 1 | U7: 1 | V7: 0 | W7: 0 | X7: 0 | Y7: 0 | Z7: MYR | AA7: DF | AB7: IVCAP | AC7: FDI*MYR*RAJHI | AE7: 1 | AF7: 0.033 | AG7: 1854560.96 | AH7: 0 | AI7: 1854560.96 | AJ7: 1854560.96 | AK7: 0 | AL7: -1854560.96 | AM7: 0 | AO7: -1854560.96 | AP7: 0-IVCAP-MYR-300100 | AQ7: 0 | AS7: 1854560.96 | AT7: 0-IVCAP-MYR-100210 | AU7: 0 | AW7: 0 | AY7: 0 | BA7: 0 | BC7: 0 | BE7: 0 | BG7: NO | BH7: 0 | BI7: 0 | BJ7: 0 | BK7: 0 | BL7: 0 | BM7: 0 | BN7: N/A | BR7: MYR | BS7: -1 | BT7: 0 | BV7: CSH*140300081M | BX7: 3000-01-01 | BY7: 2013-06-12 | BZ7: 2013-06-12 | CA7: 0 | CB7: 3000-01-01 | CC7: 3000-01-01 | CE7: 0 | CF7: 0 | CG7: 2014-06-03 | CH7: admin | CI7: 2014-06-03 | CJ7: admin | CK7: 153 | CL7: Al Rajhi Bank | CM7: Fixed Deposit Islamic | CN7: 5-6 mths
A8: CSH*140300082M | B8: RP | C8: CSH | D8: Convertion from CAMRA,F19091301 | I8: 1 | J8: MMF1 | K8: N/A | L8: 2013-06-19 | M8: 2013-06-19 | N8: 2013-06-19 | O8: 2013-11-27 | P8: 2013-06-19 | Q8: 3000-01-01 | R8: CSMM | S8: F_KFH | T8: 1 | U8: 1 | V8: 0 | W8: 0 | X8: 0 | Y8: 0 | Z8: MYR | AA8: DF | AB8: IVCAP | AC8: FDI*MYR*KFH | AE8: 1 | AF8: 0.033 | AG8: 1093512.16 | AH8: 0 | AI8: 1093512.16 | AJ8: 1093512.16 | AK8: 0 | AL8: -1093512.16 | AM8: 0 | AO8: -1093512.16 | AP8: 0-IVCAP-MYR-300100 | AQ8: 0 | AS8: 1093512.16 | AT8: 0-IVCAP-MYR-100210 | AU8: 0 | AW8: 0 | AY8: 0 | BA8: 0 | BC8: 0 | BE8: 0 | BG8: NO | BH8: 0 | BI8: 0 | BJ8: 0 | BK8: 0 | BL8: 0 | BM8: 0 | BN8: N/A | BR8: MYR | BS8: -1 | BT8: 0 | BV8: CSH*140300082M | BX8: 3000-01-01 | BY8: 2013-06-19 | BZ8: 2013-06-19 | CA8: 0 | CB8: 3000-01-01 | CC8: 3000-01-01 | CE8: 0 | CF8: 0 | CG8: 2014-06-03 | CH8: admin | CI8: 2014-06-03 | CJ8: admin | CK8: 161 | CL8: Kuwait Finance House | CM8: Fixed Deposit Islamic | CN8: 5-6 mths
A9: CSH*140300083M | B9: RP | C9: CSH | D9: Convertion from CAMRA,F19091301 | I9: 1 | J9: MMF1 | K9: N/A | L9: 2013-06-19 | M9: 2013-06-19 | N9: 2013-06-19 | O9: 2013-11-20 | P9: 2013-06-19 | Q9: 3000-01-01 | R9: CSMM | S9: F_KFH | T9: 1 | U9: 1 | V9: 0 | W9: 0 | X9: 0 | Y9: 0 | Z9: MYR | AA9: DF | AB9: IVCAP | AC9: FDI*MYR*KFH | AE9: 1 | AF9: 0.033 | AG9: 1100000 | AH9: 0 | AI9: 1100000 | AJ9: 1100000 | AK9: 0 | AL9: -1100000 | AM9: 0 | AO9: -1100000 | AP9: 0-IVCAP-MYR-300100 | AQ9: 0 | AS9: 1100000 | AT9: 0-IVCAP-MYR-100210 | AU9: 0 | AW9: 0 | AY9: 0 | BA9: 0 | BC9: 0 | BE9: 0 | BG9: NO | BH9: 0 | BI9: 0 | BJ9: 0 | BK9: 0 | BL9: 0 | BM9: 0 | BN9: N/A | BR9: MYR | BS9: -1 | BT9: 0 | BV9: CSH*140300083M | BX9: 3000-01-01 | BY9: 2013-06-19 | BZ9: 2013-06-19 | CA9: 0 | CB9: 3000-01-01 | CC9: 3000-01-01 | CE9: 0 | CF9: 0 | CG9: 2014-06-03 | CH9: admin | CI9: 2014-06-03 | CJ9: admin | CK9: 154 | CL9: Kuwait Finance House | CM9: Fixed Deposit Islamic | CN9: 5-6 mths
A10: CSH*140300084M | B10: RP | C10: CSH | D10: Convertion from CAMRA,F19091301 | I10: 1 | J10: MMF1 | K10: N/A | L10: 2013-06-25 | M10: 2013-06-25 | N10: 2013-06-25 | O10: 2013-12-04 | P10: 2013-06-25 | Q10: 3000-01-01 | R10: CSMM | S10: F_RAJHI | T10: 1 | U10: 1 | V10: 0 | W10: 0 | X10: 0 | Y10: 0 | Z10: MYR | AA10: DF | AB10: IVCAP | AC10: FDI*MYR*RAJHI | AE10: 1 | AF10: 0.033 | AG10: 1020000 | AH10: 0 | AI10: 1020000 | AJ10: 1020000 | AK10: 0 | AL10: -1020000 | AM10: 0 | AO10: -1020000 | AP10: 0-IVCAP-MYR-300100 | AQ10: 0 | AS10: 1020000 | AT10: 0-IVCAP-MYR-100210 | AU10: 0 | AW10: 0 | AY10: 0 | BA10: 0 | BC10: 0 | BE10: 0 | BG10: NO | BH10: 0 | BI10: 0 | BJ10: 0 | BK10: 0 | BL10: 0 | BM10: 0 | BN10: N/A | BR10: MYR | BS10: -1 | BT10: 0 | BV10: CSH*140300084M | BX10: 3000-01-01 | BY10: 2013-06-25 | BZ10: 2013-06-25 | CA10: 0 | CB10: 3000-01-01 | CC10: 3000-01-01 | CE10: 0 | CF10: 0 | CG10: 2014-06-03 | CH10: admin | CI10: 2014-06-03 | CJ10: admin | CK10: 162 | CL10: Al Rajhi Bank | CM10: Fixed Deposit Islamic | CN10: 5-6 mths
A11: CSH*140300085M | B11: RP | C11: CSH | D11: Convertion from CAMRA,F19091301 | I11: 1 | J11: MMF1 | K11: N/A | L11: 2013-06-25 | M11: 2013-06-25 | N11: 2013-06-25 | O11: 2013-12-11 | P11: 2013-06-25 | Q11: 3000-01-01 | R11: CSMM | S11: F_RAJHI | T11: 1 | U11: 1 | V11: 0 | W11: 0 | X11: 0 | Y11: 0 | Z11: MYR | AA11: DF | AB11: IVCAP | AC11: FDI*MYR*RAJHI | AE11: 1 | AF11: 0.0332 | AG11: 1014342.3 | AH11: 0 | AI11: 1014342.3 | AJ11: 1014342.3 | AK11: 0 | AL11: -1014342.3 | AM11: 0 | AO11: -1014342.3 | AP11: 0-IVCAP-MYR-300100 | AQ11: 0 | AS11: 1014342.3 | AT11: 0-IVCAP-MYR-100210 | AU11: 0 | AW11: 0 | AY11: 0 | BA11: 0 | BC11: 0 | BE11: 0 | BG11: NO | BH11: 0 | BI11: 0 | BJ11: 0 | BK11: 0 | BL11: 0 | BM11: 0 | BN11: N/A | BR11: MYR | BS11: -1 | BT11: 0 | BV11: CSH*140300085M | BX11: 3000-01-01 | BY11: 2013-06-25 | BZ11: 2013-06-25 | CA11: 0 | CB11: 3000-01-01 | CC11: 3000-01-01 | CE11: 0 | CF11: 0 | CG11: 2014-06-03 | CH11: admin | CI11: 2014-06-03 | CJ11: admin | CK11: 169 | CL11: Al Rajhi Bank | CM11: Fixed Deposit Islamic | CN11: 5-6 mths
A12: CSH*140300086M | B12: RP | C12: CSH | D12: Convertion from CAMRA,F19091301 | I12: 1 | J12: MMF1 | K12: N/A | L12: 2013-07-03 | M12: 2013-07-03 | N12: 2013-07-03 | O12: 2013-12-18 | P12: 2013-07-03 | Q12: 3000-01-01 | R12: CSMM | S12: F_RAJHI | T12: 1 | U12: 1 | V12: 0 | W12: 0 | X12: 0 | Y12: 0 | Z12: MYR | AA12: DF | AB12: IVCAP | AC12: FDI*MYR*RAJHI | AE12: 1 | AF12: 0.0335 | AG12: 1023593.85 | AH12: 0 | AI12: 1023593.85 | AJ12: 1023593.85 | AK12: 0 | AL12: -1023593.85 | AM12: 0 | AO12: -1023593.85 | AP12: 0-IVCAP-MYR-300100 | AQ12: 0 | AS12: 1023593.85 | AT12: 0-IVCAP-MYR-100210 | AU12: 0 | AW12: 0 | AY12: 0 | BA12: 0 | BC12: 0 | BE12: 0 | BG12: NO | BH12: 0 | BI12: 0 | BJ12: 0 | BK12: 0 | BL12: 0 | BM12: 0 | BN12: N/A | BR12: MYR | BS12: -1 | BT12: 0 | BV12: CSH*140300086M | BX12: 3000-01-01 | BY12: 2013-07-03 | BZ12: 2013-07-03 | CA12: 0 | CB12: 3000-01-01 | CC12: 3000-01-01 | CE12: 0 | CF12: 0 | CG12: 2014-06-03 | CH12: admin | CI12: 2014-06-03 | CJ12: admin | CK12: 168 | CL12: Al Rajhi Bank | CM12: Fixed Deposit Islamic | CN12: 5-6 mths
A13: CSH*140300087M | B13: RP | C13: CSH | D13: Convertion from CAMRA,F19091301 | I13: 1 | J13: MMF1 | K13: N/A | L13: 2013-07-10 | M13: 2013-07-10 | N13: 2013-07-10 | O13: 2013-12-23 | P13: 2013-07-10 | Q13: 3000-01-01 | R13: CSMM | S13: F_RAJHI | T13: 1 | U13: 1 | V13: 0 | W13: 0 | X13: 0 | Y13: 0 | Z13: MYR | AA13: DF | AB13: IVCAP | AC13: FDI*MYR*RAJHI | AE13: 1 | AF13: 0.0335 | AG13: 1300000 | AH13: 0 | AI13: 1300000 | AJ13: 1300000 | AK13: 0 | AL13: -1300000 | AM13: 0 | AO13: -1300000 | AP13: 0-IVCAP-MYR-300100 | AQ13: 0 | AS13: 1300000 | AT13: 0-IVCAP-MYR-100210 | AU13: 0 | AW13: 0 | AY13: 0 | BA13: 0 | BC13: 0 | BE13: 0 | BG13: NO | BH13: 0 | BI13: 0 | BJ13: 0 | BK13: 0 | BL13: 0 | BM13: 0 | BN13: N/A | BR13: MYR | BS13: -1 | BT13: 0 | BV13: CSH*140300087M | BX13: 3000-01-01 | BY13: 2013-07-10 | BZ13: 2013-07-10 | CA13: 0 | CB13: 3000-01-01 | CC13: 3000-01-01 | CE13: 0 | CF13: 0 | CG13: 2014-06-03 | CH13: admin | CI13: 2014-06-03 | CJ13: admin | CK13: 166 | CL13: Al Rajhi Bank | CM13: Fixed Deposit Islamic | CN13: 5-6 mths
A14: CSH*140300088M | B14: RP | C14: CSH | D14: Convertion from CAMRA,F19091301 | I14: 1 | J14: MMF1 | K14: N/A | L14: 2013-07-10 | M14: 2013-07-10 | N14: 2013-07-10 | O14: 2014-01-06 | P14: 2013-07-10 | Q14: 3000-01-01 | R14: CSMM | S14: F_RAJHI | T14: 1 | U14: 1 | V14: 0 | W14: 0 | X14: 0 | Y14: 0 | Z14: MYR | AA14: DF | AB14: IVCAP | AC14: FDI*MYR*RAJHI | AE14: 1 | AF14: 0.0335 | AG14: 1742000 | AH14: 0 | AI14: 1742000 | AJ14: 1742000 | AK14: 0 | AL14: -1742000 | AM14: 0 | AO14: -1742000 | AP14: 0-IVCAP-MYR-300100 | AQ14: 0 | AS14: 1742000 | AT14: 0-IVCAP-MYR-100210 | AU14: 0 | AW14: 0 | AY14: 0 | BA14: 0 | BC14: 0 | BE14: 0 | BG14: NO | BH14: 0 | BI14: 0 | BJ14: 0 | BK14: 0 | BL14: 0 | BM14: 0 | BN14: N/A | BR14: MYR | BS14: -1 | BT14: 0 | BV14: CSH*140300088M | BX14: 3000-01-01 | BY14: 2013-07-10 | BZ14: 2013-07-10 | CA14: 0 | CB14: 3000-01-01 | CC14: 3000-01-01 | CE14: 0 | CF14: 0 | CG14: 2014-06-03 | CH14: admin | CI14: 2014-06-03 | CJ14: admin | CK14: 180 | CL14: Al Rajhi Bank | CM14: Fixed Deposit Islamic | CN14: 5-6 mths
A15: CSH*140300089M | B15: RP | C15: CSH | D15: Convertion from CAMRA,F19091301 | I15: 1 | J15: MMF1 | K15: N/A | L15: 2013-07-17 | M15: 2013-07-17 | N15: 2013-07-17 | O15: 2014-01-06 | P15: 2013-07-17 | Q15: 3000-01-01 | R15: CSMM | S15: F_KFH | T15: 1 | U15: 1 | V15: 0 | W15: 0 | X15: 0 | Y15: 0 | Z15: MYR | AA15: DF | AB15: IVCAP | AC15: FDI*MYR*KFH | AE15: 1 | AF15: 0.0166 | AG15: 1553726.64 | AH15: 0 | AI15: 1553726.64 | AJ15: 1553726.64 | AK15: 0 | AL15: -1553726.64 | AM15: 0 | AO15: -1553726.64 | AP15: 0-IVCAP-MYR-300100 | AQ15: 0 | AS15: 1553726.64 | AT15: 0-IVCAP-MYR-100210 | AU15: 0 | AW15: 0 | AY15: 0 | BA15: 0 | BC15: 0 | BE15: 0 | BG15: NO | BH15: 0 | BI15: 0 | BJ15: 0 | BK15: 0 | BL15: 0 | BM15: 0 | BN15: N/A | BR15: MYR | BS15: -1 | BT15: 0 | BV15: CSH*140300089M | BX15: 3000-01-01 | BY15: 2013-07-17 | BZ15: 2013-07-17 | CA15: 0 | CB15: 3000-01-01 | CC15: 3000-01-01 | CE15: 0 | CF15: 0 | CG15: 2014-06-03 | CH15: admin | CI15: 2014-06-03 | CJ15: admin | CK15: 173 | CL15: Kuwait Finance House | CM15: Fixed Deposit Islamic | CN15: 5-6 mths
A16: CSH*140300090M | B16: RP | C16: CSH | D16: Convertion from CAMRA,F19091301 | I16: 1 | J16: MMF1 | K16: N/A | L16: 2013-07-17 | M16: 2013-07-17 | N16: 2013-07-17 | O16: 2014-01-06 | P16: 2013-07-17 | Q16: 3000-01-01 | R16: CSMM | S16: F_KFH | T16: 1 | U16: 1 | V16: 0 | W16: 0 | X16: 0 | Y16: 0 | Z16: MYR | AA16: DF | AB16: IVCAP | AC16: FDI*MYR*KFH | AE16: 1 | AF16: 0.0166 | AG16: 1500000 | AH16: 0 | AI16: 1500000 | AJ16: 1500000 | AK16: 0 | AL16: -1500000 | AM16: 0 | AO16: -1500000 | AP16: 0-IVCAP-MYR-300100 | AQ16: 0 | AS16: 1500000 | AT16: 0-IVCAP-MYR-100210 | AU16: 0 | AW16: 0 | AY16: 0 | BA16: 0 | BC16: 0 | BE16: 0 | BG16: NO | BH16: 0 | BI16: 0 | BJ16: 0 | BK16: 0 | BL16: 0 | BM16: 0 | BN16: N/A | BR16: MYR | BS16: -1 | BT16: 0 | BV16: CSH*140300090M | BX16: 3000-01-01 | BY16: 2013-07-17 | BZ16: 2013-07-17 | CA16: 0 | CB16: 3000-01-01 | CC16: 3000-01-01 | CE16: 0 | CF16: 0 | CG16: 2014-06-03 | CH16: admin | CI16: 2014-06-03 | CJ16: admin | CK16: 173 | CL16: Kuwait Finance House | CM16: Fixed Deposit Islamic | CN16: 5-6 mths
A17: CSH*140300091M | B17: RP | C17: CSH | D17: Convertion from CAMRA,F19091301 | I17: 1 | J17: MMF1 | K17: N/A | L17: 2013-07-24 | M17: 2013-07-24 | N17: 2013-07-24 | O17: 2014-01-06 | P17: 2013-07-24 | Q17: 3000-01-01 | R17: CSMM | S17: F_BMMB | T17: 1 | U17: 1 | V17: 0 | W17: 0 | X17: 0 | Y17: 0 | Z17: MYR | AA17: DF | AB17: IVCAP | AC17: FDI*MYR*BMMB | AE17: 1 | AF17: 0.03 | AG17: 1015000 | AH17: 0 | AI17: 1015000 | AJ17: 1015000 | AK17: 0 | AL17: -1015000 | AM17: 0 | AO17: -1015000 | AP17: 0-IVCAP-MYR-300100 | AQ17: 0 | AS17: 1015000 | AT17: 0-IVCAP-MYR-100210 | AU17: 0 | AW17: 0 | AY17: 0 | BA17: 0 | BC17: 0 | BE17: 0 | BG17: NO | BH17: 0 | BI17: 0 | BJ17: 0 | BK17: 0 | BL17: 0 | BM17: 0 | BN17: N/A | BR17: MYR | BS17: -1 | BT17: 0 | BV17: CSH*140300091M | BX17: 3000-01-01 | BY17: 2013-07-24 | BZ17: 2013-07-24 | CA17: 0 | CB17: 3000-01-01 | CC17: 3000-01-01 | CE17: 0 | CF17: 0 | CG17: 2014-06-03 | CH17: admin | CI17: 2014-06-03 | CJ17: admin | CK17: 166 | CL17: Bank Muamalat Malaysia Berhad | CM17: Fixed Deposit Islamic | CN17: 5-6 mths
A18: CSH*140300092M | B18: RP | C18: CSH | D18: Convertion from CAMRA,F19091301 | I18: 1 | J18: MMF1 | K18: N/A | L18: 2013-07-24 | M18: 2013-07-24 | N18: 2013-07-24 | O18: 2014-01-06 | P18: 2013-07-24 | Q18: 3000-01-01 | R18: CSMM | S18: F_BMMB | T18: 1 | U18: 1 | V18: 0 | W18: 0 | X18: 0 | Y18: 0 | Z18: MYR | AA18: DF | AB18: IVCAP | AC18: FDI*MYR*BMMB | AE18: 1 | AF18: 0.03 | AG18: 1060581.79 | AH18: 0 | AI18: 1060581.79 | AJ18: 1060581.79 | AK18: 0 | AL18: -1060581.79 | AM18: 0 | AO18: -1060581.79 | AP18: 0-IVCAP-MYR-300100 | AQ18: 0 | AS18: 1060581.79 | AT18: 0-IVCAP-MYR-100210 | AU18: 0 | AW18: 0 | AY18: 0 | BA18: 0 | BC18: 0 | BE18: 0 | BG18: NO | BH18: 0 | BI18: 0 | BJ18: 0 | BK18: 0 | BL18: 0 | BM18: 0 | BN18: N/A | BR18: MYR | BS18: -1 | BT18: 0 | BV18: CSH*140300092M | BX18: 3000-01-01 | BY18: 2013-07-24 | BZ18: 2013-07-24 | CA18: 0 | CB18: 3000-01-01 | CC18: 3000-01-01 | CE18: 0 | CF18: 0 | CG18: 2014-06-03 | CH18: admin | CI18: 2014-06-03 | CJ18: admin | CK18: 166 | CL18: Bank Muamalat Malaysia Berhad | CM18: Fixed Deposit Islamic | CN18: 5-6 mths
A19: CSH*140300093M | B19: RP | C19: CSH | D19: Convertion from CAMRA,F19091301 | I19: 1 | J19: MMF1 | K19: N/A | L19: 2013-08-06 | M19: 2013-08-06 | N19: 2013-08-06 | O19: 2014-02-12 | P19: 2013-08-06 | Q19: 3000-01-01 | R19: CSMM | S19: F_KFH | T19: 1 | U19: 1 | V19: 0 | W19: 0 | X19: 0 | Y19: 0 | Z19: MYR | AA19: DF | AB19: IVCAP | AC19: FDI*MYR*KFH | AE19: 1 | AF19: 0.0332 | AG19: 1615688.98 | AH19: 0 | AI19: 1615688.98 | AJ19: 1615688.98 | AK19: 0 | AL19: -1615688.98 | AM19: 0 | AO19: -1615688.98 | AP19: 0-IVCAP-MYR-300100 | AQ19: 0 | AS19: 1615688.98 | AT19: 0-IVCAP-MYR-100210 | AU19: 0 | AW19: 0 | AY19: 0 | BA19: 0 | BC19: 0 | BE19: 0 | BG19: NO | BH19: 0 | BI19: 0 | BJ19: 0 | BK19: 0 | BL19: 0 | BM19: 0 | BN19: N/A | BR19: MYR | BS19: -1 | BT19: 0 | BV19: CSH*140300093M | BX19: 3000-01-01 | BY19: 2013-08-06 | BZ19: 2013-08-06 | CA19: 0 | CB19: 3000-01-01 | CC19: 3000-01-01 | CE19: 0 | CF19: 0 | CG19: 2014-06-03 | CH19: admin | CI19: 2014-06-03 | CJ19: admin | CK19: 190 | CL19: Kuwait Finance House | CM19: Fixed Deposit Islamic | CN19: 6-7 mths
A20: CSH*140300094M | B20: RP | C20: CSH | D20: Convertion from CAMRA,F19091301 | I20: 1 | J20: MMF1 | K20: N/A | L20: 2013-08-06 | M20: 2013-08-06 | N20: 2013-08-06 | O20: 2014-02-19 | P20: 2013-08-06 | Q20: 3000-01-01 | R20: CSMM | S20: F_KFH | T20: 1 | U20: 1 | V20: 0 | W20: 0 | X20: 0 | Y20: 0 | Z20: MYR | AA20: DF | AB20: IVCAP | AC20: FDI*MYR*KFH | AE20: 1 | AF20: 0.0332 | AG20: 1600000 | AH20: 0 | AI20: 1600000 | AJ20: 1600000 | AK20: 0 | AL20: -1600000 | AM20: 0 | AO20: -1600000 | AP20: 0-IVCAP-MYR-300100 | AQ20: 0 | AS20: 1600000 | AT20: 0-IVCAP-MYR-100210 | AU20: 0 | AW20: 0 | AY20: 0 | BA20: 0 | BC20: 0 | BE20: 0 | BG20: NO | BH20: 0 | BI20: 0 | BJ20: 0 | BK20: 0 | BL20: 0 | BM20: 0 | BN20: N/A | BR20: MYR | BS20: -1 | BT20: 0 | BV20: CSH*140300094M | BX20: 3000-01-01 | BY20: 2013-08-06 | BZ20: 2013-08-06 | CA20: 0 | CB20: 3000-01-01 | CC20: 3000-01-01 | CE20: 0 | CF20: 0 | CG20: 2014-06-03 | CH20: admin | CI20: 2014-06-03 | CJ20: admin | CK20: 197 | CL20: Kuwait Finance House | CM20: Fixed Deposit Islamic | CN20: 6-7 mths
A21: CSH*140300095M | B21: RP | C21: CSH | D21: Convertion from CAMRA,F19091301 | I21: 1 | J21: MMF1 | K21: N/A | L21: 2013-08-16 | M21: 2013-08-16 | N21: 2013-08-16 | O21: 2014-03-05 | P21: 2013-08-16 | Q21: 3000-01-01 | R21: CSMM | S21: F_KFH | T21: 1 | U21: 1 | V21: 0 | W21: 0 | X21: 0 | Y21: 0 | Z21: MYR | AA21: DF | AB21: IVCAP | AC21: FDI*MYR*KFH | AE21: 1 | AF21: 0.0335 | AG21: 1357753.62 | AH21: 0 | AI21: 1357753.62 | AJ21: 1357753.62 | AK21: 0 | AL21: -1357753.62 | AM21: 0 | AO21: -1357753.62 | AP21: 0-IVCAP-MYR-300100 | AQ21: 0 | AS21: 1357753.62 | AT21: 0-IVCAP-MYR-100210 | AU21: 0 | AW21: 0 | AY21: 0 | BA21: 0 | BC21: 0 | BE21: 0 | BG21: NO | BH21: 0 | BI21: 0 | BJ21: 0 | BK21: 0 | BL21: 0 | BM21: 0 | BN21: N/A | BR21: MYR | BS21: -1 | BT21: 0 | BV21: CSH*140300095M | BX21: 3000-01-01 | BY21: 2013-08-16 | BZ21: 2013-08-16 | CA21: 0 | CB21: 3000-01-01 | CC21: 3000-01-01 | CE21: 0 | CF21: 0 | CG21: 2014-06-03 | CH21: admin | CI21: 2014-06-03 | CJ21: admin | CK21: 201 | CL21: Kuwait Finance House | CM21: Fixed Deposit Islamic | CN21: 6-7 mths
A22: CSH*140300096M | B22: RP | C22: CSH | D22: Convertion from CAMRA,F19091301 | I22: 1 | J22: MMF1 | K22: N/A | L22: 2013-08-16 | M22: 2013-08-16 | N22: 2013-08-16 | O22: 2014-02-26 | P22: 2013-08-16 | Q22: 3000-01-01 | R22: CSMM | S22: F_KFH | T22: 1 | U22: 1 | V22: 0 | W22: 0 | X22: 0 | Y22: 0 | Z22: MYR | AA22: DF | AB22: IVCAP | AC22: FDI*MYR*KFH | AE22: 1 | AF22: 0.0332 | AG22: 1400000 | AH22: 0 | AI22: 1400000 | AJ22: 1400000 | AK22: 0 | AL22: -1400000 | AM22: 0 | AO22: -1400000 | AP22: 0-IVCAP-MYR-300100 | AQ22: 0 | AS22: 1400000 | AT22: 0-IVCAP-MYR-100210 | AU22: 0 | AW22: 0 | AY22: 0 | BA22: 0 | BC22: 0 | BE22: 0 | BG22: NO | BH22: 0 | BI22: 0 | BJ22: 0 | BK22: 0 | BL22: 0 | BM22: 0 | BN22: N/A | BR22: MYR | BS22: -1 | BT22: 0 | BV22: CSH*140300096M | BX22: 3000-01-01 | BY22: 2013-08-16 | BZ22: 2013-08-16 | CA22: 0 | CB22: 3000-01-01 | CC22: 3000-01-01 | CE22: 0 | CF22: 0 | CG22: 2014-06-03 | CH22: admin | CI22: 2014-06-03 | CJ22: admin | CK22: 194 | CL22: Kuwait Finance House | CM22: Fixed Deposit Islamic | CN22: 6-7 mths
A23: CSH*140300097M | B23: RP | C23: CSH | D23: Convertion from CAMRA,F19091301 | I23: 1 | J23: MMF1 | K23: N/A | L23: 2013-08-21 | M23: 2013-08-21 | N23: 2013-08-21 | O23: 2014-03-19 | P23: 2013-08-21 | Q23: 3000-01-01 | R23: CSMM | S23: F_KFH | T23: 1 | U23: 1 | V23: 0 | W23: 0 | X23: 0 | Y23: 0 | Z23: MYR | AA23: DF | AB23: IVCAP | AC23: FDI*MYR*KFH | AE23: 1 | AF23: 0.0335 | AG23: 1524088.47 | AH23: 0 | AI23: 1524088.47 | AJ23: 1524088.47 | AK23: 0 | AL23: -1524088.47 | AM23: 0 | AO23: -1524088.47 | AP23: 0-IVCAP-MYR-300100 | AQ23: 0 | AS23: 1524088.47 | AT23: 0-IVCAP-MYR-100210 | AU23: 0 | AW23: 0 | AY23: 0 | BA23: 0 | BC23: 0 | BE23: 0 | BG23: NO | BH23: 0 | BI23: 0 | BJ23: 0 | BK23: 0 | BL23: 0 | BM23: 0 | BN23: N/A | BR23: MYR | BS23: -1 | BT23: 0 | BV23: CSH*140300097M | BX23: 3000-01-01 | BY23: 2013-08-21 | BZ23: 2013-08-21 | CA23: 0 | CB23: 3000-01-01 | CC23: 3000-01-01 | CE23: 0 | CF23: 0 | CG23: 2014-06-03 | CH23: admin | CI23: 2014-06-03 | CJ23: admin | CK23: 210 | CL23: Kuwait Finance House | CM23: Fixed Deposit Islamic | CN23: 6-7 mths
A24: CSH*140300098M | B24: RP | C24: CSH | D24: Convertion from CAMRA,F19091301 | I24: 1 | J24: MMF1 | K24: N/A | L24: 2013-08-28 | M24: 2013-08-28 | N24: 2013-08-28 | O24: 2014-03-26 | P24: 2013-08-28 | Q24: 3000-01-01 | R24: CSMM | S24: F_KFH | T24: 1 | U24: 1 | V24: 0 | W24: 0 | X24: 0 | Y24: 0 | Z24: MYR | AA24: DF | AB24: IVCAP | AC24: FDI*MYR*KFH | AE24: 1 | AF24: 0.0335 | AG24: 1614309.4 | AH24: 0 | AI24: 1614309.4 | AJ24: 1614309.4 | AK24: 0 | AL24: -1614309.4 | AM24: 0 | AO24: -1614309.4 | AP24: 0-IVCAP-MYR-300100 | AQ24: 0 | AS24: 1614309.4 | AT24: 0-IVCAP-MYR-100210 | AU24: 0 | AW24: 0 | AY24: 0 | BA24: 0 | BC24: 0 | BE24: 0 | BG24: NO | BH24: 0 | BI24: 0 | BJ24: 0 | BK24: 0 | BL24: 0 | BM24: 0 | BN24: N/A | BR24: MYR | BS24: -1 | BT24: 0 | BV24: CSH*140300098M | BX24: 3000-01-01 | BY24: 2013-08-28 | BZ24: 2013-08-28 | CA24: 0 | CB24: 3000-01-01 | CC24: 3000-01-01 | CE24: 0 | CF24: 0 | CG24: 2014-06-03 | CH24: admin | CI24: 2014-06-03 | CJ24: admin | CK24: 210 | CL24: Kuwait Finance House | CM24: Fixed Deposit Islamic | CN24: 6-7 mths
A25: CSH*140300099M | B25: RP | C25: CSH | D25: Convertion from CAMRA,F19091301 | I25: 1 | J25: MMF1 | K25: N/A | L25: 2013-09-04 | M25: 2013-09-04 | N25: 2013-09-04 | O25: 2014-01-06 | P25: 2013-09-04 | Q25: 3000-01-01 | R25: CSMM | S25: F_RAJHI | T25: 1 | U25: 1 | V25: 0 | W25: 0 | X25: 0 | Y25: 0 | Z25: MYR | AA25: DF | AB25: IVCAP | AC25: FDI*MYR*RAJHI | AE25: 1 | AF25: 0.0285 | AG25: 1189181.33 | AH25: 0 | AI25: 1189181.33 | AJ25: 1189181.33 | AK25: 0 | AL25: -1189181.33 | AM25: 0 | AO25: -1189181.33 | AP25: 0-IVCAP-MYR-300100 | AQ25: 0 | AS25: 1189181.33 | AT25: 0-IVCAP-MYR-100210 | AU25: 0 | AW25: 0 | AY25: 0 | BA25: 0 | BC25: 0 | BE25: 0 | BG25: NO | BH25: 0 | BI25: 0 | BJ25: 0 | BK25: 0 | BL25: 0 | BM25: 0 | BN25: N/A | BR25: MYR | BS25: -1 | BT25: 0 | BV25: CSH*140300099M | BX25: 3000-01-01 | BY25: 2013-09-04 | BZ25: 2013-09-04 | CA25: 0 | CB25: 3000-01-01 | CC25: 3000-01-01 | CE25: 0 | CF25: 0 | CG25: 2014-06-03 | CH25: admin | CI25: 2014-06-03 | CJ25: admin | CK25: 124 | CL25: Al Rajhi Bank | CM25: Fixed Deposit Islamic | CN25: 4-5 mths
A26: CSH*140300100M | B26: RP | C26: CSH | D26: Convertion from CAMRA,F19091301 | I26: 1 | J26: MMF1 | K26: N/A | L26: 2013-09-04 | M26: 2013-09-04 | N26: 2013-09-04 | O26: 2014-04-02 | P26: 2013-09-04 | Q26: 3000-01-01 | R26: CSMM | S26: F_RAJHI | T26: 1 | U26: 1 | V26: 0 | W26: 0 | X26: 0 | Y26: 0 | Z26: MYR | AA26: DF | AB26: IVCAP | AC26: FDI*MYR*RAJHI | AE26: 1 | AF26: 0.0335 | AG26: 2000000 | AH26: 0 | AI26: 2000000 | AJ26: 2000000 | AK26: 0 | AL26: -2000000 | AM26: 0 | AO26: -2000000 | AP26: 0-IVCAP-MYR-300100 | AQ26: 0 | AS26: 2000000 | AT26: 0-IVCAP-MYR-100210 | AU26: 0 | AW26: 0 | AY26: 0 | BA26: 0 | BC26: 0 | BE26: 0 | BG26: NO | BH26: 0 | BI26: 0 | BJ26: 0 | BK26: 0 | BL26: 0 | BM26: 0 | BN26: N/A | BR26: MYR | BS26: -1 | BT26: 0 | BV26: CSH*140300100M | BX26: 3000-01-01 | BY26: 2013-09-04 | BZ26: 2013-09-04 | CA26: 0 | CB26: 3000-01-01 | CC26: 3000-01-01 | CE26: 0 | CF26: 0 | CG26: 2014-06-03 | CH26: admin | CI26: 2014-06-03 | CJ26: admin | CK26: 210 | CL26: Al Rajhi Bank | CM26: Fixed Deposit Islamic | CN26: 6-7 mths
A27: CSH*140300101M | B27: RP | C27: CSH | D27: Convertion from CAMRA,F19091301 | I27: 1 | J27: MMF1 | K27: N/A | L27: 2013-09-11 | M27: 2013-09-11 | N27: 2013-09-11 | O27: 2014-03-12 | P27: 2013-09-11 | Q27: 3000-01-01 | R27: CSMM | S27: F_BIMB | T27: 1 | U27: 1 | V27: 0 | W27: 0 | X27: 0 | Y27: 0 | Z27: MYR | AA27: DF | AB27: IVCAP | AC27: FDI*MYR*BIMB | AE27: 1 | AF27: 0.033 | AG27: 1503874.19 | AH27: 0 | AI27: 1503874.19 | AJ27: 1503874.19 | AK27: 0 | AL27: -1503874.19 | AM27: 0 | AO27: -1503874.19 | AP27: 0-IVCAP-MYR-300100 | AQ27: 0 | AS27: 1503874.19 | AT27: 0-IVCAP-MYR-100210 | AU27: 0 | AW27: 0 | AY27: 0 | BA27: 0 | BC27: 0 | BE27: 0 | BG27: NO | BH27: 0 | BI27: 0 | BJ27: 0 | BK27: 0 | BL27: 0 | BM27: 0 | BN27: N/A | BR27: MYR | BS27: -1 | BT27: 0 | BV27: CSH*140300101M | BX27: 3000-01-01 | BY27: 2013-09-11 | BZ27: 2013-09-11 | CA27: 0 | CB27: 3000-01-01 | CC27: 3000-01-01 | CE27: 0 | CF27: 0 | CG27: 2014-06-03 | CH27: admin | CI27: 2014-06-03 | CJ27: admin | CK27: 182 | CL27: Bank Islam Malaysia Berhad | CM27: Fixed Deposit Islamic | CN27: 6-7 mths
A28: CSH*140300102M | B28: RP | C28: CSH | D28: Convertion from CAMRA,F19091301 | I28: 1 | J28: MMF1 | K28: N/A | L28: 2013-09-19 | M28: 2013-09-19 | N28: 2013-09-19 | O28: 2014-04-09 | P28: 2013-09-19 | Q28: 3000-01-01 | R28: CSMM | S28: F_RAJHI | T28: 1 | U28: 1 | V28: 0 | W28: 0 | X28: 0 | Y28: 0 | Z28: MYR | AA28: DF | AB28: IVCAP | AC28: FDI*MYR*RAJHI | AE28: 1 | AF28: 0.0335 | AG28: 1613743.4 | AH28: 0 | AI28: 1613743.4 | AJ28: 1613743.4 | AK28: 0 | AL28: -1613743.4 | AM28: 0 | AO28: -1613743.4 | AP28: 0-IVCAP-MYR-300100 | AQ28: 0 | AS28: 1613743.4 | AT28: 0-IVCAP-MYR-100210 | AU28: 0 | AW28: 0 | AY28: 0 | BA28: 0 | BC28: 0 | BE28: 0 | BG28: NO | BH28: 0 | BI28: 0 | BJ28: 0 | BK28: 0 | BL28: 0 | BM28: 0 | BN28: N/A | BR28: MYR | BS28: -1 | BT28: 0 | BV28: CSH*140300102M | BX28: 3000-01-01 | BY28: 2013-09-19 | BZ28: 2013-09-19 | CA28: 0 | CB28: 3000-01-01 | CC28: 3000-01-01 | CE28: 0 | CF28: 0 | CG28: 2014-06-03 | CH28: admin | CI28: 2014-06-03 | CJ28: admin | CK28: 202 | CL28: Al Rajhi Bank | CM28: Fixed Deposit Islamic | CN28: 6-7 mths
A29: CSH*140300103M | B29: RP | C29: CSH | D29: Convertion from CAMRA,F19091301 | I29: 1 | J29: MMF1 | K29: N/A | L29: 2013-09-25 | M29: 2013-09-25 | N29: 2013-09-25 | O29: 2014-04-16 | P29: 2013-09-25 | Q29: 3000-01-01 | R29: CSMM | S29: F_RAJHI | T29: 1 | U29: 1 | V29: 0 | W29: 0 | X29: 0 | Y29: 0 | Z29: MYR | AA29: DF | AB29: IVCAP | AC29: FDI*MYR*RAJHI | AE29: 1 | AF29: 0.0335 | AG29: 1383000.09 | AH29: 0 | AI29: 1383000.09 | AJ29: 1383000.09 | AK29: 0 | AL29: -1383000.09 | AM29: 0 | AO29: -1383000.09 | AP29: 0-IVCAP-MYR-300100 | AQ29: 0 | AS29: 1383000.09 | AT29: 0-IVCAP-MYR-100210 | AU29: 0 | AW29: 0 | AY29: 0 | BA29: 0 | BC29: 0 | BE29: 0 | BG29: NO | BH29: 0 | BI29: 0 | BJ29: 0 | BK29: 0 | BL29: 0 | BM29: 0 | BN29: N/A | BR29: MYR | BS29: -1 | BT29: 0 | BV29: CSH*140300103M | BX29: 3000-01-01 | BY29: 2013-09-25 | BZ29: 2013-09-25 | CA29: 0 | CB29: 3000-01-01 | CC29: 3000-01-01 | CE29: 0 | CF29: 0 | CG29: 2014-06-03 | CH29: admin | CI29: 2014-06-03 | CJ29: admin | CK29: 203 | CL29: Al Rajhi Bank | CM29: Fixed Deposit Islamic | CN29: 6-7 mths
A30: CSH*140300104M | B30: RP | C30: CSH | D30: Convertion from CAMRA,F19091301 | I30: 1 | J30: MMF1 | K30: N/A | L30: 2013-10-03 | M30: 2013-10-03 | N30: 2013-10-03 | O30: 2014-04-23 | P30: 2013-10-03 | Q30: 3000-01-01 | R30: CSMM | S30: F_RAJHI | T30: 1 | U30: 1 | V30: 0 | W30: 0 | X30: 0 | Y30: 0 | Z30: MYR | AA30: DF | AB30: IVCAP | AC30: FDI*MYR*RAJHI | AE30: 1 | AF30: 0.0335 | AG30: 1025827.45 | AH30: 0 | AI30: 1025827.45 | AJ30: 1025827.45 | AK30: 0 | AL30: -1025827.45 | AM30: 0 | AO30: -1025827.45 | AP30: 0-IVCAP-MYR-300100 | AQ30: 0 | AS30: 1025827.45 | AT30: 0-IVCAP-MYR-100210 | AU30: 0 | AW30: 0 | AY30: 0 | BA30: 0 | BC30: 0 | BE30: 0 | BG30: NO | BH30: 0 | BI30: 0 | BJ30: 0 | BK30: 0 | BL30: 0 | BM30: 0 | BN30: N/A | BR30: MYR | BS30: -1 | BT30: 0 | BV30: CSH*140300104M | BX30: 3000-01-01 | BY30: 2013-10-03 | BZ30: 2013-10-03 | CA30: 0 | CB30: 3000-01-01 | CC30: 3000-01-01 | CE30: 0 | CF30: 0 | CG30: 2014-06-03 | CH30: admin | CI30: 2014-06-03 | CJ30: admin | CK30: 202 | CL30: Al Rajhi Bank | CM30: Fixed Deposit Islamic | CN30: 6-7 mths
A31: CSH*140300105M | B31: RP | C31: CSH | D31: Convertion from CAMRA,F19091301 | I31: 1 | J31: MMF1 | K31: N/A | L31: 2013-10-09 | M31: 2013-10-09 | N31: 2013-10-09 | O31: 2014-04-29 | P31: 2013-10-09 | Q31: 3000-01-01 | R31: CSMM | S31: F_RAJHI | T31: 1 | U31: 1 | V31: 0 | W31: 0 | X31: 0 | Y31: 0 | Z31: MYR | AA31: DF | AB31: IVCAP | AC31: FDI*MYR*RAJHI | AE31: 1 | AF31: 0.0335 | AG31: 1035442.8 | AH31: 0 | AI31: 1035442.8 | AJ31: 1035442.8 | AK31: 0 | AL31: -1035442.8 | AM31: 0 | AO31: -1035442.8 | AP31: 0-IVCAP-MYR-300100 | AQ31: 0 | AS31: 1035442.8 | AT31: 0-IVCAP-MYR-100210 | AU31: 0 | AW31: 0 | AY31: 0 | BA31: 0 | BC31: 0 | BE31: 0 | BG31: NO | BH31: 0 | BI31: 0 | BJ31: 0 | BK31: 0 | BL31: 0 | BM31: 0 | BN31: N/A | BR31: MYR | BS31: -1 | BT31: 0 | BV31: CSH*140300105M | BX31: 3000-01-01 | BY31: 2013-10-09 | BZ31: 2013-10-09 | CA31: 0 | CB31: 3000-01-01 | CC31: 3000-01-01 | CE31: 0 | CF31: 0 | CG31: 2014-06-03 | CH31: admin | CI31: 2014-06-03 | CJ31: admin | CK31: 202 | CL31: Al Rajhi Bank | CM31: Fixed Deposit Islamic | CN31: 6-7 mths
A32: CSH*140300106M | B32: RP | C32: CSH | D32: Convertion from CAMRA,F19091301 | I32: 1 | J32: MMF1 | K32: N/A | L32: 2013-10-17 | M32: 2013-10-17 | N32: 2013-10-17 | O32: 2014-04-16 | P32: 2013-10-17 | Q32: 3000-01-01 | R32: CSMM | S32: F_RAJHI | T32: 1 | U32: 1 | V32: 0 | W32: 0 | X32: 0 | Y32: 0 | Z32: MYR | AA32: DF | AB32: IVCAP | AC32: FDI*MYR*RAJHI | AE32: 1 | AF32: 0.0335 | AG32: 1080806.05 | AH32: 0 | AI32: 1080806.05 | AJ32: 1080806.05 | AK32: 0 | AL32: -1080806.05 | AM32: 0 | AO32: -1080806.05 | AP32: 0-IVCAP-MYR-300100 | AQ32: 0 | AS32: 1080806.05 | AT32: 0-IVCAP-MYR-100210 | AU32: 0 | AW32: 0 | AY32: 0 | BA32: 0 | BC32: 0 | BE32: 0 | BG32: NO | BH32: 0 | BI32: 0 | BJ32: 0 | BK32: 0 | BL32: 0 | BM32: 0 | BN32: N/A | BR32: MYR | BS32: -1 | BT32: 0 | BV32: CSH*140300106M | BX32: 3000-01-01 | BY32: 2013-10-17 | BZ32: 2013-10-17 | CA32: 0 | CB32: 3000-01-01 | CC32: 3000-01-01 | CE32: 0 | CF32: 0 | CG32: 2014-06-03 | CH32: admin | CI32: 2014-06-03 | CJ32: admin | CK32: 181 | CL32: Al Rajhi Bank | CM32: Fixed Deposit Islamic | CN32: 6-7 mths
A33: CSH*140300107M | B33: RP | C33: CSH | D33: Convertion from CAMRA,F19091301 | I33: 1 | J33: MMF1 | K33: N/A | L33: 2013-10-22 | M33: 2013-10-22 | N33: 2013-10-22 | O33: 2014-04-29 | P33: 2013-10-22 | Q33: 3000-01-01 | R33: CSMM | S33: F_KFH | T33: 1 | U33: 1 | V33: 0 | W33: 0 | X33: 0 | Y33: 0 | Z33: MYR | AA33: DF | AB33: IVCAP | AC33: FDI*MYR*KFH | AE33: 1 | AF33: 0.034 | AG33: 1401594.16 | AH33: 0 | AI33: 1401594.16 | AJ33: 1401594.16 | AK33: 0 | AL33: -1401594.16 | AM33: 0 | AO33: -1401594.16 | AP33: 0-IVCAP-MYR-300100 | AQ33: 0 | AS33: 1401594.16 | AT33: 0-IVCAP-MYR-100210 | AU33: 0 | AW33: 0 | AY33: 0 | BA33: 0 | BC33: 0 | BE33: 0 | BG33: NO | BH33: 0 | BI33: 0 | BJ33: 0 | BK33: 0 | BL33: 0 | BM33: 0 | BN33: N/A | BR33: MYR | BS33: -1 | BT33: 0 | BV33: CSH*140300107M | BX33: 3000-01-01 | BY33: 2013-10-22 | BZ33: 2013-10-22 | CA33: 0 | CB33: 3000-01-01 | CC33: 3000-01-01 | CE33: 0 | CF33: 0 | CG33: 2014-06-03 | CH33: admin | CI33: 2014-06-03 | CJ33: admin | CK33: 189 | CL33: Kuwait Finance House | CM33: Fixed Deposit Islamic | CN33: 6-7 mths
A34: CSH*140300108M | B34: RP | C34: CSH | D34: Convertion from CAMRA,F19091301 | I34: 1 | J34: MMF1 | K34: N/A | L34: 2013-10-30 | M34: 2013-10-30 | N34: 2013-10-30 | O34: 2014-01-06 | P34: 2013-10-30 | Q34: 3000-01-01 | R34: CSMM | S34: F_BMMB | T34: 1 | U34: 1 | V34: 0 | W34: 0 | X34: 0 | Y34: 0 | Z34: MYR | AA34: DF | AB34: IVCAP | AC34: FDI*MYR*BMMB | AE34: 1 | AF34: 0.0295 | AG34: 1116799.4 | AH34: 0 | AI34: 1116799.4 | AJ34: 1116799.4 | AK34: 0 | AL34: -1116799.4 | AM34: 0 | AO34: -1116799.4 | AP34: 0-IVCAP-MYR-300100 | AQ34: 0 | AS34: 1116799.4 | AT34: 0-IVCAP-MYR-100210 | AU34: 0 | AW34: 0 | AY34: 0 | BA34: 0 | BC34: 0 | BE34: 0 | BG34: NO | BH34: 0 | BI34: 0 | BJ34: 0 | BK34: 0 | BL34: 0 | BM34: 0 | BN34: N/A | BR34: MYR | BS34: -1 | BT34: 0 | BV34: CSH*140300108M | BX34: 3000-01-01 | BY34: 2013-10-30 | BZ34: 2013-10-30 | CA34: 0 | CB34: 3000-01-01 | CC34: 3000-01-01 | CE34: 0 | CF34: 0 | CG34: 2014-06-03 | CH34: admin | CI34: 2014-06-03 | CJ34: admin | CK34: 68 | CL34: Bank Muamalat Malaysia Berhad | CM34: Fixed Deposit Islamic | CN34: 2-3 mths
A35: CSH*140300109M | B35: RP | C35: CSH | D35: Convertion from CAMRA,F19091301 | I35: 1 | J35: MMF1 | K35: N/A | L35: 2013-11-07 | M35: 2013-11-07 | N35: 2013-11-07 | O35: 2014-01-06 | P35: 2013-11-07 | Q35: 3000-01-01 | R35: CSMM | S35: F_BIMB | T35: 1 | U35: 1 | V35: 0 | W35: 0 | X35: 0 | Y35: 0 | Z35: MYR | AA35: DF | AB35: IVCAP | AC35: FDI*MYR*BIMB | AE35: 1 | AF35: 0.025 | AG35: 1532878.96 | AH35: 0 | AI35: 1532878.96 | AJ35: 1532878.96 | AK35: 0 | AL35: -1532878.96 | AM35: 0 | AO35: -1532878.96 | AP35: 0-IVCAP-MYR-300100 | AQ35: 0 | AS35: 1532878.96 | AT35: 0-IVCAP-MYR-100210 | AU35: 0 | AW35: 0 | AY35: 0 | BA35: 0 | BC35: 0 | BE35: 0 | BG35: NO | BH35: 0 | BI35: 0 | BJ35: 0 | BK35: 0 | BL35: 0 | BM35: 0 | BN35: N/A | BR35: MYR | BS35: -1 | BT35: 0 | BV35: CSH*140300109M | BX35: 3000-01-01 | BY35: 2013-11-07 | BZ35: 2013-11-07 | CA35: 0 | CB35: 3000-01-01 | CC35: 3000-01-01 | CE35: 0 | CF35: 0 | CG35: 2014-06-03 | CH35: admin | CI35: 2014-06-03 | CJ35: admin | CK35: 60 | CL35: Bank Islam Malaysia Berhad | CM35: Fixed Deposit Islamic | CN35: 2-3 mths
A36: CSH*140300110M | B36: RP | C36: CSH | D36: Convertion from CAMRA,F19091301 | I36: 1 | J36: MMF1 | K36: N/A | L36: 2013-11-12 | M36: 2013-11-12 | N36: 2013-11-12 | O36: 2014-05-07 | P36: 2013-11-12 | Q36: 3000-01-01 | R36: CSMM | S36: F_RAJHI | T36: 1 | U36: 1 | V36: 0 | W36: 0 | X36: 0 | Y36: 0 | Z36: MYR | AA36: DF | AB36: IVCAP | AC36: FDI*MYR*RAJHI | AE36: 1 | AF36: 0.0335 | AG36: 1870000 | AH36: 0 | AI36: 1870000 | AJ36: 1870000 | AK36: 0 | AL36: -1870000 | AM36: 0 | AO36: -1870000 | AP36: 0-IVCAP-MYR-300100 | AQ36: 0 | AS36: 1870000 | AT36: 0-IVCAP-MYR-100210 | AU36: 0 | AW36: 0 | AY36: 0 | BA36: 0 | BC36: 0 | BE36: 0 | BG36: NO | BH36: 0 | BI36: 0 | BJ36: 0 | BK36: 0 | BL36: 0 | BM36: 0 | BN36: N/A | BR36: MYR | BS36: -1 | BT36: 0 | BV36: CSH*140300110M | BX36: 3000-01-01 | BY36: 2013-11-12 | BZ36: 2013-11-12 | CA36: 0 | CB36: 3000-01-01 | CC36: 3000-01-01 | CE36: 0 | CF36: 0 | CG36: 2014-06-03 | CH36: admin | CI36: 2014-06-03 | CJ36: admin | CK36: 176 | CL36: Al Rajhi Bank | CM36: Fixed Deposit Islamic | CN36: 5-6 mths
A37: CSH*140300111M | B37: RP | C37: CSH | D37: Convertion from CAMRA,F19091301 | I37: 1 | J37: MMF1 | K37: N/A | L37: 2013-11-20 | M37: 2013-11-20 | N37: 2013-11-20 | O37: 2014-05-14 | P37: 2013-11-20 | Q37: 3000-01-01 | R37: CSMM | S37: F_RAJHI | T37: 1 | U37: 1 | V37: 0 | W37: 0 | X37: 0 | Y37: 0 | Z37: MYR | AA37: DF | AB37: IVCAP | AC37: FDI*MYR*RAJHI | AE37: 1 | AF37: 0.0335 | AG37: 1115295.44 | AH37: 0 | AI37: 1115295.44 | AJ37: 1115295.44 | AK37: 0 | AL37: -1115295.44 | AM37: 0 | AO37: -1115295.44 | AP37: 0-IVCAP-MYR-300100 | AQ37: 0 | AS37: 1115295.44 | AT37: 0-IVCAP-MYR-100210 | AU37: 0 | AW37: 0 | AY37: 0 | BA37: 0 | BC37: 0 | BE37: 0 | BG37: NO | BH37: 0 | BI37: 0 | BJ37: 0 | BK37: 0 | BL37: 0 | BM37: 0 | BN37: N/A | BR37: MYR | BS37: -1 | BT37: 0 | BV37: CSH*140300111M | BX37: 3000-01-01 | BY37: 2013-11-20 | BZ37: 2013-11-20 | CA37: 0 | CB37: 3000-01-01 | CC37: 3000-01-01 | CE37: 0 | CF37: 0 | CG37: 2014-06-03 | CH37: admin | CI37: 2014-06-03 | CJ37: admin | CK37: 175 | CL37: Al Rajhi Bank | CM37: Fixed Deposit Islamic | CN37: 5-6 mths
A38: CSH*140300112M | B38: RP | C38: CSH | D38: Convertion from CAMRA,F19091301 | I38: 1 | J38: MMF1 | K38: N/A | L38: 2013-11-27 | M38: 2013-11-27 | N38: 2013-11-27 | O38: 2014-05-21 | P38: 2013-11-27 | Q38: 3000-01-01 | R38: CSMM | S38: F_RAJHI | T38: 1 | U38: 1 | V38: 0 | W38: 0 | X38: 0 | Y38: 0 | Z38: MYR | AA38: DF | AB38: IVCAP | AC38: FDI*MYR*RAJHI | AE38: 1 | AF38: 0.0335 | AG38: 1109425.5 | AH38: 0 | AI38: 1109425.5 | AJ38: 1109425.5 | AK38: 0 | AL38: -1109425.5 | AM38: 0 | AO38: -1109425.5 | AP38: 0-IVCAP-MYR-300100 | AQ38: 0 | AS38: 1109425.5 | AT38: 0-IVCAP-MYR-100210 | AU38: 0 | AW38: 0 | AY38: 0 | BA38: 0 | BC38: 0 | BE38: 0 | BG38: NO | BH38: 0 | BI38: 0 | BJ38: 0 | BK38: 0 | BL38: 0 | BM38: 0 | BN38: N/A | BR38: MYR | BS38: -1 | BT38: 0 | BV38: CSH*140300112M | BX38: 3000-01-01 | BY38: 2013-11-27 | BZ38: 2013-11-27 | CA38: 0 | CB38: 3000-01-01 | CC38: 3000-01-01 | CE38: 0 | CF38: 0 | CG38: 2014-06-03 | CH38: admin | CI38: 2014-06-03 | CJ38: admin | CK38: 175 | CL38: Al Rajhi Bank | CM38: Fixed Deposit Islamic | CN38: 5-6 mths
A39: CSH*140300113M | B39: RP | C39: CSH | D39: Convertion from CAMRA,F19091301 | I39: 1 | J39: MMF1 | K39: N/A | L39: 2013-12-04 | M39: 2013-12-04 | N39: 2013-12-04 | O39: 2014-05-28 | P39: 2013-12-04 | Q39: 3000-01-01 | R39: CSMM | S39: F_RAJHI | T39: 1 | U39: 1 | V39: 0 | W39: 0 | X39: 0 | Y39: 0 | Z39: MYR | AA39: DF | AB39: IVCAP | AC39: FDI*MYR*RAJHI | AE39: 1 | AF39: 0.0335 | AG39: 1034935.51 | AH39: 0 | AI39: 1034935.51 | AJ39: 1034935.51 | AK39: 0 | AL39: -1034935.51 | AM39: 0 | AO39: -1034935.51 | AP39: 0-IVCAP-MYR-300100 | AQ39: 0 | AS39: 1034935.51 | AT39: 0-IVCAP-MYR-100210 | AU39: 0 | AW39: 0 | AY39: 0 | BA39: 0 | BC39: 0 | BE39: 0 | BG39: NO | BH39: 0 | BI39: 0 | BJ39: 0 | BK39: 0 | BL39: 0 | BM39: 0 | BN39: N/A | BR39: MYR | BS39: -1 | BT39: 0 | BV39: CSH*140300113M | BX39: 3000-01-01 | BY39: 2013-12-04 | BZ39: 2013-12-04 | CA39: 0 | CB39: 3000-01-01 | CC39: 3000-01-01 | CE39: 0 | CF39: 0 | CG39: 2014-06-03 | CH39: admin | CI39: 2014-06-03 | CJ39: admin | CK39: 175 | CL39: Al Rajhi Bank | CM39: Fixed Deposit Islamic | CN39: 5-6 mths
A40: CSH*140300114M | B40: RP | C40: CSH | D40: Convertion from CAMRA,F19091301 | I40: 1 | J40: MMF1 | K40: N/A | L40: 2013-12-11 | M40: 2013-12-11 | N40: 2013-12-11 | O40: 2014-05-08 | P40: 2013-12-11 | Q40: 3000-01-01 | R40: CSMM | S40: F_RAJHI | T40: 1 | U40: 1 | V40: 0 | W40: 0 | X40: 0 | Y40: 0 | Z40: MYR | AA40: DF | AB40: IVCAP | AC40: FDI*MYR*RAJHI | AE40: 1 | AF40: 0.0335 | AG40: 1020012.49 | AH40: 0 | AI40: 1020012.49 | AJ40: 1020012.49 | AK40: 0 | AL40: -1020012.49 | AM40: 0 | AO40: -1020012.49 | AP40: 0-IVCAP-MYR-300100 | AQ40: 0 | AS40: 1020012.49 | AT40: 0-IVCAP-MYR-100210 | AU40: 0 | AW40: 0 | AY40: 0 | BA40: 0 | BC40: 0 | BE40: 0 | BG40: NO | BH40: 0 | BI40: 0 | BJ40: 0 | BK40: 0 | BL40: 0 | BM40: 0 | BN40: N/A | BR40: MYR | BS40: -1 | BT40: 0 | BV40: CSH*140300114M | BX40: 3000-01-01 | BY40: 2013-12-11 | BZ40: 2013-12-11 | CA40: 0 | CB40: 3000-01-01 | CC40: 3000-01-01 | CE40: 0 | CF40: 0 | CG40: 2014-06-03 | CH40: admin | CI40: 2014-06-03 | CJ40: admin | CK40: 148 | CL40: Al Rajhi Bank | CM40: Fixed Deposit Islamic | CN40: 4-5 mths
A41: CSH*140300115M | B41: RP | C41: CSH | D41: Convertion from CAMRA,F19091301 | I41: 1 | J41: MMF1 | K41: N/A | L41: 2013-12-18 | M41: 2013-12-18 | N41: 2013-12-18 | O41: 2014-05-15 | P41: 2013-12-18 | Q41: 3000-01-01 | R41: CSMM | S41: F_RAJHI | T41: 1 | U41: 1 | V41: 0 | W41: 0 | X41: 0 | Y41: 0 | Z41: MYR | AA41: DF | AB41: IVCAP | AC41: FDI*MYR*RAJHI | AE41: 1 | AF41: 0.0335 | AG41: 1039368.83 | AH41: 0 | AI41: 1039368.83 | AJ41: 1039368.83 | AK41: 0 | AL41: -1039368.83 | AM41: 0 | AO41: -1039368.83 | AP41: 0-IVCAP-MYR-300100 | AQ41: 0 | AS41: 1039368.83 | AT41: 0-IVCAP-MYR-100210 | AU41: 0 | AW41: 0 | AY41: 0 | BA41: 0 | BC41: 0 | BE41: 0 | BG41: NO | BH41: 0 | BI41: 0 | BJ41: 0 | BK41: 0 | BL41: 0 | BM41: 0 | BN41: N/A | BR41: MYR | BS41: -1 | BT41: 0 | BV41: CSH*140300115M | BX41: 3000-01-01 | BY41: 2013-12-18 | BZ41: 2013-12-18 | CA41: 0 | CB41: 3000-01-01 | CC41: 3000-01-01 | CE41: 0 | CF41: 0 | CG41: 2014-06-03 | CH41: admin | CI41: 2014-06-03 | CJ41: admin | CK41: 148 | CL41: Al Rajhi Bank | CM41: Fixed Deposit Islamic | CN41: 4-5 mths
A42: CSH*140300116M | B42: RP | C42: CSH | D42: Convertion from CAMRA,F19091301 | I42: 1 | J42: MMF1 | K42: N/A | L42: 2013-12-23 | M42: 2013-12-23 | N42: 2013-12-23 | O42: 2014-06-04 | P42: 2013-12-23 | Q42: 3000-01-01 | R42: CSMM | S42: F_RAJHI | T42: 1 | U42: 1 | V42: 0 | W42: 0 | X42: 0 | Y42: 0 | Z42: MYR | AA42: DF | AB42: IVCAP | AC42: FDI*MYR*RAJHI | AE42: 1 | AF42: 0.0335 | AG42: 1319802.3 | AH42: 0 | AI42: 1319802.3 | AJ42: 1319802.3 | AK42: 0 | AL42: -1319802.3 | AM42: 0 | AO42: -1319802.3 | AP42: 0-IVCAP-MYR-300100 | AQ42: 0 | AS42: 1319802.3 | AT42: 0-IVCAP-MYR-100210 | AU42: 0 | AW42: 0 | AY42: 0 | BA42: 0 | BC42: 0 | BE42: 0 | BG42: NO | BH42: 0 | BI42: 0 | BJ42: 0 | BK42: 0 | BL42: 0 | BM42: 0 | BN42: N/A | BR42: MYR | BS42: -1 | BT42: 0 | BV42: CSH*140300116M | BX42: 3000-01-01 | BY42: 2013-12-23 | BZ42: 2013-12-23 | CA42: 0 | CB42: 3000-01-01 | CC42: 3000-01-01 | CE42: 0 | CF42: 0 | CG42: 2014-06-03 | CH42: admin | CI42: 2014-06-03 | CJ42: admin | CK42: 163 | CL42: Al Rajhi Bank | CM42: Fixed Deposit Islamic | CN42: 5-6 mths
A43: CSH*140300117M | B43: RP | C43: CSH | D43: Convertion from CAMRA,F19091301 | I43: 1 | J43: MMF1 | K43: N/A | L43: 2014-01-06 | M43: 2014-01-06 | N43: 2014-01-06 | O43: 2014-01-07 | P43: 2014-01-06 | Q43: 3000-01-01 | R43: CSMM | S43: F_BIMB | T43: 1 | U43: 1 | V43: 0 | W43: 0 | X43: 0 | Y43: 0 | Z43: MYR | AA43: DF | AB43: IVCAP | AC43: FDI*MYR*BIMB | AE43: 1 | AF43: 0.029 | AG43: 10815240.74 | AH43: 0 | AI43: 10815240.74 | AJ43: 10815240.74 | AK43: 0 | AL43: -10815240.74 | AM43: 0 | AO43: -10815240.74 | AP43: 0-IVCAP-MYR-300100 | AQ43: 0 | AS43: 10815240.74 | AT43: 0-IVCAP-MYR-100210 | AU43: 0 | AW43: 0 | AY43: 0 | BA43: 0 | BC43: 0 | BE43: 0 | BG43: NO | BH43: 0 | BI43: 0 | BJ43: 0 | BK43: 0 | BL43: 0 | BM43: 0 | BN43: N/A | BR43: MYR | BS43: -1 | BT43: 0 | BV43: CSH*140300117M | BX43: 3000-01-01 | BY43: 2014-01-06 | BZ43: 2014-01-06 | CA43: 0 | CB43: 3000-01-01 | CC43: 3000-01-01 | CE43: 0 | CF43: 0 | CG43: 2014-06-03 | CH43: admin | CI43: 2014-06-03 | CJ43: admin | CK43: 1 | CL43: Bank Islam Malaysia Berhad | CM43: Fixed Deposit Islamic | CN43: 2-3 mths
A44: CSH*140300118M | B44: RP | C44: CSH | D44: Convertion from CAMRA,F19091301 | I44: 1 | J44: MMF1 | K44: N/A | L44: 2014-01-07 | M44: 2014-01-07 | N44: 2014-01-07 | O44: 2014-02-06 | P44: 2014-01-07 | Q44: 3000-01-01 | R44: CSMM | S44: F_BIMB | T44: 1 | U44: 1 | V44: 0 | W44: 0 | X44: 0 | Y44: 0 | Z44: MYR | AA44: DF | AB44: IVCAP | AC44: FDI*MYR*BIMB | AE44: 1 | AF44: 0.0325 | AG44: 816100.09 | AH44: 0 | AI44: 816100.09 | AJ44: 816100.09 | AK44: 0 | AL44: -816100.09 | AM44: 0 | AO44: -816100.09 | AP44: 0-IVCAP-MYR-300100 | AQ44: 0 | AS44: 816100.09 | AT44: 0-IVCAP-MYR-100210 | AU44: 0 | AW44: 0 | AY44: 0 | BA44: 0 | BC44: 0 | BE44: 0 | BG44: NO | BH44: 0 | BI44: 0 | BJ44: 0 | BK44: 0 | BL44: 0 | BM44: 0 | BN44: N/A | BR44: MYR | BS44: -1 | BT44: 0 | BV44: CSH*140300118M | BX44: 3000-01-01 | BY44: 2014-01-07 | BZ44: 2014-01-07 | CA44: 0 | CB44: 3000-01-01 | CC44: 3000-01-01 | CE44: 0 | CF44: 0 | CG44: 2014-06-03 | CH44: admin | CI44: 2014-06-03 | CJ44: admin | CK44: 30 | CL44: Bank Islam Malaysia Berhad | CM44: Fixed Deposit Islamic | CN44: 2-3 mths
A45: CSH*140300119M | B45: RP | C45: CSH | D45: Convertion from CAMRA,F19091301 | I45: 1 | J45: MMF1 | K45: N/A | L45: 2014-02-12 | M45: 2014-02-12 | N45: 2014-02-12 | O45: 2014-05-20 | P45: 2014-02-12 | Q45: 3000-01-01 | R45: CSMM | S45: F_BIMB | T45: 1 | U45: 1 | V45: 0 | W45: 0 | X45: 0 | Y45: 0 | Z45: MYR | AA45: DF | AB45: IVCAP | AC45: FDI*MYR*BIMB | AE45: 1 | AF45: 0.033 | AG45: 1625026.17 | AH45: 0 | AI45: 1625026.17 | AJ45: 1625026.17 | AK45: 0 | AL45: -1625026.17 | AM45: 0 | AO45: -1625026.17 | AP45: 0-IVCAP-MYR-300100 | AQ45: 0 | AS45: 1625026.17 | AT45: 0-IVCAP-MYR-100210 | AU45: 0 | AW45: 0 | AY45: 0 | BA45: 0 | BC45: 0 | BE45: 0 | BG45: NO | BH45: 0 | BI45: 0 | BJ45: 0 | BK45: 0 | BL45: 0 | BM45: 0 | BN45: N/A | BR45: MYR | BS45: -1 | BT45: 0 | BV45: CSH*140300119M | BX45: 3000-01-01 | BY45: 2014-02-12 | BZ45: 2014-02-12 | CA45: 0 | CB45: 3000-01-01 | CC45: 3000-01-01 | CE45: 0 | CF45: 0 | CG45: 2014-06-03 | CH45: admin | CI45: 2014-06-03 | CJ45: admin | CK45: 97 | CL45: Bank Islam Malaysia Berhad | CM45: Fixed Deposit Islamic | CN45: 3-4 mths
A46: CSH*140300120M | B46: RP | C46: CSH | D46: Convertion from CAMRA,F19091301 | I46: 1 | J46: MMF1 | K46: N/A | L46: 2014-02-19 | M46: 2014-02-19 | N46: 2014-02-19 | O46: 2014-05-22 | P46: 2014-02-19 | Q46: 3000-01-01 | R46: CSMM | S46: F_BMMB | T46: 1 | U46: 1 | V46: 0 | W46: 0 | X46: 0 | Y46: 0 | Z46: MYR | AA46: DF | AB46: IVCAP | AC46: FDI*MYR*BMMB | AE46: 1 | AF46: 0.034 | AG46: 1621625.25 | AH46: 0 | AI46: 1621625.25 | AJ46: 1621625.25 | AK46: 0 | AL46: -1621625.25 | AM46: 0 | AO46: -1621625.25 | AP46: 0-IVCAP-MYR-300100 | AQ46: 0 | AS46: 1621625.25 | AT46: 0-IVCAP-MYR-100210 | AU46: 0 | AW46: 0 | AY46: 0 | BA46: 0 | BC46: 0 | BE46: 0 | BG46: NO | BH46: 0 | BI46: 0 | BJ46: 0 | BK46: 0 | BL46: 0 | BM46: 0 | BN46: N/A | BR46: MYR | BS46: -1 | BT46: 0 | BV46: CSH*140300120M | BX46: 3000-01-01 | BY46: 2014-02-19 | BZ46: 2014-02-19 | CA46: 0 | CB46: 3000-01-01 | CC46: 3000-01-01 | CE46: 0 | CF46: 0 | CG46: 2014-06-03 | CH46: admin | CI46: 2014-06-03 | CJ46: admin | CK46: 92 | CL46: Bank Muamalat Malaysia Berhad | CM46: Fixed Deposit Islamic | CN46: 3-4 mths
A47: CSH*140300121M | B47: RP | C47: CSH | D47: Convertion from CAMRA,F19091301 | I47: 1 | J47: MMF1 | K47: N/A | L47: 2014-02-26 | M47: 2014-02-26 | N47: 2014-02-26 | O47: 2014-06-11 | P47: 2014-02-26 | Q47: 3000-01-01 | R47: CSMM | S47: F_BMMB | T47: 1 | U47: 1 | V47: 0 | W47: 0 | X47: 0 | Y47: 0 | Z47: MYR | AA47: DF | AB47: IVCAP | AC47: FDI*MYR*BMMB | AE47: 1 | AF47: 0.033 | AG47: 1424698.44 | AH47: 0 | AI47: 1424698.44 | AJ47: 1424698.44 | AK47: 0 | AL47: -1424698.44 | AM47: 0 | AO47: -1424698.44 | AP47: 0-IVCAP-MYR-300100 | AQ47: 0 | AS47: 1424698.44 | AT47: 0-IVCAP-MYR-100210 | AU47: 0 | AW47: 0 | AY47: 0 | BA47: 0 | BC47: 0 | BE47: 0 | BG47: NO | BH47: 0 | BI47: 0 | BJ47: 0 | BK47: 0 | BL47: 0 | BM47: 0 | BN47: N/A | BR47: MYR | BS47: -1 | BT47: 0 | BV47: CSH*140300121M | BX47: 3000-01-01 | BY47: 2014-02-26 | BZ47: 2014-02-26 | CA47: 0 | CB47: 3000-01-01 | CC47: 3000-01-01 | CE47: 0 | CF47: 0 | CG47: 2014-06-03 | CH47: admin | CI47: 2014-06-03 | CJ47: admin | CK47: 105 | CL47: Bank Muamalat Malaysia Berhad | CM47: Fixed Deposit Islamic | CN47: 3-4 mths
A48: CSH*140300122M | B48: RP | C48: CSH | D48: Convertion from CAMRA,F19091301 | I48: 1 | J48: MMF1 | K48: N/A | L48: 2014-03-05 | M48: 2014-03-05 | N48: 2014-03-05 | O48: 2014-06-03 | P48: 2014-03-05 | Q48: 3000-01-01 | R48: CSMM | S48: F_KFH | T48: 1 | U48: 1 | V48: 0 | W48: 0 | X48: 0 | Y48: 0 | Z48: MYR | AA48: DF | AB48: IVCAP | AC48: FDI*MYR*KFH | AE48: 1 | AF48: 0.0335 | AG48: 1382797.38 | AH48: 0 | AI48: 1382797.38 | AJ48: 1382797.38 | AK48: 0 | AL48: -1382797.38 | AM48: 0 | AO48: -1382797.38 | AP48: 0-IVCAP-MYR-300100 | AQ48: 0 | AS48: 1382797.38 | AT48: 0-IVCAP-MYR-100210 | AU48: 0 | AW48: 0 | AY48: 0 | BA48: 0 | BC48: 0 | BE48: 0 | BG48: NO | BH48: 0 | BI48: 0 | BJ48: 0 | BK48: 0 | BL48: 0 | BM48: 0 | BN48: N/A | BR48: MYR | BS48: -1 | BT48: 0 | BV48: CSH*140300122M | BX48: 3000-01-01 | BY48: 2014-03-05 | BZ48: 2014-03-05 | CA48: 0 | CB48: 3000-01-01 | CC48: 3000-01-01 | CE48: 0 | CF48: 0 | CG48: 2014-06-03 | CH48: admin | CI48: 2014-06-03 | CJ48: admin | CK48: 90 | CL48: Kuwait Finance House | CM48: Fixed Deposit Islamic | CN48: 2-3 mths
A49: CSH*140300123M | B49: RP | C49: CSH | D49: Convertion from CAMRA,F19091301 | I49: 1 | J49: MMF1 | K49: N/A | L49: 2014-03-12 | M49: 2014-03-12 | N49: 2014-03-12 | O49: 2014-06-25 | P49: 2014-03-12 | Q49: 3000-01-01 | R49: CSMM | S49: F_KFH | T49: 1 | U49: 1 | V49: 0 | W49: 0 | X49: 0 | Y49: 0 | Z49: MYR | AA49: DF | AB49: IVCAP | AC49: FDI*MYR*KFH | AE49: 1 | AF49: 0.0335 | AG49: 1797265.19 | AH49: 0 | AI49: 1797265.19 | AJ49: 1797265.19 | AK49: 0 | AL49: -1797265.19 | AM49: 0 | AO49: -1797265.19 | AP49: 0-IVCAP-MYR-300100 | AQ49: 0 | AS49: 1797265.19 | AT49: 0-IVCAP-MYR-100210 | AU49: 0 | AW49: 0 | AY49: 0 | BA49: 0 | BC49: 0 | BE49: 0 | BG49: NO | BH49: 0 | BI49: 0 | BJ49: 0 | BK49: 0 | BL49: 0 | BM49: 0 | BN49: N/A | BR49: MYR | BS49: -1 | BT49: 0 | BV49: CSH*140300123M | BX49: 3000-01-01 | BY49: 2014-03-12 | BZ49: 2014-03-12 | CA49: 0 | CB49: 3000-01-01 | CC49: 3000-01-01 | CE49: 0 | CF49: 0 | CG49: 2014-06-03 | CH49: admin | CI49: 2014-06-03 | CJ49: admin | CK49: 105 | CL49: Kuwait Finance House | CM49: Fixed Deposit Islamic | CN49: 3-4 mths
A50: CSH*140300124M | B50: RP | C50: CSH | D50: Convertion from CAMRA,F19091301 | I50: 1 | J50: MMF1 | K50: N/A | L50: 2014-03-12 | M50: 2014-03-12 | N50: 2014-03-12 | O50: 2014-06-17 | P50: 2014-03-12 | Q50: 3000-01-01 | R50: CSMM | S50: F_KFH | T50: 1 | U50: 1 | V50: 0 | W50: 0 | X50: 0 | Y50: 0 | Z50: MYR | AA50: DF | AB50: IVCAP | AC50: FDI*MYR*KFH | AE50: 1 | AF50: 0.0335 | AG50: 1795265.1 | AH50: 0 | AI50: 1795265.1 | AJ50: 1795265.1 | AK50: 0 | AL50: -1795265.1 | AM50: 0 | AO50: -1795265.1 | AP50: 0-IVCAP-MYR-300100 | AQ50: 0 | AS50: 1795265.1 | AT50: 0-IVCAP-MYR-100210 | AU50: 0 | AW50: 0 | AY50: 0 | BA50: 0 | BC50: 0 | BE50: 0 | BG50: NO | BH50: 0 | BI50: 0 | BJ50: 0 | BK50: 0 | BL50: 0 | BM50: 0 | BN50: N/A | BR50: MYR | BS50: -1 | BT50: 0 | BV50: CSH*140300124M | BX50: 3000-01-01 | BY50: 2014-03-12 | BZ50: 2014-03-12 | CA50: 0 | CB50: 3000-01-01 | CC50: 3000-01-01 | CE50: 0 | CF50: 0 | CG50: 2014-06-03 | CH50: admin | CI50: 2014-06-03 | CJ50: admin | CK50: 97 | CL50: Kuwait Finance House | CM50: Fixed Deposit Islamic | CN50: 3-4 mths
A51: CSH*140300125M | B51: RP | C51: CSH | D51: Convertion from CAMRA,F19091301 | I51: 1 | J51: MMF1 | K51: N/A | L51: 2014-03-19 | M51: 2014-03-19 | N51: 2014-03-19 | O51: 2014-06-19 | P51: 2014-03-19 | Q51: 3000-01-01 | R51: CSMM | S51: F_KFH | T51: 1 | U51: 1 | V51: 0 | W51: 0 | X51: 0 | Y51: 0 | Z51: MYR | AA51: DF | AB51: IVCAP | AC51: FDI*MYR*KFH | AE51: 1 | AF51: 0.0335 | AG51: 1553453.71 | AH51: 0 | AI51: 1553453.71 | AJ51: 1553453.71 | AK51: 0 | AL51: -1553453.71 | AM51: 0 | AO51: -1553453.71 | AP51: 0-IVCAP-MYR-300100 | AQ51: 0 | AS51: 1553453.71 | AT51: 0-IVCAP-MYR-100210 | AU51: 0 | AW51: 0 | AY51: 0 | BA51: 0 | BC51: 0 | BE51: 0 | BG51: NO | BH51: 0 | BI51: 0 | BJ51: 0 | BK51: 0 | BL51: 0 | BM51: 0 | BN51: N/A | BR51: MYR | BS51: -1 | BT51: 0 | BV51: CSH*140300125M | BX51: 3000-01-01 | BY51: 2014-03-19 | BZ51: 2014-03-19 | CA51: 0 | CB51: 3000-01-01 | CC51: 3000-01-01 | CE51: 0 | CF51: 0 | CG51: 2014-06-03 | CH51: admin | CI51: 2014-06-03 | CJ51: admin | CK51: 92 | CL51: Kuwait Finance House | CM51: Fixed Deposit Islamic | CN51: 3-4 mths
A52: CSH*140300126M | B52: RP | C52: CSH | D52: Convertion from CAMRA,F19091301 | I52: 1 | J52: MMF1 | K52: N/A | L52: 2014-03-26 | M52: 2014-03-26 | N52: 2014-03-26 | O52: 2014-06-25 | P52: 2014-03-26 | Q52: 3000-01-01 | R52: CSMM | S52: F_KFH | T52: 1 | U52: 1 | V52: 0 | W52: 0 | X52: 0 | Y52: 0 | Z52: MYR | AA52: DF | AB52: IVCAP | AC52: FDI*MYR*KFH | AE52: 1 | AF52: 0.034 | AG52: 1645419.56 | AH52: 0 | AI52: 1645419.56 | AJ52: 1645419.56 | AK52: 0 | AL52: -1645419.56 | AM52: 0 | AO52: -1645419.56 | AP52: 0-IVCAP-MYR-300100 | AQ52: 0 | AS52: 1645419.56 | AT52: 0-IVCAP-MYR-100210 | AU52: 0 | AW52: 0 | AY52: 0 | BA52: 0 | BC52: 0 | BE52: 0 | BG52: NO | BH52: 0 | BI52: 0 | BJ52: 0 | BK52: 0 | BL52: 0 | BM52: 0 | BN52: N/A | BR52: MYR | BS52: -1 | BT52: 0 | BV52: CSH*140300126M | BX52: 3000-01-01 | BY52: 2014-03-26 | BZ52: 2014-03-26 | CA52: 0 | CB52: 3000-01-01 | CC52: 3000-01-01 | CE52: 0 | CF52: 0 | CG52: 2014-06-03 | CH52: admin | CI52: 2014-06-03 | CJ52: admin | CK52: 91 | CL52: Kuwait Finance House | CM52: Fixed Deposit Islamic | CN52: 3-4 mths
A53: CSH*140300127M | B53: RP | C53: CSH | D53: Convertion from CAMRA,F19091301 | I53: 1 | J53: MMF1 | K53: N/A | L53: 2014-04-02 | M53: 2014-04-02 | N53: 2014-04-02 | O53: 2014-06-10 | P53: 2014-04-02 | Q53: 3000-01-01 | R53: CSMM | S53: F_RAJHI | T53: 1 | U53: 1 | V53: 0 | W53: 0 | X53: 0 | Y53: 0 | Z53: MYR | AA53: DF | AB53: IVCAP | AC53: FDI*MYR*RAJHI | AE53: 1 | AF53: 0.0345 | AG53: 1038543.95 | AH53: 0 | AI53: 1038543.95 | AJ53: 1038543.95 | AK53: 0 | AL53: -1038543.95 | AM53: 0 | AO53: -1038543.95 | AP53: 0-IVCAP-MYR-300100 | AQ53: 0 | AS53: 1038543.95 | AT53: 0-IVCAP-MYR-100210 | AU53: 0 | AW53: 0 | AY53: 0 | BA53: 0 | BC53: 0 | BE53: 0 | BG53: NO | BH53: 0 | BI53: 0 | BJ53: 0 | BK53: 0 | BL53: 0 | BM53: 0 | BN53: N/A | BR53: MYR | BS53: -1 | BT53: 0 | BV53: CSH*140300127M | BX53: 3000-01-01 | BY53: 2014-04-02 | BZ53: 2014-04-02 | CA53: 0 | CB53: 3000-01-01 | CC53: 3000-01-01 | CE53: 0 | CF53: 0 | CG53: 2014-06-03 | CH53: admin | CI53: 2014-06-03 | CJ53: admin | CK53: 69 | CL53: Al Rajhi Bank | CM53: Fixed Deposit Islamic | CN53: 2-3 mths
A54: CSH*140300128M | B54: RP | C54: CSH | D54: Convertion from CAMRA,F19091301 | I54: 1 | J54: MMF1 | K54: N/A | L54: 2014-04-02 | M54: 2014-04-02 | N54: 2014-04-02 | O54: 2014-06-24 | P54: 2014-04-02 | Q54: 3000-01-01 | R54: CSMM | S54: F_RAJHI | T54: 1 | U54: 1 | V54: 0 | W54: 0 | X54: 0 | Y54: 0 | Z54: MYR | AA54: DF | AB54: IVCAP | AC54: FDI*MYR*RAJHI | AE54: 1 | AF54: 0.0345 | AG54: 2000000 | AH54: 0 | AI54: 2000000 | AJ54: 2000000 | AK54: 0 | AL54: -2000000 | AM54: 0 | AO54: -2000000 | AP54: 0-IVCAP-MYR-300100 | AQ54: 0 | AS54: 2000000 | AT54: 0-IVCAP-MYR-100210 | AU54: 0 | AW54: 0 | AY54: 0 | BA54: 0 | BC54: 0 | BE54: 0 | BG54: NO | BH54: 0 | BI54: 0 | BJ54: 0 | BK54: 0 | BL54: 0 | BM54: 0 | BN54: N/A | BR54: MYR | BS54: -1 | BT54: 0 | BV54: CSH*140300128M | BX54: 3000-01-01 | BY54: 2014-04-02 | BZ54: 2014-04-02 | CA54: 0 | CB54: 3000-01-01 | CC54: 3000-01-01 | CE54: 0 | CF54: 0 | CG54: 2014-06-03 | CH54: admin | CI54: 2014-06-03 | CJ54: admin | CK54: 83 | CL54: Al Rajhi Bank | CM54: Fixed Deposit Islamic | CN54: 2-3 mths
A55: CSH*140300129M | B55: RP | C55: CSH | D55: Convertion from CAMRA,F19091301 | I55: 1 | J55: MMF1 | K55: N/A | L55: 2014-04-02 | M55: 2014-04-02 | N55: 2014-04-02 | O55: 2014-07-02 | P55: 2014-04-02 | Q55: 3000-01-01 | R55: CSMM | S55: F_RAJHI | T55: 1 | U55: 1 | V55: 0 | W55: 0 | X55: 0 | Y55: 0 | Z55: MYR | AA55: DF | AB55: IVCAP | AC55: FDI*MYR*RAJHI | AE55: 1 | AF55: 0.0345 | AG55: 2000000 | AH55: 0 | AI55: 2000000 | AJ55: 2000000 | AK55: 0 | AL55: -2000000 | AM55: 0 | AO55: -2000000 | AP55: 0-IVCAP-MYR-300100 | AQ55: 0 | AS55: 2000000 | AT55: 0-IVCAP-MYR-100210 | AU55: 0 | AW55: 0 | AY55: 0 | BA55: 0 | BC55: 0 | BE55: 0 | BG55: NO | BH55: 0 | BI55: 0 | BJ55: 0 | BK55: 0 | BL55: 0 | BM55: 0 | BN55: N/A | BR55: MYR | BS55: -1 | BT55: 0 | BV55: CSH*140300129M | BX55: 3000-01-01 | BY55: 2014-04-02 | BZ55: 2014-04-02 | CA55: 0 | CB55: 3000-01-01 | CC55: 3000-01-01 | CE55: 0 | CF55: 0 | CG55: 2014-06-03 | CH55: admin | CI55: 2014-06-03 | CJ55: admin | CK55: 91 | CL55: Al Rajhi Bank | CM55: Fixed Deposit Islamic | CN55: 3-4 mths
A56: CSH*140300130M | B56: RP | C56: CSH | D56: Convertion from CAMRA,F19091301 | I56: 1 | J56: MMF1 | K56: N/A | L56: 2014-04-02 | M56: 2014-04-02 | N56: 2014-04-02 | O56: 2014-07-03 | P56: 2014-04-02 | Q56: 3000-01-01 | R56: CSMM | S56: F_RAJHI | T56: 1 | U56: 1 | V56: 0 | W56: 0 | X56: 0 | Y56: 0 | Z56: MYR | AA56: DF | AB56: IVCAP | AC56: FDI*MYR*RAJHI | AE56: 1 | AF56: 0.0345 | AG56: 2000000 | AH56: 0 | AI56: 2000000 | AJ56: 2000000 | AK56: 0 | AL56: -2000000 | AM56: 0 | AO56: -2000000 | AP56: 0-IVCAP-MYR-300100 | AQ56: 0 | AS56: 2000000 | AT56: 0-IVCAP-MYR-100210 | AU56: 0 | AW56: 0 | AY56: 0 | BA56: 0 | BC56: 0 | BE56: 0 | BG56: NO | BH56: 0 | BI56: 0 | BJ56: 0 | BK56: 0 | BL56: 0 | BM56: 0 | BN56: N/A | BR56: MYR | BS56: -1 | BT56: 0 | BV56: CSH*140300130M | BX56: 3000-01-01 | BY56: 2014-04-02 | BZ56: 2014-04-02 | CA56: 0 | CB56: 3000-01-01 | CC56: 3000-01-01 | CE56: 0 | CF56: 0 | CG56: 2014-06-03 | CH56: admin | CI56: 2014-06-03 | CJ56: admin | CK56: 92 | CL56: Al Rajhi Bank | CM56: Fixed Deposit Islamic | CN56: 3-4 mths
A57: CSH*140400040 | B57: RP | C57: CSH | D57: Batch Process Placement | E57: STM*140400034 | I57: 1 | J57: MMF1 | K57: N/A | L57: 2014-04-09 | M57: 2014-04-09 | N57: 2014-04-09 | O57: 2014-07-09 | P57: 2014-04-09 | Q57: 3000-01-01 | R57: CSMM | S57: F_RAJHI | T57: 1 | U57: 1 | V57: 0 | W57: 0 | X57: 0 | Y57: 0 | Z57: MYR | AA57: 4000329-00-0 | AB57: DTMB-MMF1 | AC57: RPF*MYR*RAJHI | AE57: 1 | AF57: 0.0345 | AG57: 1643657.76 | AH57: 0 | AI57: 1643657.76 | AJ57: 1643657.76 | AK57: 0 | AL57: -1643657.76 | AM57: 0 | AO57: -1643657.76 | AP57: 0-MMF1-MYR-300100 | AQ57: 0 | AS57: 1643657.76 | AT57: 0-MMF1-MYR-100210 | AU57: 0 | AW57: 0 | AY57: 0 | BA57: 0 | BC57: 0 | BE57: 0 | BG57: NO | BH57: 0 | BI57: 0 | BJ57: 0 | BK57: 0 | BL57: 0 | BM57: 0 | BS57: 1 | BT57: 0 | BV57: CSH*140400040 | BX57: 3000-01-01 | BY57: 2014-04-09T17:39:40 | BZ57: 2014-04-09T17:39:40 | CA57: 0 | CB57: 3000-01-01 | CC57: 3000-01-01 | CE57: 0 | CF57: 0 | CG57: 2014-04-09T10:37:01 | CH57: nazifah | CI57: 2014-04-09T17:39:40 | CJ57: rozita | CK57: 91 | CL57: Al Rajhi Bank | CM57: COMMODITY MURABAHAH | CN57: 3-4 mths
A58: CSH*140400124 | B58: RP | C58: CSH | D58: Batch Process Placement | E58: STM*140400094 | I58: 1 | J58: MMF1 | K58: N/A | L58: 2014-04-16 | M58: 2014-04-16 | N58: 2014-04-16 | O58: 2014-07-10 | P58: 2014-04-16 | Q58: 3000-01-01 | R58: CSMM | S58: F_RAJHI | T58: 1 | U58: 1 | V58: 0 | W58: 0 | X58: 0 | Y58: 0 | Z58: MYR | AA58: 4000329-00-0 | AB58: DTMB-MMF1 | AC58: RPF*MYR*RAJHI | AE58: 1 | AF58: 0.0345 | AG58: 2499657.22 | AH58: 0 | AI58: 2499657.22 | AJ58: 2499657.22 | AK58: 0 | AL58: -2499657.22 | AM58: 0 | AO58: -2499657.22 | AP58: 0-MMF1-MYR-300100 | AQ58: 0 | AS58: 2499657.22 | AT58: 0-MMF1-MYR-100210 | AU58: 0 | AW58: 0 | AY58: 0 | BA58: 0 | BC58: 0 | BE58: 0 | BG58: NO | BH58: 0 | BI58: 0 | BJ58: 0 | BK58: 0 | BL58: 0 | BM58: 0 | BS58: 1 | BT58: 0 | BV58: CSH*140400124 | BX58: 3000-01-01 | BY58: 2014-04-16T18:03:52 | BZ58: 2014-04-16T18:03:52 | CA58: 0 | CB58: 3000-01-01 | CC58: 3000-01-01 | CE58: 0 | CF58: 0 | CG58: 2014-04-16T11:49:32 | CH58: nazifah | CI58: 2014-04-16T18:03:52 | CJ58: fairus | CK58: 85 | CL58: Al Rajhi Bank | CM58: COMMODITY MURABAHAH | CN58: 2-3 mths
A59: CSH*140400176 | B59: RP | C59: CSH | D59: Batch Process Placement | E59: STM*140400132 | I59: 1 | J59: MMF1 | K59: N/A | L59: 2014-04-23 | M59: 2014-04-23 | N59: 2014-04-23 | O59: 2014-07-08 | P59: 2014-04-23 | Q59: 3000-01-01 | R59: CSMM | S59: F_BIMB | T59: 1 | U59: 1 | V59: 0 | W59: 0 | X59: 0 | Y59: 0 | Z59: MYR | AA59: 4000329-00-0 | AB59: DTMB-MMF1 | AC59: RSI*MYR*BIMB | AE59: 1 | AF59: 0.0335 | AG59: 1044838 | AH59: 0 | AI59: 1044838 | AJ59: 1044838 | AK59: 0 | AL59: -1044838 | AM59: 0 | AO59: -1044838 | AP59: 0-MMF1-MYR-300100 | AQ59: 0 | AS59: 1044838 | AT59: 0-MMF1-MYR-100210 | AU59: 0 | AW59: 0 | AY59: 0 | BA59: 0 | BC59: 0 | BE59: 0 | BG59: NO | BH59: 0 | BI59: 0 | BJ59: 0 | BK59: 0 | BL59: 0 | BM59: 0 | BS59: 1 | BT59: 0 | BV59: CSH*140400176 | BX59: 3000-01-01 | BY59: 2014-04-23T17:37:36 | BZ59: 2014-04-23T17:37:36 | CA59: 0 | CB59: 3000-01-01 | CC59: 3000-01-01 | CE59: 0 | CF59: 0 | CG59: 2014-04-23T09:31:17 | CH59: zarina | CI59: 2014-04-23T17:37:36 | CJ59: fairus | CK59: 76 | CL59: Bank Islam Malaysia Berhad | CM59: SIA | CN59: 2-3 mths
A60: CSH*140400224 | B60: RP | C60: CSH | D60: Batch Process Placement | E60: STM*140400163 | I60: 1 | J60: MMF1 | K60: N/A | L60: 2014-04-29 | M60: 2014-04-29 | N60: 2014-04-29 | O60: 2014-07-16 | P60: 2014-04-29 | Q60: 3000-01-01 | R60: CSMM | S60: F_BIMB | T60: 1 | U60: 1 | V60: 0 | W60: 0 | X60: 0 | Y60: 0 | Z60: MYR | AA60: 4000329-00-0 | AB60: DTMB-MMF1 | AC60: RSI*MYR*BIMB | AE60: 1 | AF60: 0.0335 | AG60: 2357851.54 | AH60: 0 | AI60: 2357851.54 | AJ60: 2357851.54 | AK60: 0 | AL60: -2357851.54 | AM60: 0 | AO60: -2357851.54 | AP60: 0-MMF1-MYR-300100 | AQ60: 0 | AS60: 2357851.54 | AT60: 0-MMF1-MYR-100210 | AU60: 0 | AW60: 0 | AY60: 0 | BA60: 0 | BC60: 0 | BE60: 0 | BG60: NO | BH60: 0 | BI60: 0 | BJ60: 0 | BK60: 0 | BL60: 0 | BM60: 0 | BS60: 1 | BT60: 0 | BV60: CSH*140400224 | BX60: 3000-01-01 | BY60: 2014-04-29T18:41:59 | BZ60: 2014-04-29T18:41:59 | CA60: 0 | CB60: 3000-01-01 | CC60: 3000-01-01 | CE60: 0 | CF60: 0 | CG60: 2014-04-29T10:56:47 | CH60: zarina | CI60: 2014-04-29T18:41:59 | CJ60: fairus | CK60: 78 | CL60: Bank Islam Malaysia Berhad | CM60: SIA | CN60: 2-3 mths
A61: CSH*140400225 | B61: RP | C61: CSH | D61: Batch Process Placement | E61: STM*140400164 | I61: 1 | J61: MMF1 | K61: N/A | L61: 2014-04-29 | M61: 2014-04-29 | N61: 2014-04-29 | O61: 2014-05-02 | P61: 2014-04-29 | Q61: 3000-01-01 | R61: CSMM | S61: F_BIMB | T61: 1 | U61: 1 | V61: 0 | W61: 0 | X61: 0 | Y61: 0 | Z61: MYR | AA61: 4000329-00-0 | AB61: DTMB-MMF1 | AC61: RSI*MYR*BIMB | AE61: 1 | AF61: 0.0295 | AG61: 123000 | AH61: 0 | AI61: 123000 | AJ61: 123000 | AK61: 0 | AL61: -123000 | AM61: 0 | AO61: -123000 | AP61: 0-MMF1-MYR-300100 | AQ61: 0 | AS61: 123000 | AT61: 0-MMF1-MYR-100210 | AU61: 0 | AW61: 0 | AY61: 0 | BA61: 0 | BC61: 0 | BE61: 0 | BG61: NO | BH61: 0 | BI61: 0 | BJ61: 0 | BK61: 0 | BL61: 0 | BM61: 0 | BS61: 1 | BT61: 0 | BV61: CSH*140400225 | BX61: 3000-01-01 | BY61: 2014-04-29T18:41:59 | BZ61: 2014-04-29T18:41:59 | CA61: 0 | CB61: 3000-01-01 | CC61: 3000-01-01 | CE61: 0 | CF61: 0 | CG61: 2014-04-29T10:56:47 | CH61: zarina | CI61: 2014-04-29T18:41:59 | CJ61: fairus | CK61: 3 | CL61: Bank Islam Malaysia Berhad | CM61: SIA | CN61: 2-3 mths

Sheet InLstHolding (hidden)
A1: qEventTrxID | B1: qTrnCode | C1: qProductType | D1: Remarks | E1: SettleID | F1: SettleGroup | G1: qVoucherID | H1: MasterBuyID | I1: qTranMethod | J1: qFundCode | K1: qCDSAcc | L1: TradeDate | M1: ValueDate | N1: PayDate | O1: MaturityDate | P1: AccDate | Q1: RevDate | R1: qAccType | S1: qCPCode | T1: TranPrice | U1: fTranRefPrice | V1: WSPrice | W1: WSYTM | X1: WSProfit | Y1: WSSettledValue | Z1: SettCurrency | AA1: qBankAccNo | AB1: PaymentEntity | AC1: qStockCode | AD1: ContractNote | AE1: ExchgRateSF | AF1: TranYTM | AG1: UnitFaceValue | AH1: CummFV | AI1: CostSC | AJ1: CostFC | AK1: CummCost | AL1: SCGrossProceed | AM1: TranSCControl | AN1: AccSCControl | AO1: SCNetProceed | AP1: AccSCNetProceed | AQ1: TranProceed | AR1: AccProceed | AS1: TranBuyCapital | AT1: AccCapital | AU1: TranIncome | AV1: AccTI | AW1: TranGains | AX1: AccGain | AY1: TranAmortAccre | AZ1: AccAmortAccre | BA1: TranPreAcq | BB1: AccPreAcq | BC1: TranExpenses | BD1: AccExpenses | BE1: TranFXGnL | BF1: AccFXGnL | BG1: MarriedDeal | BH1: BrokerageFee | BI1: ClearingFee | BJ1: StampDuty | BK1: VAT | BL1: CustodianFeeCC | BM1: CustodianFeeFC | BN1: CustodianCode | BO1: CustDebitGL | BP1: CustCreditGL | BQ1: CustSettleID | BR1: CustCurrency | BS1: SettFlag | BT1: ReversalFlag | BU1: TrialBalanceRef | BV1: qMasterID | BW1: qEvtDeclareID | BX1: PurchaseDate | BY1: CapProcDate | BZ1: ProcessDate | CA1: CrossTrade | CB1: LCD | CC1: NCD | CD1: ParcelID | CE1: CshRollOverFlag | CF1: ShortSellStatus | CG1: DealerKeyInDate | CH1: DealerKeyInBy | CI1: KeyInDate | CJ1: KeyInBy | CK1: Tenure | CL1: CounterName | CM1: CounterName
A2: CSH*140300043M | B2: RP | C2: CSH | D2: Convertion from CAMRA,F19091301 | I2: 1 | J2: MMF1 | K2: N/A | L2: 2012-05-11 | M2: 2012-05-11 | N2: 2012-05-11 | O2: 2012-11-07 | P2: 2012-05-11 | Q2: 3000-01-01 | R2: CSMM | S2: F_RAJHI | T2: 1 | U2: 1 | V2: 0 | W2: 0 | X2: 0 | Y2: 0 | Z2: MYR | AA2: DF | AB2: IVCAP | AC2: FDI*MYR*RAJHI | AE2: 1 | AF2: 0.0335 | AG2: 4071695.92 | AH2: 0 | AI2: 4071695.92 | AJ2: 4071695.92 | AK2: 0 | AL2: -4071695.92 | AM2: 0 | AO2: -4071695.92 | AP2: 0-IVCAP-MYR-300100 | AQ2: 0 | AS2: 4071695.92 | AT2: 0-IVCAP-MYR-100210 | AU2: 0 | AW2: 0 | AY2: 0 | BA2: 0 | BC2: 0 | BE2: 0 | BG2: NO | BH2: 0 | BI2: 0 | BJ2: 0 | BK2: 0 | BL2: 0 | BM2: 0 | BN2: N/A | BR2: MYR | BS2: -1 | BT2: 0 | BV2: CSH*140300043M | BX2: 3000-01-01 | BY2: 2012-05-11 | BZ2: 2012-05-11 | CA2: 0 | CB2: 3000-01-01 | CC2: 3000-01-01 | CE2: 0 | CF2: 0 | CG2: 2014-06-03 | CH2: admin | CI2: 2014-06-03 | CJ2: admin | CK2: 180 | CL2: Al Rajhi Bank
A3: CSH*140300044M | B3: RP | C3: CSH | D3: Convertion from CAMRA,F19091301 | I3: 1 | J3: MMF1 | K3: N/A | L3: 2012-05-14 | M3: 2012-05-14 | N3: 2012-05-14 | O3: 2012-07-13 | P3: 2012-05-14 | Q3: 3000-01-01 | R3: CSMM | S3: F_BIMB | T3: 1 | U3: 1 | V3: 0 | W3: 0 | X3: 0 | Y3: 0 | Z3: MYR | AA3: DF | AB3: IVCAP | AC3: FDI*MYR*BIMB | AE3: 1 | AF3: 0.0315 | AG3: 3016305.05 | AH3: 0 | AI3: 3016305.05 | AJ3: 3016305.05 | AK3: 0 | AL3: -3016305.05 | AM3: 0 | AO3: -3016305.05 | AP3: 0-IVCAP-MYR-300100 | AQ3: 0 | AS3: 3016305.05 | AT3: 0-IVCAP-MYR-100210 | AU3: 0 | AW3: 0 | AY3: 0 | BA3: 0 | BC3: 0 | BE3: 0 | BG3: NO | BH3: 0 | BI3: 0 | BJ3: 0 | BK3: 0 | BL3: 0 | BM3: 0 | BN3: N/A | BR3: MYR | BS3: -1 | BT3: 0 | BV3: CSH*140300044M | BX3: 3000-01-01 | BY3: 2012-05-14 | BZ3: 2012-05-14 | CA3: 0 | CB3: 3000-01-01 | CC3: 3000-01-01 | CE3: 0 | CF3: 0 | CG3: 2014-06-03 | CH3: admin | CI3: 2014-06-03 | CJ3: admin | CK3: 60 | CL3: Bank Islam Malaysia Berhad
A4: CSH*140300045M | B4: RP | C4: CSH | D4: Convertion from CAMRA,F19091301 | I4: 1 | J4: MMF1 | K4: N/A | L4: 2012-06-27 | M4: 2012-06-27 | N4: 2012-06-27 | O4: 2012-12-21 | P4: 2012-06-27 | Q4: 3000-01-01 | R4: CSMM | S4: F_RAJHI | T4: 1 | U4: 1 | V4: 0 | W4: 0 | X4: 0 | Y4: 0 | Z4: MYR | AA4: DF | AB4: IVCAP | AC4: FDI*MYR*RAJHI | AE4: 1 | AF4: 0.0337 | AG4: 4100252.94 | AH4: 0 | AI4: 4100252.94 | AJ4: 4100252.94 | AK4: 0 | AL4: -4100252.94 | AM4: 0 | AO4: -4100252.94 | AP4: 0-IVCAP-MYR-300100 | AQ4: 0 | AS4: 4100252.94 | AT4: 0-IVCAP-MYR-100210 | AU4: 0 | AW4: 0 | AY4: 0 | BA4: 0 | BC4: 0 | BE4: 0 | BG4: NO | BH4: 0 | BI4: 0 | BJ4: 0 | BK4: 0 | BL4: 0 | BM4: 0 | BN4: N/A | BR4: MYR | BS4: -1 | BT4: 0 | BV4: CSH*140300045M | BX4: 3000-01-01 | BY4: 2012-06-27 | BZ4: 2012-06-27 | CA4: 0 | CB4: 3000-01-01 | CC4: 3000-01-01 | CE4: 0 | CF4: 0 | CG4: 2014-06-03 | CH4: admin | CI4: 2014-06-03 | CJ4: admin | CK4: 177 | CL4: Al Rajhi Bank
A5: CSH*140300046M | B5: RP | C5: CSH | D5: Convertion from CAMRA,F19091301 | I5: 1 | J5: MMF1 | K5: N/A | L5: 2012-07-04 | M5: 2012-07-04 | N5: 2012-07-04 | O5: 2013-01-04 | P5: 2012-07-04 | Q5: 3000-01-01 | R5: CSMM | S5: F_KFH | T5: 1 | U5: 1 | V5: 0 | W5: 0 | X5: 0 | Y5: 0 | Z5: MYR | AA5: DF | AB5: IVCAP | AC5: FDI*MYR*KFH | AE5: 1 | AF5: 0.0337 | AG5: 9000000 | AH5: 0 | AI5: 9000000 | AJ5: 9000000 | AK5: 0 | AL5: -9000000 | AM5: 0 | AO5: -9000000 | AP5: 0-IVCAP-MYR-300100 | AQ5: 0 | AS5: 9000000 | AT5: 0-IVCAP-MYR-100210 | AU5: 0 | AW5: 0 | AY5: 0 | BA5: 0 | BC5: 0 | BE5: 0 | BG5: NO | BH5: 0 | BI5: 0 | BJ5: 0 | BK5: 0 | BL5: 0 | BM5: 0 | BN5: N/A | BR5: MYR | BS5: -1 | BT5: 0 | BV5: CSH*140300046M | BX5: 3000-01-01 | BY5: 2012-07-04 | BZ5: 2012-07-04 | CA5: 0 | CB5: 3000-01-01 | CC5: 3000-01-01 | CE5: 0 | CF5: 0 | CG5: 2014-06-03 | CH5: admin | CI5: 2014-06-03 | CJ5: admin | CK5: 184 | CL5: Kuwait Finance House
A6: CSH*140300047M | B6: RP | C6: CSH | D6: Convertion from CAMRA,F19091301 | I6: 1 | J6: MMF1 | K6: N/A | L6: 2012-07-05 | M6: 2012-07-05 | N6: 2012-07-05 | O6: 2012-09-03 | P6: 2012-07-05 | Q6: 3000-01-01 | R6: CSMM | S6: F_RAJHI | T6: 1 | U6: 1 | V6: 0 | W6: 0 | X6: 0 | Y6: 0 | Z6: MYR | AA6: DF | AB6: IVCAP | AC6: FDI*MYR*RAJHI | AE6: 1 | AF6: 0.0325 | AG6: 20000000 | AH6: 0 | AI6: 20000000 | AJ6: 20000000 | AK6: 0 | AL6: -20000000 | AM6: 0 | AO6: -20000000 | AP6: 0-IVCAP-MYR-300100 | AQ6: 0 | AS6: 20000000 | AT6: 0-IVCAP-MYR-100210 | AU6: 0 | AW6: 0 | AY6: 0 | BA6: 0 | BC6: 0 | BE6: 0 | BG6: NO | BH6: 0 | BI6: 0 | BJ6: 0 | BK6: 0 | BL6: 0 | BM6: 0 | BN6: N/A | BR6: MYR | BS6: -1 | BT6: 0 | BV6: CSH*140300047M | BX6: 3000-01-01 | BY6: 2012-07-05 | BZ6: 2012-07-05 | CA6: 0 | CB6: 3000-01-01 | CC6: 3000-01-01 | CE6: 0 | CF6: 0 | CG6: 2014-06-03 | CH6: admin | CI6: 2014-06-03 | CJ6: admin | CK6: 60 | CL6: Al Rajhi Bank
A7: CSH*140300048M | B7: RP | C7: CSH | D7: Convertion from CAMRA,F19091301 | I7: 1 | J7: MMF1 | K7: N/A | L7: 2012-07-09 | M7: 2012-07-09 | N7: 2012-07-09 | O7: 2012-09-03 | P7: 2012-07-09 | Q7: 3000-01-01 | R7: CSMM | S7: F_RAJHI | T7: 1 | U7: 1 | V7: 0 | W7: 0 | X7: 0 | Y7: 0 | Z7: MYR | AA7: DF | AB7: IVCAP | AC7: FDI*MYR*RAJHI | AE7: 1 | AF7: 0.0325 | AG7: 2032884.61 | AH7: 0 | AI7: 2032884.61 | AJ7: 2032884.61 | AK7: 0 | AL7: -2032884.61 | AM7: 0 | AO7: -2032884.61 | AP7: 0-IVCAP-MYR-300100 | AQ7: 0 | AS7: 2032884.61 | AT7: 0-IVCAP-MYR-100210 | AU7: 0 | AW7: 0 | AY7: 0 | BA7: 0 | BC7: 0 | BE7: 0 | BG7: NO | BH7: 0 | BI7: 0 | BJ7: 0 | BK7: 0 | BL7: 0 | BM7: 0 | BN7: N/A | BR7: MYR | BS7: -1 | BT7: 0 | BV7: CSH*140300048M | BX7: 3000-01-01 | BY7: 2012-07-09 | BZ7: 2012-07-09 | CA7: 0 | CB7: 3000-01-01 | CC7: 3000-01-01 | CE7: 0 | CF7: 0 | CG7: 2014-06-03 | CH7: admin | CI7: 2014-06-03 | CJ7: admin | CK7: 56 | CL7: Al Rajhi Bank
A8: CSH*140300049M | B8: RP | C8: CSH | D8: Convertion from CAMRA,F19091301 | I8: 1 | J8: MMF1 | K8: N/A | L8: 2012-07-13 | M8: 2012-07-13 | N8: 2012-07-13 | O8: 2012-09-03 | P8: 2012-07-13 | Q8: 3000-01-01 | R8: CSMM | S8: F_BIMB | T8: 1 | U8: 1 | V8: 0 | W8: 0 | X8: 0 | Y8: 0 | Z8: MYR | AA8: DF | AB8: IVCAP | AC8: FDI*MYR*BIMB | AE8: 1 | AF8: 0.032 | AG8: 3031917.09 | AH8: 0 | AI8: 3031917.09 | AJ8: 3031917.09 | AK8: 0 | AL8: -3031917.09 | AM8: 0 | AO8: -3031917.09 | AP8: 0-IVCAP-MYR-300100 | AQ8: 0 | AS8: 3031917.09 | AT8: 0-IVCAP-MYR-100210 | AU8: 0 | AW8: 0 | AY8: 0 | BA8: 0 | BC8: 0 | BE8: 0 | BG8: NO | BH8: 0 | BI8: 0 | BJ8: 0 | BK8: 0 | BL8: 0 | BM8: 0 | BN8: N/A | BR8: MYR | BS8: -1 | BT8: 0 | BV8: CSH*140300049M | BX8: 3000-01-01 | BY8: 2012-07-13 | BZ8: 2012-07-13 | CA8: 0 | CB8: 3000-01-01 | CC8: 3000-01-01 | CE8: 0 | CF8: 0 | CG8: 2014-06-03 | CH8: admin | CI8: 2014-06-03 | CJ8: admin | CK8: 52 | CL8: Bank Islam Malaysia Berhad
A9: CSH*140300050M | B9: RP | C9: CSH | D9: Convertion from CAMRA,F19091301 | I9: 1 | J9: MMF1 | K9: N/A | L9: 2012-08-06 | M9: 2012-08-06 | N9: 2012-08-06 | O9: 2013-02-06 | P9: 2012-08-06 | Q9: 3000-01-01 | R9: CSMM | S9: F_KFH | T9: 1 | U9: 1 | V9: 0 | W9: 0 | X9: 0 | Y9: 0 | Z9: MYR | AA9: DF | AB9: IVCAP | AC9: FDI*MYR*KFH | AE9: 1 | AF9: 0.0335 | AG9: 3085440.19 | AH9: 0 | AI9: 3085440.19 | AJ9: 3085440.19 | AK9: 0 | AL9: -3085440.19 | AM9: 0 | AO9: -3085440.19 | AP9: 0-IVCAP-MYR-300100 | AQ9: 0 | AS9: 3085440.19 | AT9: 0-IVCAP-MYR-100210 | AU9: 0 | AW9: 0 | AY9: 0 | BA9: 0 | BC9: 0 | BE9: 0 | BG9: NO | BH9: 0 | BI9: 0 | BJ9: 0 | BK9: 0 | BL9: 0 | BM9: 0 | BN9: N/A | BR9: MYR | BS9: -1 | BT9: 0 | BV9: CSH*140300050M | BX9: 3000-01-01 | BY9: 2012-08-06 | BZ9: 2012-08-06 | CA9: 0 | CB9: 3000-01-01 | CC9: 3000-01-01 | CE9: 0 | CF9: 0 | CG9: 2014-06-03 | CH9: admin | CI9: 2014-06-03 | CJ9: admin | CK9: 184 | CL9: Kuwait Finance House
A10: CSH*140300051M | B10: RP | C10: CSH | D10: Convertion from CAMRA,F19091301 | I10: 1 | J10: MMF1 | K10: N/A | L10: 2012-08-29 | M10: 2012-08-29 | N10: 2012-08-29 | O10: 2012-10-19 | P10: 2012-08-29 | Q10: 3000-01-01 | R10: CSMM | S10: F_CIMB | T10: 1 | U10: 1 | V10: 0 | W10: 0 | X10: 0 | Y10: 0 | Z10: MYR | AA10: DF | AB10: IVCAP | AC10: FDI*MYR*CIMBI | AE10: 1 | AF10: 0.0308 | AG10: 317861.88 | AH10: 0 | AI10: 317861.88 | AJ10: 317861.88 | AK10: 0 | AL10: -317861.88 | AM10: 0 | AO10: -317861.88 | AP10: 0-IVCAP-MYR-300100 | AQ10: 0 | AS10: 317861.88 | AT10: 0-IVCAP-MYR-100210 | AU10: 0 | AW10: 0 | AY10: 0 | BA10: 0 | BC10: 0 | BE10: 0 | BG10: NO | BH10: 0 | BI10: 0 | BJ10: 0 | BK10: 0 | BL10: 0 | BM10: 0 | BN10: N/A | BR10: MYR | BS10: -1 | BT10: 0 | BV10: CSH*140300051M | BX10: 3000-01-01 | BY10: 2012-08-29 | BZ10: 2012-08-29 | CA10: 0 | CB10: 3000-01-01 | CC10: 3000-01-01 | CE10: 0 | CF10: 0 | CG10: 2014-06-03 | CH10: admin | CI10: 2014-06-03 | CJ10: admin | CK10: 51 | CL10: CIMB Islamic Bank Berhad
A11: CSH*140300052M | B11: RP | C11: CSH | D11: Convertion from CAMRA,F19091301 | I11: 1 | J11: MMF1 | K11: N/A | L11: 2012-10-19 | M11: 2012-10-19 | N11: 2012-10-19 | O11: 2012-12-28 | P11: 2012-10-19 | Q11: 3000-01-01 | R11: CSMM | S11: F_BIMB | T11: 1 | U11: 1 | V11: 0 | W11: 0 | X11: 0 | Y11: 0 | Z11: MYR | AA11: DF | AB11: IVCAP | AC11: FDI*MYR*BIMB | AE11: 1 | AF11: 0.0325 | AG11: 1000000 | AH11: 0 | AI11: 1000000 | AJ11: 1000000 | AK11: 0 | AL11: -1000000 | AM11: 0 | AO11: -1000000 | AP11: 0-IVCAP-MYR-300100 | AQ11: 0 | AS11: 1000000 | AT11: 0-IVCAP-MYR-100210 | AU11: 0 | AW11: 0 | AY11: 0 | BA11: 0 | BC11: 0 | BE11: 0 | BG11: NO | BH11: 0 | BI11: 0 | BJ11: 0 | BK11: 0 | BL11: 0 | BM11: 0 | BN11: N/A | BR11: MYR | BS11: -1 | BT11: 0 | BV11: CSH*140300052M | BX11: 3000-01-01 | BY11: 2012-10-19 | BZ11: 2012-10-19 | CA11: 0 | CB11: 3000-01-01 | CC11: 3000-01-01 | CE11: 0 | CF11: 0 | CG11: 2014-06-03 | CH11: admin | CI11: 2014-06-03 | CJ11: admin | CK11: 70 | CL11: Bank Islam Malaysia Berhad
A12: CSH*140300053M | B12: RP | C12: CSH | D12: Convertion from CAMRA,F19091301 | I12: 1 | J12: MMF1 | K12: N/A | L12: 2012-10-19 | M12: 2012-10-19 | N12: 2012-10-19 | O12: 2013-04-23 | P12: 2012-10-19 | Q12: 3000-01-01 | R12: CSMM | S12: F_KFH | T12: 1 | U12: 1 | V12: 0 | W12: 0 | X12: 0 | Y12: 0 | Z12: MYR | AA12: DF | AB12: IVCAP | AC12: FDI*MYR*KFH | AE12: 1 | AF12: 0.0335 | AG12: 1340717.8 | AH12: 0 | AI12: 1340717.8 | AJ12: 1340717.8 | AK12: 0 | AL12: -1340717.8 | AM12: 0 | AO12: -1340717.8 | AP12: 0-IVCAP-MYR-300100 | AQ12: 0 | AS12: 1340717.8 | AT12: 0-IVCAP-MYR-100210 | AU12: 0 | AW12: 0 | AY12: 0 | BA12: 0 | BC12: 0 | BE12: 0 | BG12: NO | BH12: 0 | BI12: 0 | BJ12: 0 | BK12: 0 | BL12: 0 | BM12: 0 | BN12: N/A | BR12: MYR | BS12: -1 | BT12: 0 | BV12: CSH*140300053M | BX12: 3000-01-01 | BY12: 2012-10-19 | BZ12: 2012-10-19 | CA12: 0 | CB12: 3000-01-01 | CC12: 3000-01-01 | CE12: 0 | CF12: 0 | CG12: 2014-06-03 | CH12: admin | CI12: 2014-06-03 | CJ12: admin | CK12: 186 | CL12: Kuwait Finance House
A13: CSH*140300054M | B13: RP | C13: CSH | D13: Convertion from CAMRA,F19091301 | I13: 1 | J13: MMF1 | K13: N/A | L13: 2012-11-07 | M13: 2012-11-07 | N13: 2012-11-07 | O13: 2013-05-14 | P13: 2012-11-07 | Q13: 3000-01-01 | R13: CSMM | S13: F_BMMB | T13: 1 | U13: 1 | V13: 0 | W13: 0 | X13: 0 | Y13: 0 | Z13: MYR | AA13: DF | AB13: IVCAP | AC13: FDI*MYR*BMMB | AE13: 1 | AF13: 0.0332 | AG13: 2138948.57 | AH13: 0 | AI13: 2138948.57 | AJ13: 2138948.57 | AK13: 0 | AL13: -2138948.57 | AM13: 0 | AO13: -2138948.57 | AP13: 0-IVCAP-MYR-300100 | AQ13: 0 | AS13: 2138948.57 | AT13: 0-IVCAP-MYR-100210 | AU13: 0 | AW13: 0 | AY13: 0 | BA13: 0 | BC13: 0 | BE13: 0 | BG13: NO | BH13: 0 | BI13: 0 | BJ13: 0 | BK13: 0 | BL13: 0 | BM13: 0 | BN13: N/A | BR13: MYR | BS13: -1 | BT13: 0 | BV13: CSH*140300054M | BX13: 3000-01-01 | BY13: 2012-11-07 | BZ13: 2012-11-07 | CA13: 0 | CB13: 3000-01-01 | CC13: 3000-01-01 | CE13: 0 | CF13: 0 | CG13: 2014-06-03 | CH13: admin | CI13: 2014-06-03 | CJ13: admin | CK13: 188 | CL13: Bank Muamalat Malaysia Berhad
A14: CSH*140300055M | B14: RP | C14: CSH | D14: Convertion from CAMRA,F19091301 | I14: 1 | J14: MMF1 | K14: N/A | L14: 2012-11-07 | M14: 2012-11-07 | N14: 2012-11-07 | O14: 2013-05-07 | P14: 2012-11-07 | Q14: 3000-01-01 | R14: CSMM | S14: F_BMMB | T14: 1 | U14: 1 | V14: 0 | W14: 0 | X14: 0 | Y14: 0 | Z14: MYR | AA14: DF | AB14: IVCAP | AC14: FDI*MYR*BMMB | AE14: 1 | AF14: 0.0332 | AG14: 2000000 | AH14: 0 | AI14: 2000000 | AJ14: 2000000 | AK14: 0 | AL14: -2000000 | AM14: 0 | AO14: -2000000 | AP14: 0-IVCAP-MYR-300100 | AQ14: 0 | AS14: 2000000 | AT14: 0-IVCAP-MYR-100210 | AU14: 0 | AW14: 0 | AY14: 0 | BA14: 0 | BC14: 0 | BE14: 0 | BG14: NO | BH14: 0 | BI14: 0 | BJ14: 0 | BK14: 0 | BL14: 0 | BM14: 0 | BN14: N/A | BR14: MYR | BS14: -1 | BT14: 0 | BV14: CSH*140300055M | BX14: 3000-01-01 | BY14: 2012-11-07 | BZ14: 2012-11-07 | CA14: 0 | CB14: 3000-01-01 | CC14: 3000-01-01 | CE14: 0 | CF14: 0 | CG14: 2014-06-03 | CH14: admin | CI14: 2014-06-03 | CJ14: admin | CK14: 181 | CL14: Bank Muamalat Malaysia Berhad
A15: CSH*140300056M | B15: RP | C15: CSH | D15: Convertion from CAMRA,F19091301 | I15: 1 | J15: MMF1 | K15: N/A | L15: 2012-11-19 | M15: 2012-11-19 | N15: 2012-11-19 | O15: 2013-01-22 | P15: 2012-11-19 | Q15: 3000-01-01 | R15: CSMM | S15: F_BIMB | T15: 1 | U15: 1 | V15: 0 | W15: 0 | X15: 0 | Y15: 0 | Z15: MYR | AA15: DF | AB15: IVCAP | AC15: FDI*MYR*BIMB | AE15: 1 | AF15: 0.0325 | AG15: 1368670.24 | AH15: 0 | AI15: 1368670.24 | AJ15: 1368670.24 | AK15: 0 | AL15: -1368670.24 | AM15: 0 | AO15: -1368670.24 | AP15: 0-IVCAP-MYR-300100 | AQ15: 0 | AS15: 1368670.24 | AT15: 0-IVCAP-MYR-100210 | AU15: 0 | AW15: 0 | AY15: 0 | BA15: 0 | BC15: 0 | BE15: 0 | BG15: NO | BH15: 0 | BI15: 0 | BJ15: 0 | BK15: 0 | BL15: 0 | BM15: 0 | BN15: N/A | BR15: MYR | BS15: -1 | BT15: 0 | BV15: CSH*140300056M | BX15: 3000-01-01 | BY15: 2012-11-19 | BZ15: 2012-11-19 | CA15: 0 | CB15: 3000-01-01 | CC15: 3000-01-01 | CE15: 0 | CF15: 0 | CG15: 2014-06-03 | CH15: admin | CI15: 2014-06-03 | CJ15: admin | CK15: 64 | CL15: Bank Islam Malaysia Berhad
A16: CSH*140300057M | B16: RP | C16: CSH | D16: Convertion from CAMRA,F19091301 | I16: 1 | J16: MMF1 | K16: N/A | L16: 2012-11-19 | M16: 2012-11-19 | N16: 2012-11-19 | O16: 2013-08-16 | P16: 2012-11-19 | Q16: 3000-01-01 | R16: CSMM | S16: F_KFH | T16: 1 | U16: 1 | V16: 0 | W16: 0 | X16: 0 | Y16: 0 | Z16: MYR | AA16: DF | AB16: IVCAP | AC16: FDI*MYR*KFH | AE16: 1 | AF16: 0.034 | AG16: 2700000 | AH16: 0 | AI16: 2700000 | AJ16: 2700000 | AK16: 0 | AL16: -2700000 | AM16: 0 | AO16: -2700000 | AP16: 0-IVCAP-MYR-300100 | AQ16: 0 | AS16: 2700000 | AT16: 0-IVCAP-MYR-100210 | AU16: 0 | AW16: 0 | AY16: 0 | BA16: 0 | BC16: 0 | BE16: 0 | BG16: NO | BH16: 0 | BI16: 0 | BJ16: 0 | BK16: 0 | BL16: 0 | BM16: 0 | BN16: N/A | BR16: MYR | BS16: -1 | BT16: 0 | BV16: CSH*140300057M | BX16: 3000-01-01 | BY16: 2012-11-19 | BZ16: 2012-11-19 | CA16: 0 | CB16: 3000-01-01 | CC16: 3000-01-01 | CE16: 0 | CF16: 0 | CG16: 2014-06-03 | CH16: admin | CI16: 2014-06-03 | CJ16: admin | CK16: 270 | CL16: Kuwait Finance House
A17: CSH*140300058M | B17: RP | C17: CSH | D17: Convertion from CAMRA,F19091301 | I17: 1 | J17: MMF1 | K17: N/A | L17: 2012-12-07 | M17: 2012-12-07 | N17: 2012-12-07 | O17: 2013-02-27 | P17: 2012-12-07 | Q17: 3000-01-01 | R17: CSMM | S17: F_BMMB | T17: 1 | U17: 1 | V17: 0 | W17: 0 | X17: 0 | Y17: 0 | Z17: MYR | AA17: DF | AB17: IVCAP | AC17: FDI*MYR*BMMB | AE17: 1 | AF17: 0.033 | AG17: 3073220.88 | AH17: 0 | AI17: 3073220.88 | AJ17: 3073220.88 | AK17: 0 | AL17: -3073220.88 | AM17: 0 | AO17: -3073220.88 | AP17: 0-IVCAP-MYR-300100 | AQ17: 0 | AS17: 3073220.88 | AT17: 0-IVCAP-MYR-100210 | AU17: 0 | AW17: 0 | AY17: 0 | BA17: 0 | BC17: 0 | BE17: 0 | BG17: NO | BH17: 0 | BI17: 0 | BJ17: 0 | BK17: 0 | BL17: 0 | BM17: 0 | BN17: N/A | BR17: MYR | BS17: -1 | BT17: 0 | BV17: CSH*140300058M | BX17: 3000-01-01 | BY17: 2012-12-07 | BZ17: 2012-12-07 | CA17: 0 | CB17: 3000-01-01 | CC17: 3000-01-01 | CE17: 0 | CF17: 0 | CG17: 2014-06-03 | CH17: admin | CI17: 2014-06-03 | CJ17: admin | CK17: 82 | CL17: Bank Muamalat Malaysia Berhad
A18: CSH*140300059M | B18: RP | C18: CSH | D18: Convertion from CAMRA,F19091301 | I18: 1 | J18: MMF1 | K18: N/A | L18: 2012-12-21 | M18: 2012-12-21 | N18: 2012-12-21 | O18: 2013-06-25 | P18: 2012-12-21 | Q18: 3000-01-01 | R18: CSMM | S18: F_RAJHI | T18: 1 | U18: 1 | V18: 0 | W18: 0 | X18: 0 | Y18: 0 | Z18: MYR | AA18: DF | AB18: IVCAP | AC18: FDI*MYR*RAJHI | AE18: 1 | AF18: 0.0337 | AG18: 2000000 | AH18: 0 | AI18: 2000000 | AJ18: 2000000 | AK18: 0 | AL18: -2000000 | AM18: 0 | AO18: -2000000 | AP18: 0-IVCAP-MYR-300100 | AQ18: 0 | AS18: 2000000 | AT18: 0-IVCAP-MYR-100210 | AU18: 0 | AW18: 0 | AY18: 0 | BA18: 0 | BC18: 0 | BE18: 0 | BG18: NO | BH18: 0 | BI18: 0 | BJ18: 0 | BK18: 0 | BL18: 0 | BM18: 0 | BN18: N/A | BR18: MYR | BS18: -1 | BT18: 0 | BV18: CSH*140300059M | BX18: 3000-01-01 | BY18: 2012-12-21 | BZ18: 2012-12-21 | CA18: 0 | CB18: 3000-01-01 | CC18: 3000-01-01 | CE18: 0 | CF18: 0 | CG18: 2014-06-03 | CH18: admin | CI18: 2014-06-03 | CJ18: admin | CK18: 186 | CL18: Al Rajhi Bank
A19: CSH*140300060M | B19: RP | C19: CSH | D19: Convertion from CAMRA,F19091301 | I19: 1 | J19: MMF1 | K19: N/A | L19: 2012-12-21 | M19: 2012-12-21 | N19: 2012-12-21 | O19: 2013-06-19 | P19: 2012-12-21 | Q19: 3000-01-01 | R19: CSMM | S19: F_RAJHI | T19: 1 | U19: 1 | V19: 0 | W19: 0 | X19: 0 | Y19: 0 | Z19: MYR | AA19: DF | AB19: IVCAP | AC19: FDI*MYR*RAJHI | AE19: 1 | AF19: 0.0337 | AG19: 2157661.6 | AH19: 0 | AI19: 2157661.6 | AJ19: 2157661.6 | AK19: 0 | AL19: -2157661.6 | AM19: 0 | AO19: -2157661.6 | AP19: 0-IVCAP-MYR-300100 | AQ19: 0 | AS19: 2157661.6 | AT19: 0-IVCAP-MYR-100210 | AU19: 0 | AW19: 0 | AY19: 0 | BA19: 0 | BC19: 0 | BE19: 0 | BG19: NO | BH19: 0 | BI19: 0 | BJ19: 0 | BK19: 0 | BL19: 0 | BM19: 0 | BN19: N/A | BR19: MYR | BS19: -1 | BT19: 0 | BV19: CSH*140300060M | BX19: 3000-01-01 | BY19: 2012-12-21 | BZ19: 2012-12-21 | CA19: 0 | CB19: 3000-01-01 | CC19: 3000-01-01 | CE19: 0 | CF19: 0 | CG19: 2014-06-03 | CH19: admin | CI19: 2014-06-03 | CJ19: admin | CK19: 180 | CL19: Al Rajhi Bank
A20: CSH*140300061M | B20: RP | C20: CSH | D20: Convertion from CAMRA,F19091301 | I20: 1 | J20: MMF1 | K20: N/A | L20: 2012-12-28 | M20: 2012-12-28 | N20: 2012-12-28 | O20: 2013-07-03 | P20: 2012-12-28 | Q20: 3000-01-01 | R20: CSMM | S20: F_RAJHI | T20: 1 | U20: 1 | V20: 0 | W20: 0 | X20: 0 | Y20: 0 | Z20: MYR | AA20: DF | AB20: IVCAP | AC20: FDI*MYR*RAJHI | AE20: 1 | AF20: 0.0337 | AG20: 1006224.89 | AH20: 0 | AI20: 1006224.89 | AJ20: 1006224.89 | AK20: 0 | AL20: -1006224.89 | AM20: 0 | AO20: -1006224.89 | AP20: 0-IVCAP-MYR-300100 | AQ20: 0 | AS20: 1006224.89 | AT20: 0-IVCAP-MYR-100210 | AU20: 0 | AW20: 0 | AY20: 0 | BA20: 0 | BC20: 0 | BE20: 0 | BG20: NO | BH20: 0 | BI20: 0 | BJ20: 0 | BK20: 0 | BL20: 0 | BM20: 0 | BN20: N/A | BR20: MYR | BS20: -1 | BT20: 0 | BV20: CSH*140300061M | BX20: 3000-01-01 | BY20: 2012-12-28 | BZ20: 2012-12-28 | CA20: 0 | CB20: 3000-01-01 | CC20: 3000-01-01 | CE20: 0 | CF20: 0 | CG20: 2014-06-03 | CH20: admin | CI20: 2014-06-03 | CJ20: admin | CK20: 187 | CL20: Al Rajhi Bank
A21: CSH*140300062M | B21: RP | C21: CSH | D21: Convertion from CAMRA,F19091301 | I21: 1 | J21: MMF1 | K21: N/A | L21: 2013-01-04 | M21: 2013-01-04 | N21: 2013-01-04 | O21: 2013-07-10 | P21: 2013-01-04 | Q21: 3000-01-01 | R21: CSMM | S21: F_RAJHI | T21: 1 | U21: 1 | V21: 0 | W21: 0 | X21: 0 | Y21: 0 | Z21: MYR | AA21: DF | AB21: IVCAP | AC21: FDI*MYR*RAJHI | AE21: 1 | AF21: 0.0337 | AG21: 3000000 | AH21: 0 | AI21: 3000000 | AJ21: 3000000 | AK21: 0 | AL21: -3000000 | AM21: 0 | AO21: -3000000 | AP21: 0-IVCAP-MYR-300100 | AQ21: 0 | AS21: 3000000 | AT21: 0-IVCAP-MYR-100210 | AU21: 0 | AW21: 0 | AY21: 0 | BA21: 0 | BC21: 0 | BE21: 0 | BG21: NO | BH21: 0 | BI21: 0 | BJ21: 0 | BK21: 0 | BL21: 0 | BM21: 0 | BN21: N/A | BR21: MYR | BS21: -1 | BT21: 0 | BV21: CSH*140300062M | BX21: 3000-01-01 | BY21: 2013-01-04 | BZ21: 2013-01-04 | CA21: 0 | CB21: 3000-01-01 | CC21: 3000-01-01 | CE21: 0 | CF21: 0 | CG21: 2014-06-03 | CH21: admin | CI21: 2014-06-03 | CJ21: admin | CK21: 187 | CL21: Al Rajhi Bank
A22: CSH*140300063M | B22: RP | C22: CSH | D22: Convertion from CAMRA,F19091301 | I22: 1 | J22: MMF1 | K22: N/A | L22: 2013-01-04 | M22: 2013-01-04 | N22: 2013-01-04 | O22: 2013-07-17 | P22: 2013-01-04 | Q22: 3000-01-01 | R22: CSMM | S22: F_RAJHI | T22: 1 | U22: 1 | V22: 0 | W22: 0 | X22: 0 | Y22: 0 | Z22: MYR | AA22: DF | AB22: IVCAP | AC22: FDI*MYR*RAJHI | AE22: 1 | AF22: 0.0337 | AG22: 3000000 | AH22: 0 | AI22: 3000000 | AJ22: 3000000 | AK22: 0 | AL22: -3000000 | AM22: 0 | AO22: -3000000 | AP22: 0-IVCAP-MYR-300100 | AQ22: 0 | AS22: 3000000 | AT22: 0-IVCAP-MYR-100210 | AU22: 0 | AW22: 0 | AY22: 0 | BA22: 0 | BC22: 0 | BE22: 0 | BG22: NO | BH22: 0 | BI22: 0 | BJ22: 0 | BK22: 0 | BL22: 0 | BM22: 0 | BN22: N/A | BR22: MYR | BS22: -1 | BT22: 0 | BV22: CSH*140300063M | BX22: 3000-01-01 | BY22: 2013-01-04 | BZ22: 2013-01-04 | CA22: 0 | CB22: 3000-01-01 | CC22: 3000-01-01 | CE22: 0 | CF22: 0 | CG22: 2014-06-03 | CH22: admin | CI22: 2014-06-03 | CJ22: admin | CK22: 194 | CL22: Al Rajhi Bank
A23: CSH*140300064M | B23: RP | C23: CSH | D23: Convertion from CAMRA,F19091301 | I23: 1 | J23: MMF1 | K23: N/A | L23: 2013-01-04 | M23: 2013-01-04 | N23: 2013-01-04 | O23: 2013-08-06 | P23: 2013-01-04 | Q23: 3000-01-01 | R23: CSMM | S23: F_RAJHI | T23: 1 | U23: 1 | V23: 0 | W23: 0 | X23: 0 | Y23: 0 | Z23: MYR | AA23: DF | AB23: IVCAP | AC23: FDI*MYR*RAJHI | AE23: 1 | AF23: 0.034 | AG23: 3152892.44 | AH23: 0 | AI23: 3152892.44 | AJ23: 3152892.44 | AK23: 0 | AL23: -3152892.44 | AM23: 0 | AO23: -3152892.44 | AP23: 0-IVCAP-MYR-300100 | AQ23: 0 | AS23: 3152892.44 | AT23: 0-IVCAP-MYR-100210 | AU23: 0 | AW23: 0 | AY23: 0 | BA23: 0 | BC23: 0 | BE23: 0 | BG23: NO | BH23: 0 | BI23: 0 | BJ23: 0 | BK23: 0 | BL23: 0 | BM23: 0 | BN23: N/A | BR23: MYR | BS23: -1 | BT23: 0 | BV23: CSH*140300064M | BX23: 3000-01-01 | BY23: 2013-01-04 | BZ23: 2013-01-04 | CA23: 0 | CB23: 3000-01-01 | CC23: 3000-01-01 | CE23: 0 | CF23: 0 | CG23: 2014-06-03 | CH23: admin | CI23: 2014-06-03 | CJ23: admin | CK23: 214 | CL23: Al Rajhi Bank
A24: CSH*140300065M | B24: RP | C24: CSH | D24: Convertion from CAMRA,F19091301 | I24: 1 | J24: MMF1 | K24: N/A | L24: 2013-01-15 | M24: 2013-01-15 | N24: 2013-01-15 | O24: 2013-07-24 | P24: 2013-01-15 | Q24: 3000-01-01 | R24: CSMM | S24: F_RAJHI | T24: 1 | U24: 1 | V24: 0 | W24: 0 | X24: 0 | Y24: 0 | Z24: MYR | AA24: DF | AB24: IVCAP | AC24: FDI*MYR*RAJHI | AE24: 1 | AF24: 0.0337 | AG24: 2039802.62 | AH24: 0 | AI24: 2039802.62 | AJ24: 2039802.62 | AK24: 0 | AL24: -2039802.62 | AM24: 0 | AO24: -2039802.62 | AP24: 0-IVCAP-MYR-300100 | AQ24: 0 | AS24: 2039802.62 | AT24: 0-IVCAP-MYR-100210 | AU24: 0 | AW24: 0 | AY24: 0 | BA24: 0 | BC24: 0 | BE24: 0 | BG24: NO | BH24: 0 | BI24: 0 | BJ24: 0 | BK24: 0 | BL24: 0 | BM24: 0 | BN24: N/A | BR24: MYR | BS24: -1 | BT24: 0 | BV24: CSH*140300065M | BX24: 3000-01-01 | BY24: 2013-01-15 | BZ24: 2013-01-15 | CA24: 0 | CB24: 3000-01-01 | CC24: 3000-01-01 | CE24: 0 | CF24: 0 | CG24: 2014-06-03 | CH24: admin | CI24: 2014-06-03 | CJ24: admin | CK24: 190 | CL24: Al Rajhi Bank
A25: CSH*140300066M | B25: RP | C25: CSH | D25: Convertion from CAMRA,F19091301 | I25: 1 | J25: MMF1 | K25: N/A | L25: 2013-01-22 | M25: 2013-01-22 | N25: 2013-01-22 | O25: 2013-10-22 | P25: 2013-01-22 | Q25: 3000-01-01 | R25: CSMM | S25: F_KFH | T25: 1 | U25: 1 | V25: 0 | W25: 0 | X25: 0 | Y25: 0 | Z25: MYR | AA25: DF | AB25: IVCAP | AC25: FDI*MYR*KFH | AE25: 1 | AF25: 0.034 | AG25: 1376462.88 | AH25: 0 | AI25: 1376462.88 | AJ25: 1376462.88 | AK25: 0 | AL25: -1376462.88 | AM25: 0 | AO25: -1376462.88 | AP25: 0-IVCAP-MYR-300100 | AQ25: 0 | AS25: 1376462.88 | AT25: 0-IVCAP-MYR-100210 | AU25: 0 | AW25: 0 | AY25: 0 | BA25: 0 | BC25: 0 | BE25: 0 | BG25: NO | BH25: 0 | BI25: 0 | BJ25: 0 | BK25: 0 | BL25: 0 | BM25: 0 | BN25: N/A | BR25: MYR | BS25: -1 | BT25: 0 | BV25: CSH*140300066M | BX25: 3000-01-01 | BY25: 2013-01-22 | BZ25: 2013-01-22 | CA25: 0 | CB25: 3000-01-01 | CC25: 3000-01-01 | CE25: 0 | CF25: 0 | CG25: 2014-06-03 | CH25: admin | CI25: 2014-06-03 | CJ25: admin | CK25: 273 | CL25: Kuwait Finance House
A26: CSH*140300067M | B26: RP | C26: CSH | D26: Convertion from CAMRA,F19091301 | I26: 1 | J26: MMF1 | K26: N/A | L26: 2013-02-06 | M26: 2013-02-06 | N26: 2013-02-06 | O26: 2013-09-04 | P26: 2013-02-06 | Q26: 3000-01-01 | R26: CSMM | S26: F_RAJHI | T26: 1 | U26: 1 | V26: 0 | W26: 0 | X26: 0 | Y26: 0 | Z26: MYR | AA26: DF | AB26: IVCAP | AC26: FDI*MYR*RAJHI | AE26: 1 | AF26: 0.0335 | AG26: 3128879.39 | AH26: 0 | AI26: 3128879.39 | AJ26: 3128879.39 | AK26: 0 | AL26: -3128879.39 | AM26: 0 | AO26: -3128879.39 | AP26: 0-IVCAP-MYR-300100 | AQ26: 0 | AS26: 3128879.39 | AT26: 0-IVCAP-MYR-100210 | AU26: 0 | AW26: 0 | AY26: 0 | BA26: 0 | BC26: 0 | BE26: 0 | BG26: NO | BH26: 0 | BI26: 0 | BJ26: 0 | BK26: 0 | BL26: 0 | BM26: 0 | BN26: N/A | BR26: MYR | BS26: -1 | BT26: 0 | BV26: CSH*140300067M | BX26: 3000-01-01 | BY26: 2013-02-06 | BZ26: 2013-02-06 | CA26: 0 | CB26: 3000-01-01 | CC26: 3000-01-01 | CE26: 0 | CF26: 0 | CG26: 2014-06-03 | CH26: admin | CI26: 2014-06-03 | CJ26: admin | CK26: 210 | CL26: Al Rajhi Bank
A27: CSH*140300068M | B27: RP | C27: CSH | D27: Convertion from CAMRA,F19091301 | I27: 1 | J27: MMF1 | K27: N/A | L27: 2013-02-27 | M27: 2013-02-27 | N27: 2013-02-27 | O27: 2013-08-21 | P27: 2013-02-27 | Q27: 3000-01-01 | R27: CSMM | S27: F_KFH | T27: 1 | U27: 1 | V27: 0 | W27: 0 | X27: 0 | Y27: 0 | Z27: MYR | AA27: DF | AB27: IVCAP | AC27: FDI*MYR*KFH | AE27: 1 | AF27: 0.0335 | AG27: 1500000 | AH27: 0 | AI27: 1500000 | AJ27: 1500000 | AK27: 0 | AL27: -1500000 | AM27: 0 | AO27: -1500000 | AP27: 0-IVCAP-MYR-300100 | AQ27: 0 | AS27: 1500000 | AT27: 0-IVCAP-MYR-100210 | AU27: 0 | AW27: 0 | AY27: 0 | BA27: 0 | BC27: 0 | BE27: 0 | BG27: NO | BH27: 0 | BI27: 0 | BJ27: 0 | BK27: 0 | BL27: 0 | BM27: 0 | BN27: N/A | BR27: MYR | BS27: -1 | BT27: 0 | BV27: CSH*140300068M | BX27: 3000-01-01 | BY27: 2013-02-27 | BZ27: 2013-02-27 | CA27: 0 | CB27: 3000-01-01 | CC27: 3000-01-01 | CE27: 0 | CF27: 0 | CG27: 2014-06-03 | CH27: admin | CI27: 2014-06-03 | CJ27: admin | CK27: 175 | CL27: Kuwait Finance House
A28: CSH*140300069M | B28: RP | C28: CSH | D28: Convertion from CAMRA,F19091301 | I28: 1 | J28: MMF1 | K28: N/A | L28: 2013-02-27 | M28: 2013-02-27 | N28: 2013-02-27 | O28: 2013-08-28 | P28: 2013-02-27 | Q28: 3000-01-01 | R28: CSMM | S28: F_KFH | T28: 1 | U28: 1 | V28: 0 | W28: 0 | X28: 0 | Y28: 0 | Z28: MYR | AA28: DF | AB28: IVCAP | AC28: FDI*MYR*KFH | AE28: 1 | AF28: 0.0335 | AG28: 1587790.77 | AH28: 0 | AI28: 1587790.77 | AJ28: 1587790.77 | AK28: 0 | AL28: -1587790.77 | AM28: 0 | AO28: -1587790.77 | AP28: 0-IVCAP-MYR-300100 | AQ28: 0 | AS28: 1587790.77 | AT28: 0-IVCAP-MYR-100210 | AU28: 0 | AW28: 0 | AY28: 0 | BA28: 0 | BC28: 0 | BE28: 0 | BG28: NO | BH28: 0 | BI28: 0 | BJ28: 0 | BK28: 0 | BL28: 0 | BM28: 0 | BN28: N/A | BR28: MYR | BS28: -1 | BT28: 0 | BV28: CSH*140300069M | BX28: 3000-01-01 | BY28: 2013-02-27 | BZ28: 2013-02-27 | CA28: 0 | CB28: 3000-01-01 | CC28: 3000-01-01 | CE28: 0 | CF28: 0 | CG28: 2014-06-03 | CH28: admin | CI28: 2014-06-03 | CJ28: admin | CK28: 182 | CL28: Kuwait Finance House
A29: CSH*140300070M | B29: RP | C29: CSH | D29: Convertion from CAMRA,F19091301 | I29: 1 | J29: MMF1 | K29: N/A | L29: 2013-03-12 | M29: 2013-03-12 | N29: 2013-03-12 | O29: 2013-06-05 | P29: 2013-03-12 | Q29: 3000-01-01 | R29: CSMM | S29: F_BIMB | T29: 1 | U29: 1 | V29: 0 | W29: 0 | X29: 0 | Y29: 0 | Z29: MYR | AA29: DF | AB29: IVCAP | AC29: FDI*MYR*BIMB | AE29: 1 | AF29: 0.0335 | AG29: 1500000 | AH29: 0 | AI29: 1500000 | AJ29: 1500000 | AK29: 0 | AL29: -1500000 | AM29: 0 | AO29: -1500000 | AP29: 0-IVCAP-MYR-300100 | AQ29: 0 | AS29: 1500000 | AT29: 0-IVCAP-MYR-100210 | AU29: 0 | AW29: 0 | AY29: 0 | BA29: 0 | BC29: 0 | BE29: 0 | BG29: NO | BH29: 0 | BI29: 0 | BJ29: 0 | BK29: 0 | BL29: 0 | BM29: 0 | BN29: N/A | BR29: MYR | BS29: -1 | BT29: 0 | BV29: CSH*140300070M | BX29: 3000-01-01 | BY29: 2013-03-12 | BZ29: 2013-03-12 | CA29: 0 | CB29: 3000-01-01 | CC29: 3000-01-01 | CE29: 0 | CF29: 0 | CG29: 2014-06-03 | CH29: admin | CI29: 2014-06-03 | CJ29: admin | CK29: 85 | CL29: Bank Islam Malaysia Berhad
A30: CSH*140300071M | B30: RP | C30: CSH | D30: Convertion from CAMRA,F19091301 | I30: 1 | J30: MMF1 | K30: N/A | L30: 2013-03-12 | M30: 2013-03-12 | N30: 2013-03-12 | O30: 2013-06-12 | P30: 2013-03-12 | Q30: 3000-01-01 | R30: CSMM | S30: F_BIMB | T30: 1 | U30: 1 | V30: 0 | W30: 0 | X30: 0 | Y30: 0 | Z30: MYR | AA30: DF | AB30: IVCAP | AC30: FDI*MYR*BIMB | AE30: 1 | AF30: 0.0335 | AG30: 1849043.9 | AH30: 0 | AI30: 1849043.9 | AJ30: 1849043.9 | AK30: 0 | AL30: -1849043.9 | AM30: 0 | AO30: -1849043.9 | AP30: 0-IVCAP-MYR-300100 | AQ30: 0 | AS30: 1849043.9 | AT30: 0-IVCAP-MYR-100210 | AU30: 0 | AW30: 0 | AY30: 0 | BA30: 0 | BC30: 0 | BE30: 0 | BG30: NO | BH30: 0 | BI30: 0 | BJ30: 0 | BK30: 0 | BL30: 0 | BM30: 0 | BN30: N/A | BR30: MYR | BS30: -1 | BT30: 0 | BV30: CSH*140300071M | BX30: 3000-01-01 | BY30: 2013-03-12 | BZ30: 2013-03-12 | CA30: 0 | CB30: 3000-01-01 | CC30: 3000-01-01 | CE30: 0 | CF30: 0 | CG30: 2014-06-03 | CH30: admin | CI30: 2014-06-03 | CJ30: admin | CK30: 92 | CL30: Bank Islam Malaysia Berhad
A31: CSH*140300072M | B31: RP | C31: CSH | D31: Convertion from CAMRA,F19091301 | I31: 1 | J31: MMF1 | K31: N/A | L31: 2013-03-12 | M31: 2013-03-12 | N31: 2013-03-12 | O31: 2014-03-12 | P31: 2013-03-12 | Q31: 3000-01-01 | R31: CSMM | S31: F_KFH | T31: 1 | U31: 1 | V31: 0 | W31: 0 | X31: 0 | Y31: 0 | Z31: MYR | AA31: DF | AB31: IVCAP | AC31: FDI*MYR*KFH | AE31: 1 | AF31: 0.0355 | AG31: 2000000 | AH31: 0 | AI31: 2000000 | AJ31: 2000000 | AK31: 0 | AL31: -2000000 | AM31: 0 | AO31: -2000000 | AP31: 0-IVCAP-MYR-300100 | AQ31: 0 | AS31: 2000000 | AT31: 0-IVCAP-MYR-100210 | AU31: 0 | AW31: 0 | AY31: 0 | BA31: 0 | BC31: 0 | BE31: 0 | BG31: NO | BH31: 0 | BI31: 0 | BJ31: 0 | BK31: 0 | BL31: 0 | BM31: 0 | BN31: N/A | BR31: MYR | BS31: -1 | BT31: 0 | BV31: CSH*140300072M | BX31: 3000-01-01 | BY31: 2013-03-12 | BZ31: 2013-03-12 | CA31: 0 | CB31: 3000-01-01 | CC31: 3000-01-01 | CE31: 0 | CF31: 0 | CG31: 2014-06-03 | CH31: admin | CI31: 2014-06-03 | CJ31: admin | CK31: 365 | CL31: Kuwait Finance House
A32: CSH*140300073M | B32: RP | C32: CSH | D32: Convertion from CAMRA,F19091301 | I32: 1 | J32: MMF1 | K32: N/A | L32: 2013-04-15 | M32: 2013-04-15 | N32: 2013-04-15 | O32: 2013-09-11 | P32: 2013-04-15 | Q32: 3000-01-01 | R32: CSMM | S32: F_RAJHI | T32: 1 | U32: 1 | V32: 0 | W32: 0 | X32: 0 | Y32: 0 | Z32: MYR | AA32: DF | AB32: IVCAP | AC32: FDI*MYR*RAJHI | AE32: 1 | AF32: 0.0335 | AG32: 1500000 | AH32: 0 | AI32: 1500000 | AJ32: 1500000 | AK32: 0 | AL32: -1500000 | AM32: 0 | AO32: -1500000 | AP32: 0-IVCAP-MYR-300100 | AQ32: 0 | AS32: 1500000 | AT32: 0-IVCAP-MYR-100210 | AU32: 0 | AW32: 0 | AY32: 0 | BA32: 0 | BC32: 0 | BE32: 0 | BG32: NO | BH32: 0 | BI32: 0 | BJ32: 0 | BK32: 0 | BL32: 0 | BM32: 0 | BN32: N/A | BR32: MYR | BS32: -1 | BT32: 0 | BV32: CSH*140300073M | BX32: 3000-01-01 | BY32: 2013-04-15 | BZ32: 2013-04-15 | CA32: 0 | CB32: 3000-01-01 | CC32: 3000-01-01 | CE32: 0 | CF32: 0 | CG32: 2014-06-03 | CH32: admin | CI32: 2014-06-03 | CJ32: admin | CK32: 149 | CL32: Al Rajhi Bank
A33: CSH*140300074M | B33: RP | C33: CSH | D33: Convertion from CAMRA,F19091301 | I33: 1 | J33: MMF1 | K33: N/A | L33: 2013-04-15 | M33: 2013-04-15 | N33: 2013-04-15 | O33: 2013-09-19 | P33: 2013-04-15 | Q33: 3000-01-01 | R33: CSMM | S33: F_RAJHI | T33: 1 | U33: 1 | V33: 0 | W33: 0 | X33: 0 | Y33: 0 | Z33: MYR | AA33: DF | AB33: IVCAP | AC33: FDI*MYR*RAJHI | AE33: 1 | AF33: 0.0335 | AG33: 1590830.19 | AH33: 0 | AI33: 1590830.19 | AJ33: 1590830.19 | AK33: 0 | AL33: -1590830.19 | AM33: 0 | AO33: -1590830.19 | AP33: 0-IVCAP-MYR-300100 | AQ33: 0 | AS33: 1590830.19 | AT33: 0-IVCAP-MYR-100210 | AU33: 0 | AW33: 0 | AY33: 0 | BA33: 0 | BC33: 0 | BE33: 0 | BG33: NO | BH33: 0 | BI33: 0 | BJ33: 0 | BK33: 0 | BL33: 0 | BM33: 0 | BN33: N/A | BR33: MYR | BS33: -1 | BT33: 0 | BV33: CSH*140300074M | BX33: 3000-01-01 | BY33: 2013-04-15 | BZ33: 2013-04-15 | CA33: 0 | CB33: 3000-01-01 | CC33: 3000-01-01 | CE33: 0 | CF33: 0 | CG33: 2014-06-03 | CH33: admin | CI33: 2014-06-03 | CJ33: admin | CK33: 157 | CL33: Al Rajhi Bank
A34: CSH*140300075M | B34: RP | C34: CSH | D34: Convertion from CAMRA,F19091301 | I34: 1 | J34: MMF1 | K34: N/A | L34: 2013-04-23 | M34: 2013-04-23 | N34: 2013-04-23 | O34: 2013-09-25 | P34: 2013-04-23 | Q34: 3000-01-01 | R34: CSMM | S34: F_RAJHI | T34: 1 | U34: 1 | V34: 0 | W34: 0 | X34: 0 | Y34: 0 | Z34: MYR | AA34: DF | AB34: IVCAP | AC34: FDI*MYR*RAJHI | AE34: 1 | AF34: 0.0335 | AG34: 1363597.51 | AH34: 0 | AI34: 1363597.51 | AJ34: 1363597.51 | AK34: 0 | AL34: -1363597.51 | AM34: 0 | AO34: -1363597.51 | AP34: 0-IVCAP-MYR-300100 | AQ34: 0 | AS34: 1363597.51 | AT34: 0-IVCAP-MYR-100210 | AU34: 0 | AW34: 0 | AY34: 0 | BA34: 0 | BC34: 0 | BE34: 0 | BG34: NO | BH34: 0 | BI34: 0 | BJ34: 0 | BK34: 0 | BL34: 0 | BM34: 0 | BN34: N/A | BR34: MYR | BS34: -1 | BT34: 0 | BV34: CSH*140300075M | BX34: 3000-01-01 | BY34: 2013-04-23 | BZ34: 2013-04-23 | CA34: 0 | CB34: 3000-01-01 | CC34: 3000-01-01 | CE34: 0 | CF34: 0 | CG34: 2014-06-03 | CH34: admin | CI34: 2014-06-03 | CJ34: admin | CK34: 155 | CL34: Al Rajhi Bank
